Workbook

Sheet Definitions
A1: Citation | B1: Cohen, Stuart, Vignesh Ramasamy, and Danny Inman. 2023. A Component-Level Bottom-Up Cost Model for Pumped Storage Hydropower. Golden, CO: National Renewable Energy Laboratory. NREL/TP-6A40-84875. https://www.nrel.gov/docs/fy23osti/84875.
A3: Parameter | B3: Parameter Type | C3: Description/Instructions | D3: Options/ Choices (if applicable) | E3: Applicability for Small Scale PSH (<=100 MW) [n/a if blank] | F3: Applicability for Large Scale PSH (>100 MW) [n/a if blank] | G3: Equation/Cost Curve [n/a if blank] | H3: Notes | I3: Data Source
A4: Definitions | B4: Worksheet | C4: This sheet has definitions and descriptions of most terms and parameters within the workbook. | D4: No
A5: Cost Model L-PSH | B5: Worksheet | C5: This sheet includes the core PSH cost model with all base case inputs, assumptions, output specifications, and cost components applicable for a large PSH system. | D5: No
A6: Cost Model S-PSH | B6: Worksheet | C6: This sheet includes the core PSH cost model with all base case inputs, assumptions, output specifications, and cost components applicable for a small PSH system. | D6: No
A7: Cost Curves L-PSH | B7: Worksheet | C7: This sheet includes all underlying cost curves using inputs of the large PSH system to estimate unit and total costs of different components for a large PSH system. | D7: No | H7: Most of the cost curves are from EPRI GS-6999 report "Pumped Storage Planning and Evaluation Guide"
A8: Cost Curves S-PSH | B8: Worksheet | C8: This sheet includes all underlying cost curves using inputs of the small PSH system to estimate unit and total costs of different components for a small PSH system. | D8: No | H8: Most of the cost curves are from EPRI GS-6999 report "Pumped Storage Planning and Evaluation Guide"
A9: Market Adj Factors | B9: Worksheet | C9: This sheet includes market adjustment factors and inflation factors used to adjust the estimated unit cost to current year values. | D9: No | I9: Industry engagement and U.S. Bureau of Labor and Statistics
A10: Locational Adj Factors | B10: Worksheet | C10: This sheet includes locational cost adjustment factors used to adjust unit cost based on selected location. | D10: No | I10: RSMeans. 2022. “RSMeans City Cost Index - 2022 - Quarter 2.” Gordian. https://www.rsmeans.com/media/wysiwyg/quarterly_updates/Q2-2022-ChangeNotice.pdf
A11: Land Value Data | B11: Worksheet | C11: This sheet has $/acre value of different types of land by location based on USDA data. | D11: No | I11: USDA. 2022. “USDA Land Values: 2022 Summary.” 1949–1867. United States Department of Agriculture.
A12: Sensitivity Analysis | B12: Worksheet | C12: This sheet has macros to calculate costs for multiple different configurations at the same time and plot the changes to the overall $/kWh.
A13: Location | B13: Inputs & Assumptions | C13: Select United States or one of the states in the U.S. This input will adjust cost components based on a locational cost adjustment factor derived from the RSmeans construction cost guide. | D13: Yes | I13: RSMeans. 2022. “RSMeans City Cost Index - 2022 - Quarter 2.” Gordian. https://www.rsmeans.com/media/wysiwyg/quarterly_updates/Q2-2022-ChangeNotice.pdf
A14: Avg. Max Upper Reservoir Depth | B14: Inputs & Assumptions | C14: Enter the average of the maximum upper reservoir depth in feet. This could also be calculated as the reservoir volume divided by the area. | D14: No
A15: Upper Reservoir Area | B15: Inputs & Assumptions | C15: Enter upper reservoir area in acres, measured at the top of the water surface at maximum fill. | D15: No
A16: Avg. Max Lower Reservoir Depth | B16: Inputs & Assumptions | C16: Enter the average of the maximum lower reservoir depth in feet. This could also be calculated as the reservoir volume divided by the area. | D16: No
A17: Lower Reservoir Area | B17: Inputs & Assumptions | C17: Enter lower reservoir area in acres, measured at the top of the water surface at maximum fill. | D17: No
A18: Nominal (Max) Head | B18: Inputs & Assumptions | C18: Enter maximum head height in feet, i.e., the upper reservoir max water surface elevation minus the lower reservoir min water surface elevation. | D18: No
A19: Total Conveyance Length (vert+horiz) | B19: Inputs & Assumptions | C19: Enter total water conveyance length between upper and lower reservoir in feet. This could be the shortest distance between two reservoirs, including both the horizontal and vertical (head) distance. | D19: No
A20: Avg. Upper Dam Height | B20: Inputs & Assumptions | C20: Enter average upper reservoir dam height in feet. | D20: No
A21: Upper Dam Crest Length | B21: Inputs & Assumptions | C21: Enter upper reservoir dam crest length (length along the span of the dam at the top) in feet. | D21: No
A22: Avg. Lower Dam Height | B22: Inputs & Assumptions | C22: Enter average lower reservoir dam height in feet. | D22: No
A23: Lower Dam Crest Length | B23: Inputs & Assumptions | C23: Enter lower reservoir dam crest length (length along the span of the dam at the top) in feet. | D23: No
A24: Acreage to be acquired | B24: Inputs & Assumptions | C24: Enter total land area to be acquired for the construction of the project in acres. | D24: No | H24: Could be area of both rervoirs + 10%
A25: Generation Time | B25: Inputs & Assumptions | C25: Enter the maximum discharge time in hours based on the power output at mean generation discharge. In practice, power will fluctuate between min and max power based on head height throughout the discharge period. | D25: No
A26: Meter to Feet | B26: Inputs & Assumptions | C26: Conversion factor from meter to feet used for maximum head height. | D26: No
A27: Feet to Miles | B27: Inputs & Assumptions | C27: Conversion factor from feet to mile used for water conveyance length. | D27: No
A28: Ac. Ft to Cu. Ft | B28: Inputs & Assumptions | C28: Conversion factor for acre-foot to cubic-foot. | D28: No
A29: Cu. Ft to Cu. Yd | B29: Inputs & Assumptions | C29: Conversion factor for cubic-foot to cubic-yard. | D29: No
A30: Hr to Sec | B30: Inputs & Assumptions | C30: Conversion factor for hours to seconds. | D30: No
A31: MW to W | B31: Inputs & Assumptions | C31: Conversion factor from megawatts to watts | D31: No
A32: acceleration of gravity (metric) | B32: Inputs & Assumptions | C32: Gravitational acceleration constant | D32: No
A33: density of water (metric) | B33: Inputs & Assumptions | C33: Density of water constant | D33: No
A34: Tunneling Condition | B34: Inputs & Assumptions | C34: Select an option between average and poor tunneling condition. Average tunneling condition will have lower cost compared to poor tunneling condition. Poor tunneling conditions could be attributed to tunnel size/length, excavation method, rock conditions, or water inflows. | D34: Yes
A35: Access Road, Terrain | B35: Inputs & Assumptions | C35: Select a terrain grade type that impacts the cost of the access road. Flat is <10 degree slope, Mild is 10-20 degree slope, Steep is >20 degree slope. | D35: Yes
A36: Access Road, Type | B36: Inputs & Assumptions | C36: Select whether a new access road must be built, or if an existing road can be rebuilt. | D36: Yes
A37: Highway Realignment | B37: Inputs & Assumptions | C37: Select an option that will either include or exclude highway realignment cost. | D37: Yes
A38: Access Road | B38: Inputs & Assumptions | C38: Enter a value in miles for the length of access road that needs to be built. | D38: No | H38: Could be the distance between nearest road, lower reservoir and then to upper reservoir + 10%.
A39: Access Tunnel, Length | B39: Inputs & Assumptions | C39: Enter a value in feet for the distance of the access tunnel built to access an underground powerhouse. | D39: No | H39: Assume 26ft x 26ft tunnel section. If length is unknown can be approximated to tailrace tunnel length. Could be approximated as distance between lower edge of reservoir to half of the horizontal length assuming power station is in the center
A40: Water Supply | B40: Inputs & Assumptions | C40: Select an option that will either include or exclude water supply cost. | D40: Yes
A41: Water Supply Cost | B41: Inputs & Assumptions | C41: Enter an assumed water supply cost per acre-foot of water volume. Alternatively, a water supply cost in dollars can be entered as an override quantity in the cost table. | D41: No
A42: U. Reservoir Intake/Outlet | B42: Inputs & Assumptions | C42: Select an option between horizontal and vertical for the upper reservoir water intake/outlet. Choice depends on terrain, but typically choose horizontal if there is >1 head race tunnel (tunnel upstream of the powerhouse). | D42: Yes | I42: EPRI GS6999 - P.NO. 6-10, 6-11
A43: L. Reservoir Intake/Outlet | B43: Inputs & Assumptions | C43: Select an option between horizontal and vertical for the lower reservoir water intake/outlet. Typically horizontal. | D43: Yes | I43: EPRI GS6999 - P.NO. 6-10, 6-12
A44: Powerstation Structure Geology | B44: Inputs & Assumptions | C44: Select an option between average and adverse geology. Average tuneling condition will have lower cost compared to more conservatively assuming adverse geology. | D44: Yes
A45: Power Station | B45: Inputs & Assumptions | C45: Select an option between surface and underground power station. | D45: Yes | I45: EPRI GS6999 - P.NO. 6-9, 6-10
A46: Penstock | B46: Inputs & Assumptions | C46: Select an option between surface and underground penstock. Systems with total capacity < 100 MW are expected to use surface penstocks. | D46: Yes | I46: EPRI GS6999 - P.NO. 6-10
A47: Reservoir Liner | B47: Inputs & Assumptions | C47: Select the liner type applicable to both upper and lower reservoirs. | D47: Yes
A48: Dam Type | B48: Inputs & Assumptions | C48: Select the dam type to estimate cost of both upper and lower reservoir dam and spillway. Dam and spillway costs are calculated by first calculating the equivalent earthen dam cost given the material-specific dam volume, then adjusting the total cost from the earthen dam-equivalent cost to the material-specific total cost. The unit cost will not change with dam material type. | D48: Yes | H48: The unit cost of dam construction remains unchanged across dam types, but the total cost and volume of both upper and lower reservoir/spillway component changes by dam type. More detail can be found in the Ring Dam Resource Cost Assessment paper.
A49: Pump Type | B49: Inputs & Assumptions | C49: Select an option between fixed and variable pump types. | D49: Yes
A50: Inflation Factor | B50: Inputs & Assumptions | C50: Enables or disables the inflation factor adjustment for all the system cost components except for indirect costs. | D50: Yes
A51: Material/Equipment % | B51: Inputs & Assumptions | C51: Enter a percentage value that specifies the percent of total cost that is made up of material/equipment costs (i.e., not labor costs) on which to apply sales tax. | D51: No
A52: Mobilization/Demobilization | B52: Inputs & Assumptions | C52: Enter a percentage value to estimate material and labor mobilization/demobilization as a percent of total cost. | D52: No
A53: Sales Tax | B53: Inputs & Assumptions | C53: Enter a percentage value to estimate sales tax on a material percentage of components. | D53: No
A54: Contingency | B54: Inputs & Assumptions | C54: Enter a percentage value to apply as a contingency cost on the total cost of components. | D54: No
A55: EPC Cost | B55: Inputs & Assumptions | C55: Enter a percentage value to apply engineering-procurement-construction (EPC) contractor cost on a material percentage of components. | D55: No
A56: Developer Cost | B56: Inputs & Assumptions | C56: Enter a percentage value to apply a developer cost on the total cost of components. | D56: No
A57: EPC Overhead & Profit | B57: Inputs & Assumptions | C57: Enter a percentage value to estimate overhead and the installer's profit markup on a material percentage of components. | D57: No
A58: Tranmsission Distance | B58: Inputs & Assumptions | C58: Enter the value for transmission interconnection distance in miles to estimate the cost of transmission. | D58: No
A59: Transmission | B59: Inputs & Assumptions | C59: Enter the value for transmission line voltage to estimate the cost of transmission. | D59: No
A60: Substation | B60: Inputs & Assumptions | C60: Enter the value for substation voltage to estimate the cost of a switchyard. | D60: No
A61: Tranmission Terrain | B61: Inputs & Assumptions | C61: Select the type of terrain to estimate the cost of transmission. | D61: Yes
A62: Transmission Type (# circuits) | B62: Inputs & Assumptions | C62: Select the type of transmission network (single or double circuit) to estimate the cost of transmission. | D62: Yes
A63: Active Storage | B63: Inputs & Assumptions | C63: Enter a percentage value (less than or equal to 100%) to estimate the total usable storage out of the full reservoir volume. | D63: No
A64: Hmin/Hmax | B64: Inputs & Assumptions | C64: Enter the assumed ratio of minimum to maximum gross head. | D64: No
A65: Hazen Williams C | B65: Inputs & Assumptions | C65: Enter a value for the Hazen-Williams friction coefficient to estimate the head loss in conveyance structures. | D65: No
A66: P-T Efficiency | B66: Inputs & Assumptions | C66: Enter a value for unit pump-turbine efficiency to estimate palnt generation power. This is the one-way component efficiency, not the overall round-trip efficiency of power generation. | D66: No | H66: This is not same as round trip efficiency.
A67: Max Tunnel Velocity | B67: Inputs & Assumptions | C67: Enter a maximum water velocity in the tunnel in foot per second to estimate tunnel diameter. | D67: No | H67: Value usually in the range of 15 - 20.
A68: Max Tunnel Dia | B68: Inputs & Assumptions | C68: Enter a maximum tunnel diameter value to estimate number of tunnels. | D68: No
A69: Max Unit Capacity | B69: Inputs & Assumptions | C69: Enter a maximum capacity in megawatts per generating unit to determine the number of individual turbine/generator units. | D69: No
A70: Min No. Units | B70: Inputs & Assumptions | C70: Enter a value to set a lower limit for total no. of turbine/generator units at the plant. | D70: No
A71: Pump Time | B71: Inputs & Assumptions | C71: Enter a factor value for the ratio of charging hours to discharging hours at mean discharge. This is the inverse of the overall round-trip efficiency. | D71: No | H71: Could be inverse of round trip efficiency.
A72: Conveyance Length | B72: Output Specifications | C72: Converts conveyance length value converted from feet to miles. | D72: No
A73: Avg. Upper Reservoir Volume | B73: Output Specifications | C73: Estimates total upper reservoir volume by multiplying average reservoir depth and reservoir area. | D73: No
A74: Avg. Lower Reservoir Volume | B74: Output Specifications | C74: Estimates total lower reservoir volume by multiplying average reservoir depth and reservoir area. | D74: No
A75: Total Upper Dam Volume | B75: Output Specifications | C75: Estimates total dam volume in the upper reservoir by multiplying estimated unit volume using dam height in the EPRI curve and input dam crest length. | D75: No | I75: EPRI GS6999 - P.NO. 6-50
A76: Total Lower Dam Volume | B76: Output Specifications | C76: Estimates total dam volume in the lower reservoir by multiplying estimated unit volume using dam height in the EPRI curve and input dam crest length. | D76: No | I76: EPRI GS6999 - P.NO. 6-50
A77: Active Storage | B77: Output Specifications | C77: Estimates total usable or dispatchable storage volume by multiplying active storage percentage factor and upper reservoir volume. | D77: No
A78: Energy Storage | B78: Output Specifications | C78: Total energy stored based on active storage. | D78: No
A79: Mean Gen Discharge | B79: Output Specifications | C79: Estimates the mean water discharge in cubic feet per second by multiplying converted values of active storage in acre-foot to cubic-foot and generation time in hours to seconds. Assumes power output is maximized for the head and flow. | D79: No
A80: Min Gross Head | B80: Output Specifications | C80: Estimates minimum gross head in feet by multiplying the Hmin/Hmax ratio and the nominal maximum head height value. | D80: No
A81: Mean Gross Head | B81: Output Specifications | C81: The average of the maximum nominal head and minimum nominal head values. | D81: No
A82: Min Gen Discharge | B82: Output Specifications | C82: Estimates the minimum water discharge in cubic feet per sectond from the mean discharge and the min/mean head ratio, based on the head being proportional to the flow squared | D82: No
A83: Max Gen Discharge | B83: Output Specifications | C83: Estimates the minimum water discharge in cubic feet per sectond from the mean discharge and the max/mean head ratio, based on the head being proportional to the flow squared | D83: No
A84: Nominal Tunnel Diameter | B84: Output Specifications | C84: Estimates the tunnel diameter in feet assuming 1 tunnel, estimated from the ratio of max flow to velocity (i.e., tunnel cross-sectional area) | D84: No | I84: EPRI GS6999 - P.NO. 6-12, 6-13
A85: No. Tunnels | B85: Output Specifications | C85: Determines the required number of tunnels to be 1 if the estimated tunnel diameter is less than maximum tunnel diameter, otherwise a value of 2 is assumed. | D85: No | I85: EPRI GS6999 - P.NO. 6-12, 6-13
A86: Adjusted Tunnel Diameter | B86: Output Specifications | C86: Estimates the tunnel diameter in feet based on the total number of tunnels and the ratio of max flow to velocity (i.e., tunnel cross-sectional area) | D86: No | I86: EPRI GS6999 - P.NO. 6-12, 6-13
A87: L/H | B87: Output Specifications | C87: Ratio of conveyance length to mean head height. | D87: No
A88: Surge Chambers | B88: Output Specifications | C88: A flag for whether or not to include surge chamer cost. A surge chamber is assumed to be required if L/H ratio is greater than or equal to 7. | D88: No | I88: EPRI GS6999 - P.NO. 6-13, 6-14
A89: Min Gen Headloss | B89: Output Specifications | C89: Head loss in feet at minimum discharge conditions, using the Hazen-Williams equation | D89: No
A90: Mean Gen Headloss | B90: Output Specifications | C90: Head loss in feet at mean discharge conditions, using the Hazen-Williams equation | D90: No
A91: Max Gen Headloss | B91: Output Specifications | C91: Head loss in feet at maximum discharge conditions, using the Hazen-Williams equation | D91: No
A92: Net Head @ Min Gen Discharge | B92: Output Specifications | C92: The difference between minimum head height and head loss at minimum discharge. | D92: No
A93: Net Head @ Mean Gen Discharge | B93: Output Specifications | C93: The difference between mean head height and head loss at mean discharge. | D93: No
A94: Net Head @ Max Gen Discharge | B94: Output Specifications | C94: The difference between maximum head height and head loss at maximum discharge. | D94: No
A95: Min Plant Gen Power | B95: Output Specifications | C95: Calculation of hydropower output at minimum discharge based on head, flow rate, P-T efficiency, and physical properties. This would be considered the firm capacity for resource adequacy purposes. | D95: No
A96: Mean Plant Gen Power | B96: Output Specifications | C96: Calculation of hydropower output at mean discharge based on head, flow rate, P-T efficiency, and physical properties | D96: No
A97: Max Plant Gen Power | B97: Output Specifications | C97: Calculation of hydropower output at maximum discharge based on head, flow rate, P-T efficiency, and physical properties. The maximum recommended plant gen power is 2100 MW to avoid extrapolating beyond the prescribed range of the cost functions. | D97: No
A98: No. Units | B98: Output Specifications | C98: Calculates the required number of pump/generator units using plant's total generation capacity and the maximum generation capacity per unit. The maximum recommended number of units is 6 to avoid extrapolating beyond the prescribed range of the cost functions. | D98: No
A99: Unit Rating | B99: Output Specifications | C99: The number of pump/generator units calculated from the max plant capacity divided by number of units. | D99: No
A100: Max Penstock Velocity | B100: Output Specifications | C100: The maximum water velocity in the penstock in foot per second, estimated from the maximum head. | D100: No | I100: EPRI GS6999 - P.NO. A-11, A-12
A101: Max Draft Tube Tunnel Velocity | B101: Output Specifications | C101: The maximum water velocity in the draft tube in foot per second, conservatively estimated from the maximum minus minimum head. | D101: No | I101: EPRI GS6999 - P.NO. A-12
A102: Penstock Dia | B102: Output Specifications | C102: Estimates the penstock diameter in feet from the ratio of max flow to max penstock velocity (i.e., penstock cross-sectional area) | D102: No
A103: Draft Tube Tunnel Dia | B103: Output Specifications | C103: Estimates the draft tube diameter in feet from the ratio of max flow to max penstock velocity (i.e., draft tube cross-sectional area) | D103: No
A104: Pump Time | B104: Output Specifications | C104: The product of the pump time factor and total generation time. | D104: No
A105: Mean Pump Discharge | B105: Output Specifications | C105: Estimates mean water discharge of the pump in cubic feet per second by converting active storage from acre-foot to cubic-food and pump time from hours to seconds. | D105: No
A106: Mean Pump Headloss | B106: Output Specifications | C106: Head loss in feet from the pump at mean discharge conditions, using the Hazen-Williams equation | D106: No
A107: Mean Pump Net Head | B107: Output Specifications | C107: Total head the pump must overcome as the sum of mean gross head height and mean pump headloss. | D107: No
A108: Mean Pump Power | B108: Output Specifications | C108: Pump power requirements calculated based on mean pump discharge conditions of head, flow rate, P-T efficiency, and physical properties | D108: No
A109: Tranmission Terrain Multiplier | B109: Output Specifications | C109: Transmission cost multiplification factor lookup for selected transmission terrain type. | D109: No | I109: Andrade, Juan, and Ross Baldick. 2017. “The Full Cost of Electricity (FCe-): Estimation of Transmission Costs for New Generation.” UTEI/2016-09-2. Austin, TX: The University of Texas at Austin. https://energy.utexas.edu/sites/default/files/UTAustin_FCe_TransmissionCosts_2017.pdf
A110: Tranmission Type Multiplier | B110: Output Specifications | C110: Transmission cost multiplification factor lookup for selected transmission line type. | D110: No | I110: Andrade, Juan, and Ross Baldick. 2017. “The Full Cost of Electricity (FCe-): Estimation of Transmission Costs for New Generation.” UTEI/2016-09-2. Austin, TX: The University of Texas at Austin. https://energy.utexas.edu/sites/default/files/UTAustin_FCe_TransmissionCosts_2017.pdf
A111: Include in Total? | B111: Cost Component Column Header | C111: If the value in this column is set to "Yes" it will include the cost component in the total cost estimation and vice versa. | D111: No
A112: Unit | B112: Cost Component Column Header | C112: Values in this column define the intrinsic unit that is used to quantify the cost component. | D112: No
A113: Qty | B113: Cost Component Column Header | C113: Values in this column estimate the total quantity of each cost component in the defined unit. | D113: No
A114: Base Unit Cost | B114: Cost Component Column Header | C114: Values in this column estimate the unit cost of each cost component in the defined $/unit. | D114: No
A115: Locational Factor | B115: Cost Component Column Header | C115: The Locational Factors are cost multipliers assigned for different locations in USA based on local markets, e.g., labor costs. | D115: No | H115: Land and Land Rights cost doesn't have any locational factor included in its total cost as the unit cost is already derived based on selected location. | I115: RSMeans. 2022. “RSMeans City Cost Index - 2022 - Quarter 2.” Gordian. https://www.rsmeans.com/media/wysiwyg/quarterly_updates/Q2-2022-ChangeNotice.pdf
A116: Inflation Factor (2022) | B116: Cost Component Column Header | C116: The Infation Factor is the cost multiplier based on the change in consumer price index due to inflation from the year $ year of cost curves (eg; 1988 is the $ year for EPRI cost curves) to the current dollar year of 2022. | D116: No | I116: U.S. Bureau of Labor and Statistics
A117: Market Adjustment Factor (MAF) | B117: Cost Component Column Header | C117: The Market Adjustment Factor is a cost multiplier that accounts for changes to component-specific markets beyond CPI inflation from the base cost curve year (i.e., 1988 for EPRI cost curves). For example, this factor could accommodate change in commodity markets for raw materials used for the component and component-specific supply chains. | D117: No | H117: Industry engagement.
A118: Adjusted Unit Cost | B118: Cost Component Column Header | C118: This is the product of base unit cost and all the cost adjustment factors. | D118: No
A119: Override Qty | B119: Cost Component Column Header | C119: Any values input under these cells can override the estimated quantity. | D119: No | H119: Could be handy for atypical projects.
A120: Override Unit Cost | B120: Cost Component Column Header | C120: Any values input under these cells can override the estimated unit cost. | D120: No
A121: Total Component Cost | B121: Cost Component Column Header | C121: This is the product of adjusted unit cost and quantity. | D121: No
A122: Cost per Capacity ($/MW) | B122: Cost Component Column Header | C122: This is a flag to denote if a cost component is dependent on power capacity of the technology. | D122: No
A123: Cost per Energy ($/MWh) | B123: Cost Component Column Header | C123: This is a flag to denote if a cost component is dependent on enegy capacity of the technology. | D123: No
A124: % of total cost (component) | B124: Cost Component Column Header | C124: Calculates the % of the total cost attributed to each cost component | D124: No
A125: % of total cost (category) | B125: Cost Component Column Header | C125: Calculates the % of the total cost attributed to each cost category | D125: No
A126: Land and Land Rights | B126: Cost Component | C126: Estimated for the selected project location using the total acreage required for project construction and the average cost per acre data sourced by state from the USDA cost of land and land rights. The United States average cost per acre value is used for any location that's not in the location input list. | D126: No | H126: Land requirement and its cost vary considerably by location and type of land. Need to make sure correct acreage and cost per acre value is used. | I126: USDA. 2022. “USDA Land Values: 2022 Summary.” 1949–1867. United States Department of Agriculture.
A127: Powerplant Structure | B127: Cost Component | C127: Cost per kW of the structure constructed for the powerhouse equipment, estimated with EPRI cost curves based on the power station type, geology, and estimated generator unit rating. The total cost is then calculated by multiplying the estimate cost per kW and the max plant generation power in kW. | D127: No | G127: cost per kW=a*dam_height^b for underground structure and a*dam_height^2 + b*dam_height + c for surface structure; a, b & c varies by geology type, powerstation type, and generator unit rating. | I127: EPRI GS6999 - P.NO. 6-42 to 6-49
A128: Reservoirs, Dams, and Waterways | B128: Cost Component | C128: Set of all cost components listed under "Reservoirs, Dams, and Waterways" | D128: No
A129: Upper Reservoir Dam and Spillway | B129: Cost Component | C129: Calculates total cost by multiplying the upper reservoir volume in cubic yards and the cost per cubic yard estimated with an EPRI cost curve. Note that unit cost does not change with dam material type because material cost adjustments are made on total cost, not unit cost. | D129: No | G129: cost per CY = (7.75 * dam_volume) / (dam_volume - 0.05) | I129: EPRI GS6999 - P.NO. 6-50
A130: Upper Reservoir Intake/Outlet | B130: Cost Component | C130: The cost per intake/outlet in millions of US dollars is estimated based on the upper reservoir intake type and the number of tunnels required. | D130: No | G130: cost per intake/outlet = a*(conductor_diameter)^2 - b*(conductor_diameter) + c; a, b, and c varies by intake type. | H130: Adjusted tunnel diameter to be used in the cost equation. | I130: EPRI GS6999 - P.NO. 6-52
A131: Surge Facilities | B131: Cost Component | C131: This site-specific cost where the user determines if it is required. If a surge facility is required and enabled, the total cost of the surge facility is a specified % of the sum of the total water conductor cost, with the % specified in the Qty column. | D131: No | G131: cost of surge facility = surge_facility_cost_factor*cost of concrete lined water conductors | I131: EPRI GS6999 - P.NO. 6-22
A132: Lower Reservoir Intake/Outlet | B132: Cost Component | C132: The cost per intake/outlet in millions of US dollars is estimated based on the lower reservoir intake type and the number of tunnels required. | D132: No | G132: cost per intake/outlet = a*(conductor_diameter)^2 - b*(conductor_diameter) + c; a, b, and c varies by intake type. | H132: Adjusted tunnel diameter to be used in the cost equation. | I132: EPRI GS6999 - P.NO. 6-52
A133: Lower Reservoir Dam and Spillway | B133: Cost Component | C133: Calculates total cost by multiplying the lower reservoir volume in cubic yards and the cost per cubic yard estimated with an EPRI cost curve. Note that unit cost does not change with dam material type because material cost adjustments are made on total cost, not unit cost. | D133: No | G133: cost per CY = (7.75 * dam_volume) / (dam_volume - 0.05) | I133: EPRI GS6999 - P.NO. 6-50
A134: Upper & Lower Reservoir Liner | B134: Cost Component | C134: Estimates minimum reservoir area when assuming that the both reservoir surface and the dam are shaped like isosceles triangles, then multiplies by the unit cost of the chosen liner material. | D134: No | G134: liner area = sqrt(a^2 * b^2 + a^2 * c^2 + b^2 * c^2) where a = maximum dam height, b = 0.5 * maximum dam crest length at the top, c = (2 * reservoir surface area at maximum fill)/maximum dam crest length at the top | I134: DeNeale, S., A. Chu, M. Altinakar, J. Hedien, and V. Koritarov (forthcoming). Cost Model for Pumped Storage Hydropower Geomembrane Lining Systems. Oak Ridge National Laboratory. Oak Ridge, TN.
A135: Water Conductors | B135: Cost Component | C135: Set of all cost components listed under "Concrete Lined Water Conductors" | D135: No
A136: Upper Low & High Pressure Tunnels | B136: Cost Component | C136: Estimated cost per linear foot of tunnel based on the tunneling condition, tunnel diameter, and conveyance length. Length of low/high pressure tunnels is half the remaining horizontal conveyance length after subtracting penstock, draft tube, and tailrace. | D136: No | E136: Disabled | F136: Enabled | G136: cost per LF = a*tunnel_diameter^2 + b*tunnel_diameter + c; a, b & c varies by tunnel length and diameter. | H136: Adjusted tunnel diameter to be used in the cost equation. Length is assumed to be half the horizontal conveyance length after subtracting penstock and draft tube length. | I136: EPRI GS6999 - P.NO. 6-53
A137: Vertical Shafts | B137: Cost Component | C137: Cost of vertical shafts is equal to estimated shaft length times cost per foot of vertical shaft. Vertical shaft length is estimated as equal to the mean gross head. | D137: No | E137: Disabled | F137: Enabled | G137: cost per LF = 186.57*(tunnel_diameter) + 27.143 | H137: Length of vertical shaft is assumed to be equal to mean gross head height. | I137: EPRI GS6999 - P.NO. 6-54
A138: Penstock Tunnels | B138: Cost Component | C138: Estimated cost per linear foot of tunnel based on the tunneling condition, tunnel diameter, and conveyance length. Length of penstock is estimated as equal to the mean gross head. | D138: No | E138: Disabled | F138: Enabled | G138: cost per LF = a*penstock_diameter^2 + b*penstock_diameter +c; a, b & c varies by penstock length and diameter. | H138: Length of penstock is assumed to be equal to mean gross head height. | I138: EPRI GS6999 - P.NO. 6-55
A139: Draft Tube Tunnels | B139: Cost Component | C139: Estimated cost per linear foot of tunnel based on the tunneling condition, tunnel diameter, and conveyance length. Length is assumed to be 200 ft based on EPRI guidance. | D139: No | E139: Disabled | F139: Enabled | G139: cost per LF = a*draft_tube_diameter^2 + b*draft_tube_diameter + c; a, b & c varies by draft tube length and diameter. | H139: Only applicable if underground powerstaion is assumed. Length is assumed to be 200 ft based on EPRI guidance. | I139: EPRI GS6999 - P.NO. 6-55
A140: Tailrace Tunnels | B140: Cost Component | C140: Estimated cost per linear foot of tunnel based on the tunneling condition, tunnel diameter, and conveyance length. Length of tailrace tunnels is half the remaining horizontal conveyance length after subtracting penstock, draft tube, and tailrace. | D140: No | E140: Disabled | F140: Enabled | G140: cost per LF = a*tunnel_diameter^2 + b*tunnel_diameter + c; a, b & c varies by tunnel length and diameter. | H140: Only applicable if underground powerstaion is assumed. Length is assumed to be half the horizontal conveyance length after subtracting penstock and draft tube length. | I140: EPRI GS6999 - P.NO. 6-53
A141: Surface Penstock | B141: Cost Component | C141: When a surface penstock is used, cost is based on estimated penstock length using no. of units, penstock diameter, and the cost per feet of penstock from EPRI cost curves that account for penstock diameter and head height. | D141: No | E141: Enabled | F141: Enabled | G141: cost per LF = a*tunnel_diameter^b; a & b varies by tunnel length and diameter. | H141: Only applicable if surface penstock is used. | I141: EPRI GS6999 - P.NO. 6-56
A142: Powerstation Equipment | B142: Cost Component | C142: Set of all cost components listed under "Powerstation Equipment". | D142: No
A143: Pump/Motors | B143: Cost Component | C143: For small systems, the cost of pumps/motors is itemized and estimated based on the mean pump discharge. | D143: No | E143: Enabled | F143: Disabled | G143: cost of pump/motors =[ 0.7799*(mean_pump_discharge in gal/min)^0.7442]*1000 | I143: EPRI 2011, ORNL 2015
A144: Generator/Turbines | B144: Cost Component | C144: For small systems, the cost of generator/turbine units is estimated based on the max plant generation capacity and head height. | D144: No | E144: Enabled | F144: Disabled | G144: cost per kW=a*max_plant_capacity^b; a & b varies by head height. | I144: EPRI 2011, ORNL 2015
A145: Total Powerstation | B145: Cost Component | C145: For large systems, the total cost of pumps/motors and generators/turbines is estimated with an EPRI cost curve based on the power station type, no.of turbine units, and estimated generator unit rating for different head height. | D145: No | E145: Disabled | F145: Enabled | G145: cost per kW = a*(mean_gross_head)^2 - b*(mean_gross_head) + c; a, b, and c varies by powerstation type, generator unit rating and no. of units. | I145: EPRI GS6999 - P.NO. 6-57 to 6-64
A146: Roads, Railroads, Bridges, and Access | B146: Cost Component | C146: Set of all cost components listed under "Roads, Railroads, Bridges, and Access". | D146: No
A147: Access Roads | B147: Cost Component | C147: Cost to construct access roads is estimated using EPRI cost data based on the cost per mile value assigned for different terrain type and road type. | D147: No | I147: EPRI GS6999 - P.NO. 6-22
A148: Access Tunnels | B148: Cost Component | C148: The access tunnel cost is the product of the cost per linear foot to construct access tunnels and the length of the access tunnels. | D148: No | G148: cost per LF = 2489.4*(access_tunnel_length)^0.118 | H148: Cost included only for underground powerstaion. | I148: EPRI GS6999 - P.NO. 6-65
A149: Highway Realignment | B149: Cost Component | C149: If any sort of highway realignment is required, an additional cost markup on the total cost of access roads is included. | D149: No | G149: total_cost = realignment_cost_fraction*total_cost_of_access_roads
A150: Switchyard | B150: Cost Component | C150: Cost of on-site electrical interconnection equipment is estimated using an EPRI cost curve based on the substation voltage and the number of generator units. | D150: No | G150: cost per switchyard = a*(number_of_units)^2 - b*(number_of_units) + c; a, b, and c varies by no. of generator units, and substation voltage. | I150: EPRI GS6999 - P.NO. 6-66
A151: Transmission Lines | B151: Cost Component | C151: Transmission cost per mile is estimated using an EPRI cost curve based on the transmisison voltage and maximum plant generation capacity. The cost also changes by selected transmission type and transmission terrain type. | D151: No | G151: cost per transmission mile = ( a*(max_plant_gen_power)^2 - b*(max_plant_gen_power) + c)*transmission_terrain_multiplier*transmission_circuit_multiplier; a, b, and c varies by no. of generator units, and substation voltage. | I151: EPRI GS6999 - P.NO. 6-67
A152: Others | B152: Cost Component | C152: Set of all cost components listed under "Others". | D152: No
A153: Water Supply | B153: Cost Component | C153: If water supply is required then we estimate cost of water supply by multiplying the total plant capacity by the $/kW water supply cost assumed in the inputs/assumptions section. Alternatively, an override qty cost in $ can be assumed. | D153: No | H153: Highly variable and site-dependent.
A154: Indirect Costs | B154: Cost Component | C154: Set of all cost components listed under "Indirect Costs". | D154: No
A155: Mobilization/Demobilization | B155: Cost Component | C155: Total cost of mobilization/demobilization of equipment & labor in is equal to mobilization/dembilization rate times the total cost to install the PSH system. It includes all costs of establishing and dismantling the construction site, such as transporting and setting up equipment, creating temporary facilities, utilities, and access roads, site preparation and security, and eventual demobilization and site restoration at project completion. | D155: No
A156: Sales Tax | B156: Cost Component | C156: Total sales tax is equal to sales tax rate times the total cost to install the PSH system times the material/equipment percentage factor input. It includes state and local taxes applied to construction materials and equipment purchases. | D156: No
A157: Contingency | B157: Cost Component | C157: Total contingency is equal to continengency markup factor times the total cost to install the PSH system. This allowance covers uncertain or unforeseen costs that may arise during design and construction, such as quantity variations, design modifications, site condition changes, or schedule delays. It does not represent an expected cost but rather a prudent reserve to account for the normal level of uncertainty inherent in project development. | D157: No
A158: EPC Cost | B158: Cost Component | C158: Total engineering, procurement, construction services (EPC) cost is equal to EPC markup rate times the total cost to install the PSH system. It includes all professional services needed to design, procure, and manage construction. This covers detailed engineering and design work, purchasing and vendor coordination, construction management and supervision, quality assurance, scheduling, cost control, safety programs, and support for testing and commissioning. | D158: No
A159: Developer Cost | B159: Cost Component | C159: Total developer cost is equal to developer markup rate times the total cost to install the PSH system. It includes the owner’s or developer’s indirect expenses that occur outside of direct construction. It covers project development, permitting, environmental studies, licensing, land acquisition, legal and financial services, project management, stakeholder coordination, and oversight of construction and commissioning. | D159: No
A160: Overhead & Profit | B160: Cost Component | C160: Total overhead & installer profit is equal to the overhead and profit markup times the total cost to install the PSH system. It includes the contractor’s corporate and project-level overhead, insurance, bonding, and administrative expenses, along with their profit margin on the work. It covers the costs of managing the business, field supervision not tied to a specific activity, and the contractor’s return for assuming construction risk. | D160: No
A161: Total Direct and Indirect Cost | B161: Cost Component | C161: Sum of total cost in $ across all cost components. | D161: No
A162: $/kW (Max. Power Capacity) | B162: Cost Component | C162: Tht total cost divided by the max power generation capacity in kW. | D162: No
A163: $/kWh (Max. Energy Capacity) | B163: Cost Component | C163: The total cost divided by the max energy storage capacity in kWh based on the max power generation capacity and the generation time. | D163: No

Sheet Cost Model L-PSH
B6: Inputs & Assumptions | F6: Cost Components | G6: Include in Total? (Yes or No - User Option) | H6: Unit | I6: Qty | J6: Base Unit Cost ($/unit) (Includes material, equipment rental, installation labor) | K6: Locational Factor | L6: CPI + MAF Composite Factor (2022) | M6: USBR Adjustment Factor (2024) | N6: Adjusted Unit Cost ($) | O6: Override Qty | P6: Override Unit Cost ($) | Q6: Total Component Cost ($) | R6: % of total cost (component) | S6: % of total cost (category)
B8: Site Related | F8: Land and Land Rights | G8: Yes | H8: Acres | I8: =IF(G8="Yes",IF(O8,O8,C20),0) -> 2185 | J8: =IFERROR(VLOOKUP(C9,'Land Value Data'!$A$3:$G$51,7,FALSE),'Land Value Data'!G51) -> 3093.333333 | K8: 1 | L8: =IF(C54="Yes",'Market Adj Factors'!C48,1) -> 1.15767172 | M8: 1 | N8: =IF(P8,P8,J8*K8*L8*M8) -> 3581.064521 | O8: 0 | P8: 0 | Q8: =I8*N8 -> 7824625.978 | R8: =Q8/$Q$53 -> 0.002780996907 | S8: =R8 -> 0.002780996907
B9: Location | C9: United States | D9: #
B10: Avg. Max Upper Reservoir Depth | C10: 101 | D10: feet | F10: Powerplant Structure | G10: Yes | H10: kW | I10: =IF(G10="Yes",IF(O10,O10,C108*1000),0) -> 1283327.859 | J10: =VLOOKUP(C51,'Cost Curves L-PSH'!AO205:AQ206,3,FALSE)*IF(P10,P10,IF(AND(C46="Average",C47="Underground"),IF(C110<=80,IF(C109<=2,'Cost Curves L-PSH'!B11,IF(AND(C109>2,C109<=3),'Cost Curves L-PSH'!C11,IF(AND(C109>3,C109<=4),'Cost Curves L-PSH'!D11,IF(C109>4,'Cost Curves L-PSH'!E11)))),IF(AND(C110>80,C110<=125),IF(C109<=2,'Cost Curves L-PSH'!B53,IF(AND(C109>2,C109<=3),'Cost Curves L-PSH'!C53,IF(AND(C109>3,C109<=4),'Cost Curves L-PSH'!D53,IF(C109>4,'Cost Curves L-PSH'!E53)))),IF(AND(C110>125,C110<=225),IF(C109<=2,'Cost Curves L-PSH'!L53,IF(AND(C109>2,C109<=3),'Cost Curves L-PSH'!M53,IF(AND(C109>3,C109<=4),'Cost Curves L-PSH'!N53,IF(C109>4,'Cost Curves L-PSH'!O53)))),IF(C110>225,IF(C109<=2,'Cost Curves L-PSH'!L11,IF(AND(C109>2,C109<=3),'Cost Curves L-PSH'!M11,IF(AND(C109>3,C109<=4),'Cost Curves L-PSH'!N11,IF(C109>4,'Cost Curves L-PSH'!O11)))))))),IF(AND(C46="Adverse",C47="Underground"),IF(C110<=80,IF(C109<=2,'Cost Curves L-PSH'!F11,IF(AND(C109>2,C109<=3),'Cost Curves L-PSH'!G11,IF(AND(C109>3,C109<=4),'Cost Curves L-PSH'!H11,IF(C109>4,'Cost Curves L-PSH'!I11)))),IF(AND(C110>80,C110<=125),IF(C109<=2,'Cost Curves L-PSH'!F53,IF(AND(C109>2,C109<=3),'Cost Curves L-PSH'!G53,IF(AND(C109>3,C109<=4),'Cost Curves L-PSH'!H53,IF(C109>4,'Cost Curves L-PSH'!I53)))),IF(AND(C110>125,C110<=225),IF(C109<=2,'Cost Curves L-PSH'!P53,IF(AND(C109>2,C109<=3),'Cost Curves L-PSH'!Q53,IF(AND(C109>3,C109<=4),'Cost Curves L-PSH'!R53,IF(C109>4,'Cost Curves L-PSH'!S53)))),IF(C110>225,IF(C109<=2,'Cost Curves L-PSH'!P11,IF(AND(C109>2,C109<=3),'Cost Curves L-PSH'!Q11,IF(AND(C109>3,C109<=4),'Cost Curves L-PSH'!R11,IF(C109>4,'Cost Curves L-PSH'!S11)))))))),IF(AND(C46="Average",C47="Surface"),IF(C110<=80,IF(C109<=2,'Cost Curves L-PSH'!V11,IF(AND(C109>2,C109<=3),'Cost Curves L-PSH'!W11,IF(AND(C109>3,C109<=4),'Cost Curves L-PSH'!X11,IF(C109>4,'Cost Curves L-PSH'!Y11)))),IF(AND(C110>80,C110<=125),IF(C109<=2,'Cost Curves L-PSH'!V53,IF(AND(C109>2,C109<=3),'Cost Curves L-PSH'!W53,IF(AND(C109>3,C109<=4),'Cost Curves L-PSH'!X53,IF(C109>4,'Cost Curves L-PSH'!Y53)))),IF(AND(C110>125,C110<=225),IF(C109<=2,'Cost Curves L-PSH'!AF53,IF(AND(C109>2,C109<=3),'Cost Curves L-PSH'!AG53,IF(AND(C109>3,C109<=4),'Cost Curves L-PSH'!AH53,IF(C109>4,'Cost Curves L-PSH'!AI53)))),IF(C110>225,IF(C109<=2,'Cost Curves L-PSH'!AF11,IF(AND(C109>2,C109<=3),'Cost Curves L-PSH'!AG11,IF(AND(C109>3,C109<=4),'Cost Curves L-PSH'!AH11,IF(C109>4,'Cost Curves L-PSH'!AI11)))))))),IF(AND(C46="Adverse",C47="Surface"),IF(C110<=80,IF(C109<=2,'Cost Curves L-PSH'!Z11,IF(AND(C109>2,C109<=3),'Cost Curves L-PSH'!AA11,IF(AND(C109>3,C109<=4),'Cost Curves L-PSH'!AB11,IF(C109>4,'Cost Curves L-PSH'!AC11)))),IF(AND(C110>80,C110<=125),IF(C109<=2,'Cost Curves L-PSH'!Z53,IF(AND(C109>2,C109<=3),'Cost Curves L-PSH'!AA53,IF(AND(C109>3,C109<=4),'Cost Curves L-PSH'!AB53,IF(C109>4,'Cost Curves L-PSH'!AC53)))),IF(AND(C110>125,C110<=225),IF(C109<=2,'Cost Curves L-PSH'!AJ53,IF(AND(C109>2,C109<=3),'Cost Curves L-PSH'!AK53,IF(AND(C109>3,C109<=4),'Cost Curves L-PSH'!AL53,IF(C109>4,'Cost Curves L-PSH'!AM53)))),IF(C110>225,IF(C109<=2,'Cost Curves L-PSH'!AJ11,IF(AND(C109>2,C109<=3),'Cost Curves L-PSH'!AK11,IF(AND(C109>3,C109<=4),'Cost Curves L-PSH'!AL11,IF(C109>4,'Cost Curves L-PSH'!AM11))))))))))))) -> 39.05977874 | K10: =VLOOKUP(C9,'Locational Adj Factors'!$A$3:$B$55,2,FALSE)/100 -> 1 | L10: =IF(C54="Yes",'Market Adj Factors'!U61,1) -> 3.133 | M10: ='Market Adj Factors'!X61 -> 1.066666667 | N10: =IF(P10,P10,J10*K10*L10*M10) -> 130.5325726 | O10: 0 | P10: 0 | Q10: =N10*I10 -> 167516086.9 | R10: =Q10/$Q$53 -> 0.05953788985 | S10: =R10 -> 0.05953788985
B11: Upper Reservoir Area | C11: 191 | D11: acres
B12: Avg. Max Lower Reservoir Depth | C12: 120 | D12: feet | F12: Reservoirs, Dams, and Waterways
B13: Lower Reservoir Area | C13: 163 | D13: acres | F13: Upper Reservoir Dam and Spillway | G13: Yes | H13: CY | I13: =IF(G13="Yes",IF(O13,O13,C86),0) -> 327938 | J13: ='Cost Curves L-PSH'!J95 -> 7.916642136 | K13: =VLOOKUP(C9,'Locational Adj Factors'!$A$3:$B$55,2,FALSE)/100 -> 1 | L13: =IF(C54="Yes",'Market Adj Factors'!U62,1) -> 3.374 | M13: ='Market Adj Factors'!X62 -> 1.068432671 | N13: =IF(P13,P13,J13*K13*L13*M13) -> 28.53863857 | O13: 0 | P13: 0 | Q13: =IF(C50="Earthfill",N13*I13,IF(C50="Rockfill",0.787*N13*I13+39700000,IF(C50="RCC",11.389*(N13*I13)))) -> 106588558.3 | R13: =Q13/$Q$53 -> 0.03788327414 | S13: =SUM(R13:R18) -> 0.1344652444
B14: Nominal (Max) Head | C14: 1560 | D14: feet | F14: Upper Reservoir Intake/Outlet | G14: Yes | H14: # | I14: =IF(G14="Yes",IF(O14,O14,C96),0) -> 1 | J14: =IF(C44="Horizontal",'Cost Curves L-PSH'!P88,IF('Cost Model L-PSH'!C44="Vertical",'Cost Curves L-PSH'!P91))*1000000 -> 1483197.022 | K14: =VLOOKUP(C9,'Locational Adj Factors'!$A$3:$B$55,2,FALSE)/100 -> 1 | L14: =IF(C54="Yes",IF(C44="Horizontal",'Market Adj Factors'!U63,'Market Adj Factors'!U63),1) -> 4.82 | M14: ='Market Adj Factors'!X63 -> 1.041916168 | N14: =IF(P14,P14,J14*K14*L14*M14) -> 7448668.734 | O14: 0 | P14: 0 | Q14: =N14*I14 -> 7448668.734 | R14: 0.002647375705
B15: Total Conveyance Length (vert+horiz) | C15: 14394 | D15: feet | F15: Surge Facilities | G15: Yes | H15: LS | I15: =IF(G15="Yes",IF(O15,O15,IF(C99="Yes",40%,0%)),0) -> 0.4 | J15: NA | N15: NA | O15: 0 | P15: NA | Q15: =I15*SUM(Q21:Q26) -> 109425125.1 | R15: 0.03889143525
B16: Avg. Upper Dam Height | C16: 120 | D16: ft | F16: Lower Reservoir Intake/Outlet | G16: Yes | H16: # | I16: =IF(G16="Yes",IF(C47="Underground",IF(O16,O16,C96),0)) -> 1 | J16: =IF(C45="Horizontal",'Cost Curves L-PSH'!P88,IF('Cost Model L-PSH'!C45="Vertical",'Cost Curves L-PSH'!P91))*1000000 -> 6772936.112 | K16: =VLOOKUP(C9,'Locational Adj Factors'!$A$3:$B$55,2,FALSE)/100 -> 1 | L16: =IF(C54="Yes",IF(C45="Horizontal",'Market Adj Factors'!U64,'Market Adj Factors'!U64),1) -> 3.133 | M16: ='Market Adj Factors'!X64 -> 1.041916168 | N16: =IF(P16,P16,J16*K16*L16*M16) -> 22109053.52 | O16: 0 | P16: 0 | Q16: =N16*I16 -> 22109053.52 | R16: 0.00785791035
B17: Upper Dam Crest Length | C17: 1300 | D17: ft | F17: Lower Reservoir Dam and Spillway | G17: Yes | H17: CY | I17: =IF(G17="Yes",IF(O17,O17,C87),0) -> 184954 | J17: ='Cost Curves L-PSH'!J96 -> 8.350862416 | K17: =VLOOKUP(C9,'Locational Adj Factors'!$A$3:$B$55,2,FALSE)/100 -> 1 | L17: =IF(C54="Yes",'Market Adj Factors'!U62,1) -> 3.374 | M17: ='Market Adj Factors'!X62 -> 1.068432671 | N17: =IF(P17,P17,J17*K17*L17*M17) -> 30.10395571 | O17: 0 | P17: 0 | Q17: =IF(C50="Earthfill",N17*I17,IF(C50="Rockfill",0.787*N17*I17+39700000,IF(C50="RCC",11.389*N17*I17))) -> 63412209.77 | R17: 0.02253771103
B18: Avg. Lower Dam Height | C18: 60 | D18: ft | F18: Upper & Lower Reservoir Liner | G18: Yes | H18: Sq.Ft | I18: =IF(G18="Yes",IF(O18,O18,(SQRT(((C16^2)*(C17/2)^2)+((C16^2)*((2*C11*C26)/C17)^2)+(((C17/2)^2)*((2*C11*C26)/C17)^2))+SQRT(((C18^2)*(C19/2)^2)+((C18^2)*((2*C13*C26)/C19)^2)+(((C19/2)^2)*((2*C13*C26)/C19)^2)))),0) -> 15603396.41 | J18: =IFERROR(VLOOKUP(C49,'Cost Curves L-PSH'!AE241:AG243,3,FALSE),0) -> 4.444444444 | K18: =VLOOKUP(C9,'Locational Adj Factors'!$A$3:$B$55,2,FALSE)/100 -> 1 | L18: 1 | M18: 1 | N18: =IF(P18,P18,J18*K18*L18*M18) -> 4.444444444 | O18: 0 | P18: 0 | Q18: =N18*I18 -> 69348428.5 | R18: 0.02464753788
B19: Lower Dam Crest Length | C19: 1100 | D19: ft
B20: Acreage to be acquired | C20: 2185 | D20: acres | F20: Water Conductors
B21: Generation Time | C21: 18.5 | D21: hours | F21: Upper Low & High Pressure Tunnels | G21: Yes | H21: Ft | I21: =IF(G21="Yes",IF(O21,O21,(C15-C92-I23/C109-I24/C109)*0.5),0)*$C$96 -> 6268.25 | J21: =IF(C34="Average",IF(I21*C25<=0.5,'Cost Curves L-PSH'!V95,IF(AND(I21*C25>0.5,I21*C25<=1),'Cost Curves L-PSH'!W95,IF(AND(I21*C25>1,I21*C25<=2),'Cost Curves L-PSH'!X95,IF(I21*C25>2,'Cost Curves L-PSH'!Y95)))),IF(C34="Poor",IF(I21*C25<=0.5,'Cost Curves L-PSH'!Z95,IF(AND(I21*C25>0.5,I21*C25<=1),'Cost Curves L-PSH'!AA95,IF(AND(I21*C25>1,I21*C25<=2),'Cost Curves L-PSH'!AB95,IF(I21*C25>2,'Cost Curves L-PSH'!AC95)))))) -> 3667.29491 | K21: =VLOOKUP(C9,'Locational Adj Factors'!$A$3:$B$55,2,FALSE)/100 -> 1 | L21: =IF(C54="Yes",'Market Adj Factors'!U67,1) -> 3.856 | M21: ='Market Adj Factors'!X67 -> 1.079051383 | N21: =IF(P21,P21,J21*K21*L21*M21) -> 15258.96183 | P21: 0 | Q21: =N21*I21 -> 95646987.51 | R21: =Q21/$Q$53 -> 0.03399446532 | S21: =SUM(R21:R26) -> 0.09722858812
F22: Vertical Shafts | G22: Yes | H22: Ft | I22: =IF(G22="Yes",IF(O22,O22,C92),0)*$C$96 -> 1326 | J22: ='Cost Curves L-PSH'!AI90 -> 4761.618524 | K22: =VLOOKUP(C9,'Locational Adj Factors'!$A$3:$B$55,2,FALSE)/100 -> 1 | L22: =IF(C54="Yes",'Market Adj Factors'!U66,1) -> 4.338 | M22: ='Market Adj Factors'!X66 -> 1.079051383 | N22: =IF(P22,P22,J22*K22*L22*M22) -> 22288.77872 | P22: 0 | Q22: 29554920.58 | R22: 0.0105042903
B23: Unit Conversion Factors and Constants | F23: Penstock Tunnels | G23: Yes | H23: Ft | I23: =IF(G23="Yes",IF(C48="Underground",IF(O23,O23,C92*0.25),0))*$C$109 -> 1326 | J23: =IF(C14<=500,'Cost Curves L-PSH'!B131,IF(AND(C14>500,C14<=1000),'Cost Curves L-PSH'!C131,IF(AND(C14>1000,C14<=1500),'Cost Curves L-PSH'!D131,IF(C14>1500,'Cost Curves L-PSH'!E131)))) -> 4825.825179 | K23: =VLOOKUP(C9,'Locational Adj Factors'!$A$3:$B$55,2,FALSE)/100 -> 1 | L23: =IF($C$54="Yes",'Market Adj Factors'!U67,1) -> 3.856 | M23: ='Market Adj Factors'!X67 -> 1.079051383 | N23: 20079.40022 | P23: 0 | Q23: 26625284.69 | R23: 0.009463050961
B24: Meter to Feet | C24: 3.28084 | D24: feet | F24: Draft Tube Tunnels | G24: Yes | H24: Ft | I24: =IF(C47="Underground",IF(G24="Yes",IF(O24,O24,200),0),0)*$C$109 -> 800 | J24: =IF(C47="Underground",IF(C14-C91<=500,'Cost Curves L-PSH'!B132,IF(AND(C14-C91>500,C14-C91<=1000),'Cost Curves L-PSH'!C132,IF(AND(C14-C91>1000,C14-C91<=1500),'Cost Curves L-PSH'!D132,IF(C14-C91>1500,'Cost Curves L-PSH'!E132)))),0) -> 6600.070269 | K24: =VLOOKUP($C$9,'Locational Adj Factors'!$A$3:$B$55,2,FALSE)/100 -> 1 | L24: =IF($C$54="Yes",'Market Adj Factors'!U69,1) -> 4.579 | M24: ='Market Adj Factors'!X69 -> 1.079051383 | N24: 32610.79067 | P24: 0 | Q24: =N24*I24 -> 26088632.54 | R24: 0.009272316224
B25: Feet to Miles | C25: 0.000189394 | D25: miles | F25: Tailrace Tunnels | G25: Yes | H25: Ft | I25: =IF(G25="Yes",IF(O25,O25,(C15-C92-I23/C109-I24/C109)*0.5),0)*$C$96 -> 6268.25 | J25: =IF(C34="Average",IF(I25*C25<=0.5,'Cost Curves L-PSH'!V95,IF(AND(I25*C25>0.5,I25*C25<=1),'Cost Curves L-PSH'!W95,IF(AND(I25*C25>1,I25*C25<=2),'Cost Curves L-PSH'!X95,IF(I25*C25>2,'Cost Curves L-PSH'!Y95)))),IF(C34="Poor",IF(I25*C25<=0.5,'Cost Curves L-PSH'!Z95,IF(AND(I25*C25>0.5,I25*C25<=1),'Cost Curves L-PSH'!AA95,IF(AND(I25*C25>1,I25*C25<=2),'Cost Curves L-PSH'!AB95,IF(I25*C25>2,'Cost Curves L-PSH'!AC95)))))) -> 3667.29491 | K25: =VLOOKUP($C$9,'Locational Adj Factors'!$A$3:$B$55,2,FALSE)/100 -> 1 | L25: =IF($C$54="Yes",'Market Adj Factors'!U67,1) -> 3.856 | M25: ='Market Adj Factors'!X67 -> 1.079051383 | N25: 15258.96183 | P25: 0 | Q25: 95646987.51 | R25: 0.03399446532
B26: Ac. Ft to Cu. Ft or Ac. to Sq. Ft. | C26: 43560 | D26: cu.ft | F26: Surface Penstock | G26: Yes | H26: Ft | I26: =IF(G26="Yes",IF(O26,O26,IF(C48="Surface",C109*C92*0.25,0)),0) -> 0 | J26: =IF(OR(C107<100, C48="Surface"),IF(C14<=300,'Cost Curves L-PSH'!L131,IF(AND(C14>300,C14<=500),'Cost Curves L-PSH'!M131,IF(AND(C14>500,C14<=700),'Cost Curves L-PSH'!N131,IF(AND(C14>700,C14<=1000),'Cost Curves L-PSH'!O131,IF(C14>1000,'Cost Curves L-PSH'!P131))))),0) -> 0 | K26: =VLOOKUP($C$9,'Locational Adj Factors'!$A$3:$B$55,2,FALSE)/100 -> 1 | L26: =IF($C$54="Yes",IF(C48="Surface",'Market Adj Factors'!U65,'Market Adj Factors'!U68),1) -> 4.579 | M26: =IF(C48="Surface",'Market Adj Factors'!X65,'Market Adj Factors'!X68) -> 1.079051383 | N26: 0 | O26: 0 | P26: 0 | Q26: 0 | R26: 0
B27: Cu. Ft to Cu. Yd | C27: 1613.33 | D27: CY
B28: Hr to Sec | C28: 3600 | D28: s | F28: Powerstation Equipment
B29: MW to W | C29: 1000000 | D29: W | F29: Pump/Motors | G29: Yes | H29: LS | I29: =IF(G29="Yes",1,0) -> 1 | J29: =VLOOKUP(C51,'Cost Curves S-PSH'!$AO$205:$AQ$206,2,FALSE)*IF(C107>100,0,'Cost Curves L-PSH'!D365) -> 0 | K29: =VLOOKUP($C$9,'Locational Adj Factors'!$A$3:$B$55,2,FALSE)/100 -> 1 | L29: =IF($C$54="Yes",'Market Adj Factors'!U72,1) -> 4.097 | M29: ='Market Adj Factors'!X72 -> 1.090069284 | N29: =IF(P29,P29,J29*K29*L29*M29) -> 0 | O29: 0 | P29: 0 | Q29: =N29*I29 -> 0 | R29: =Q29/$Q$53 -> 0 | S29: =IF(AND(R29=0%,R30=0%),R31,IF(R31=0%,SUM(R29:R30))) -> 0.2102501984
B30: acceleration of gravity (metric) | C30: 9.81 | D30: m/s^2 | F30: Generator/Turbines | G30: Yes | H30: kW | I30: =IF(G30="Yes",IF(C107<=100,IF(O30,O30,I10),0),0) -> 0 | J30: =IF(C107>100,0,IF(C107<=100,'Cost Curves L-PSH'!E374,'Cost Curves L-PSH'!E378)) -> 0 | K30: =VLOOKUP($C$9,'Locational Adj Factors'!$A$3:$B$55,2,FALSE)/100 -> 1 | L30: =IF($C$54="Yes",'Market Adj Factors'!U72,1) -> 4.097 | M30: ='Market Adj Factors'!X72 -> 1.090069284 | N30: 0 | O30: 0 | P30: 0 | Q30: =N30*I30 -> 0 | R30: =Q30/$Q$53 -> 0
B31: density of water (metric) | C31: 1000 | D31: kg/m^2 | F31: Total Powerstation | G31: Yes | H31: kW | I31: =IF(G31="Yes",IF(C107>100,IF(O31,O31,C108*1000),0),0) -> 1283327.859 | J31: =VLOOKUP(C51,'Cost Curves L-PSH'!$AO$205:$AQ$206,2,FALSE)*IF(C107<=100,0,IF(C47="Underground", IF(C110<=80,IF(C109<=2,'Cost Curves L-PSH'!B171,IF(AND(C109>2,C109<=3),'Cost Curves L-PSH'!C171,IF(AND(C109>3,C109<=4),'Cost Curves L-PSH'!D171,IF(C109>4,'Cost Curves L-PSH'!E171)))),IF(AND(C110>80,C110<=125),IF(C109<=2,'Cost Curves L-PSH'!L171,IF(AND(C109>2,C109<=3),'Cost Curves L-PSH'!M171,IF(AND(C109>3,C109<=4),'Cost Curves L-PSH'!N171,IF(C109>4,'Cost Curves L-PSH'!O171)))),IF(AND(C110>125,C110<=225),IF(C109<=2,'Cost Curves L-PSH'!V171,IF(AND(C109>2,C109<=3),'Cost Curves L-PSH'!W171,IF(AND(C109>3,C109<=4),'Cost Curves L-PSH'!X171,IF(C109>4,'Cost Curves L-PSH'!Y171)))),IF(C110>225,IF(C109<=2,'Cost Curves L-PSH'!AF171,IF(AND(C109>2,C109<=3),'Cost Curves L-PSH'!AG171,IF(AND(C109>3,C109<=4),'Cost Curves L-PSH'!AH171,IF(C109>4,'Cost Curves L-PSH'!AI171)))))))),IF(C47="Surface", IF(C110<=80,IF(C109<=2,'Cost Curves L-PSH'!B213,IF(AND(C109>2,C109<=3),'Cost Curves L-PSH'!C213,IF(AND(C109>3,C109<=4),'Cost Curves L-PSH'!D213,IF(C109>4,'Cost Curves L-PSH'!E213)))),IF(AND(C110>80,C110<=125),IF(C109<=2,'Cost Curves L-PSH'!L213,IF(AND(C109>2,C109<=3),'Cost Curves L-PSH'!M213,IF(AND(C109>3,C109<=4),'Cost Curves L-PSH'!N213,IF(C109>4,'Cost Curves L-PSH'!O213)))),IF(AND(C110>125,C110<=225),IF(C109<=2,'Cost Curves L-PSH'!V213,IF(AND(C109>2,C109<=3),'Cost Curves L-PSH'!W213,IF(AND(C109>3,C109<=4),'Cost Curves L-PSH'!X213,IF(C109>4,'Cost Curves L-PSH'!Y213)))),IF(C110>225,IF(C109<=2,'Cost Curves L-PSH'!AF213,IF(AND(C109>2,C109<=3),'Cost Curves L-PSH'!AG213,IF(AND(C109>3,C109<=4),'Cost Curves L-PSH'!AH213,IF(C109>4,'Cost Curves L-PSH'!AI213))))))))))) -> 103.21476 | K31: =VLOOKUP($C$9,'Locational Adj Factors'!$A$3:$B$55,2,FALSE)/100 -> 1 | L31: =IF($C$54="Yes",'Market Adj Factors'!U72,1) -> 4.097 | M31: ='Market Adj Factors'!X72 -> 1.090069284 | N31: =IF(P31,P31,J31*K31*L31*M31) -> 460.9585484 | O31: 0 | P31: 0 | Q31: =N31*I31 -> 591560947.1 | R31: =Q31/$Q$53 -> 0.2102501984
B33: Condition Related | F33: Roads, Railroads, Bridges, and Access
B34: Tunneling Condition | C34: Average | D34: # | F34: Access Roads | G34: Yes | H34: Miles | I34: =IF(G34="Yes",IF(O34,O34,C38),0) -> 3.61 | J34: =INDEX('Cost Curves L-PSH'!W241:X243,MATCH('Cost Model L-PSH'!C35,'Cost Curves L-PSH'!V241:V243,0),MATCH('Cost Model L-PSH'!C36,'Cost Curves L-PSH'!W240:X240,0)) -> 189000 | K34: =VLOOKUP($C$9,'Locational Adj Factors'!$A$3:$B$55,2,FALSE)/100 -> 1 | L34: =IF($C$54="Yes",'Market Adj Factors'!U71,1) -> 2.41 | M34: ='Market Adj Factors'!X71 -> 1.043831169 | N34: =IF(P34,P34,J34*K34*L34*M34) -> 475454.6591 | O34: 0 | P34: 0 | Q34: =N34*I34 -> 1716391.319 | R34: =Q34/$Q$53 -> 0.0006100328583 | S34: =SUM(R34:R36) -> 0.01635340171
B35: Access Road, Terrain | C35: Flat | D35: # | F35: Access Tunnels | G35: Yes | H35: Ft | I35: =IF(G35="Yes",IF(C47="Surface",0,IF(O35,O35,C39*5280)),0) -> 6600 | J35: =IF(C47="Surface",0,'Cost Curves L-PSH'!D242) -> 2555.818837 | K35: =VLOOKUP($C$9,'Locational Adj Factors'!$A$3:$B$55,2,FALSE)/100 -> 1 | L35: =IF($C$54="Yes",'Market Adj Factors'!U70,1) -> 2.41 | M35: ='Market Adj Factors'!X70 -> 1.079051383 | N35: =IF(P35,P35,J35*K35*L35*M35) -> 6646.442244 | O35: 0 | P35: 0 | Q35: =N35*I35 -> 43866518.81 | R35: =Q35/$Q$53 -> 0.01559086063
B36: Access Road, Type | C36: New | D36: # | F36: Highway Realignment | G36: Yes | H36: % | I36: =IF(G36="Yes",IF(C37="Yes",25%,0%),0) -> 0.25 | O36: 0 | P36: NA | Q36: =Q34*I36 -> 429097.8298 | R36: =Q36/$Q$53 -> 0.0001525082146
B37: Highway Realignment | C37: Yes | D37: #
B38: Access Road | C38: 3.61 | D38: miles | F38: Switchyard | G38: Yes | H38: LS | I38: =IF(G38="Yes",1,0) -> 1 | J38: ='Cost Curves L-PSH'!Q248*1000000 -> 16726800 | K38: =VLOOKUP($C$9,'Locational Adj Factors'!$A$3:$B$55,2,FALSE)/100 -> 1 | L38: =IF($C$54="Yes",'Market Adj Factors'!U74,1) -> 2.41 | M38: ='Market Adj Factors'!X74 -> 1.063424947 | N38: =IF(P38,P38,J38*K38*L38*M38) -> 42868348.34 | O38: 0 | P38: 0 | Q38: =N38*I38 -> 42868348.34 | R38: =Q38/$Q$53 -> 0.01523609492 | S38: =R38 -> 0.01523609492
B39: Access Tunnel, Length | C39: 1.25 | D39: miles
B40: Water Supply = | C40: No | D40: # | F40: Transmission Lines | G40: Yes | H40: Miles | I40: =IF(G40="Yes",C64,0) -> 13.5 | J40: ='Cost Curves L-PSH'!G303*1000*C120*C121 -> 1150309.408 | K40: =VLOOKUP($C$9,'Locational Adj Factors'!$A$3:$B$55,2,FALSE)/100 -> 1 | L40: =IF($C$54="Yes",'Market Adj Factors'!U73,1) -> 3.133 | M40: ='Market Adj Factors'!X73 -> 1.050438596 | N40: =IF(P40,P40,J40*K40*L40*M40) -> 3785696.01 | O40: 0 | P40: 0 | Q40: =N40*I40 -> 51106896.13 | R40: =Q40/$Q$53 -> 0.01816420625 | S40: =R40 -> 0.01816420625
B41: Water Supply Cost = | C41: 100 | D41: $/ac-ft
F42: Others
B43: Technology Related | F43: Water Supply | G43: Yes | H43: ac-ft | I43: =IF(G43="Yes",IF(C40="Yes",C88,0),0) -> 0 | J43: =C41 -> 100 | K43: =VLOOKUP($C$9,'Locational Adj Factors'!$A$3:$B$55,2,FALSE)/100 -> 1 | L43: 1 | M43: 1 | N43: =IF(P43,P43,J43*K43*L43*M43) -> 100 | O43: 0 | P43: 0 | Q43: =N43*I43 -> 0 | R43: =Q43/$Q$53 -> 0 | S43: =SUM(R43:R44) -> 0
B44: U. Reservoir Intake/Outlet | C44: Vertical | D44: #
B45: L. Reservoir Intake/Outlet | C45: Horizontal | D45: # | F45: Indirect Costs
B46: Power Station Structure Geology | C46: Adverse | D46: # | F46: Mobilization/Demobilization | G46: Yes | H46: % | I46: =IF(G46="Yes",IF(O46,O46,C55),0) -> 0.05 | O46: 0 | P46: NA | Q46: =I46*SUM(Q8:Q43) -> 77939188.46 | R46: =Q46/$Q$53 -> 0.02770083102 | S46: =SUM(R46:R51) -> 0.4459833795
B47: Power Station | C47: Underground | D47: # | F47: Sales Tax | G47: Yes | H47: % | I47: =IF(G47="Yes",IF(O47,O47,C57),0) -> 0.06 | O47: 0 | P47: NA | Q47: =I47*C56*SUM(Q8:Q43) -> 70145269.61 | R47: 0.02493074792
B48: Penstock | C48: Underground | D48: # | F48: Contingency | G48: Yes | H48: % | I48: =IF(G48="Yes",IF(O48,O48,C58),0) -> 0.33 | O48: 0 | P48: NA | Q48: =SUM(Q8:Q43)*I48 -> 514398643.8 | R48: 0.1828254848
B49: Reservoir Liner | C49: Geomembrane Single Liner | D49: # | F49: EPC Cost | G49: Yes | H49: % | I49: =IF(G49="Yes",IF(O49,O49,C59),0) -> 0.28 | O49: 0 | P49: NA | Q49: =I49*SUM(Q8:Q43) -> 436459455.4 | R49: 0.1551246537
B50: Dam Type | C50: RCC | D50: # | F50: Developer Cost | G50: Yes | H50: % | I50: =IF(G50="Yes",IF(O50,O50,C60),0) -> 0.03 | O50: 0 | P50: NA | Q50: =SUM(Q8:Q43)*I50 -> 46763513.08 | R50: 0.01662049861
B51: Pump Type | C51: Fixed | D51: # | F51: Overhead & Profit | G51: Yes | H51: % | I51: 0.07 | O51: 0 | P51: NA | Q51: =SUM(Q8:Q43)*I51 -> 109114863.8 | R51: 0.03878116343
B53: Project Related | F53: Total Direct and Indirect Cost | Q53: =SUM(Q8:Q51) -> 2813604703 | R53: =SUM(R8:R51) -> 1 | S53: =SUM(S8:S51) -> 1
B54: Inflation Factor | C54: Yes | D54: #
B55: Mobilization/Demobilization = | C55: 0.05 | D55: % | F55: System Cost
B56: Material/Equipment % = | C56: 0.75 | D56: % | F56: Total Direct and Indirect Cost $ | G56: =Q53 -> 2813604703
B57: Sales Tax = | C57: 0.06 | D57: % | F57: $/kW (Max. Power Capacity) | G57: =G56/(C108*1000) -> 2192.428601
B58: Contingency = | C58: 0.33 | D58: % | F58: $/kWh (Max. Energy Capacity) | G58: =G56/(C108*C21*1000) -> 118.5096541
B59: EPC Cost = | C59: 0.28 | D59: %
B60: Developer Cost = | C60: 0.03 | D60: %
B61: Overhead & Profit = | C61: 0.07 | D61: %
B63: Transmission Related
B64: Transmission Distance = | C64: 13.5 | D64: miles
B65: Transmission = | C65: 500 | D65: kV
B66: Substation = | C66: 500 | D66: kV
B67: Transmission Terrain = | C67: Mountain | D67: #
B68: Transmission Type (# circuits) = | C68: Double | D68: #
B70: Project Related
B71: Active Storage = | C71: 0.85 | D71: x Gross Storage
B72: Hmin/Hmax = | C72: 0.7 | D72: #
B73: Hazen Williams C = | C73: 90 | D73: #
B74: P-T Efficiency = | C74: 0.88 | D74: %
B75: Max Tunnel Velocity = | C75: 23 | D75: fps
B76: Max Tunnel Dia = | C76: 35 | D76: feet
B77: Max Unit Capacity = | C77: 350 | D77: MW
B78: Min No. Units = | C78: 2 | D78: #
B79: Pump Time = | C79: =12/10 -> 1.2 | D79: x gen time
B81: Output Specifications
B82: Project Related
B83: Conveyance Length | C83: =C15*C25 -> 2.726137236 | D83: miles
B84: Avg. Upper Reservoir Volume = | C84: =C11*C10 -> 19291 | D84: ac-ft
B85: Avg. Lower Reservoir Volume = | C85: =C13*C12 -> 19560 | D85: ac-ft
B86: Total Upper Dam Volume = | C86: =IF(C50="Rockfill",'Cost Curves L-PSH'!AA284,IF(C50="Earthfill",'Cost Curves L-PSH'!S313,IF(C50="RCC",'Cost Curves L-PSH'!AB284))) -> 327938 | D86: CY
B87: Total Lower Dam Volume = | C87: =IF(C50="Rockfill",'Cost Curves L-PSH'!AA285,IF(C50="Earthfill",'Cost Curves L-PSH'!V313,IF(C50="RCC",'Cost Curves L-PSH'!AB285))) -> 184954 | D87: CY
B88: Active Storage = | C88: =C71*C84 -> 16397.35 | D88: ac-ft
B89: Energy Storage = | C89: =C107*C21 -> 18593.11546 | D89: MWh
B90: Mean Gen Discharge = | C90: =C88*C26/C21/C28 -> 10724.75324 | D90: cfs
B91: Min Gross Head = | C91: =C72*C14 -> 1092 | D91: feet
B92: Mean Gross Head = | C92: =(C91+C14)/2 -> 1326 | D92: feet
B93: Min Gen Discharge = | C93: =(C91/C$92)^0.5*C$90 -> 9732.554981 | D93: cfs
B94: Max Gen Discharge = | C94: =(C14/C$92)^0.5*C$90 -> 11632.62816 | D94: cfs
B95: Nominal Tunnel Dia = | C95: =((C94/C75)*4/PI())^0.5 -> 25.37640309 | D95: feet
B96: No. Tunnels = | C96: =IF(C95<C76,1,2) -> 1 | D96: #
B97: Adjusted Tunnel Dia = | C97: =((C94/C96/C75)*4/PI())^0.5 -> 25.37640309 | D97: feet
B98: L/H = | C98: =C15/C92 -> 10.85520362 | D98: #
B99: Surge Chambers | C99: =IF(C98>=7,"Yes","No") -> Yes | D99: #
B100: Min Gen Headloss = | C100: =4.73*C93^1.85/C$73^1.85/C$97^4.87*C$15 -> 57.06098781 | D100: feet
B101: Mean Gen Headloss = | C101: =4.73*C90^1.85/C$73^1.85/C$97^4.87*C$15 -> 68.28669674 | D101: feet
B102: Max Gen Headloss = | C102: =4.73*C94^1.85/C$73^1.85/C$97^4.87*C$15 -> 79.36400918 | D102: feet
B103: Net Head @ Min Gen Discharge = | C103: =C91-C100 -> 1034.939012 | D103: feet
B104: Net Head @ Mean Gen Discharge = | C104: =C92-C101 -> 1257.713303 | D104: feet
B105: Net Head @ Max Gen Discharge = | C105: =C$14-C102 -> 1480.635991 | D105: feet
B106: Min Plant Gen Power (Firm Capacity) = | C106: =C93*C103*C$74*$C$30*$C$31/$C$29*(1/C24)^4 -> 750.5041507 | D106: MW
B107: Mean Plant Gen Power = | C107: =C90*C104*C$74*$C$30*$C$31/$C$29*(1/C24)^4 -> 1005.033268 | D107: MW
B108: Max Plant Gen Power = | C108: =C94*C105*C$74*$C$30*$C$31/$C$29*(1/C24)^4 -> 1283.327859 | D108: MW
B109: No. Units = | C109: =IF(C108/C77<=C78,C78,ROUNDUP(C108/C77,0)) -> 4 | D109: #
B110: Unit Rating = | C110: =C108/C109 -> 320.8319648 | D110: MW
B111: Max Penstock Velocity = | C111: ='Cost Curves L-PSH'!V130 -> 28.056 | D111: fps
B112: Max Draft Tube Tunnel Velocity = | C112: ='Cost Curves L-PSH'!AA130 -> 9.6688 | D112: fps
B113: Penstock Dia = | C113: =((C94/(C111*C109))*4/PI())^0.5 -> 11.48817679 | D113: feet
B114: Draft Tube Tunnel Dia = | C114: =((C94/(C112*C109))*4/PI())^0.5 -> 19.56940846 | D114: feet
B115: Pump Time = | C115: =C79*C21 -> 22.2 | D115: hrs
B116: Mean Pump Discharge = | C116: =C88*C26/C115/3600 -> 8937.294369 | D116: cfs
B117: Mean Pump Headloss = | C117: =4.73*C116^1.85/C73^1.85/C97^4.87*C15 -> 48.73610303 | D117: feet
B118: Mean Pump Net Head = | C118: =C92+C117 -> 1374.736103 | D118: feet
B119: Mean Pump Power = | C119: =C116*C118*C74*$C$30*$C$31/$C$29*(1/C24)^4 -> 915.4547352 | D119: MW
B120: Tranmission Terrain Multiplier = | C120: =VLOOKUP(C67,'Cost Curves L-PSH'!H276:I284,2,FALSE) -> 1.75 | D120: #
B121: Tranmission Type Multiplier = | C121: =IF(C68="Double",'Cost Curves L-PSH'!I287,1) -> 1.600469629 | D121: #
Z284: =(0.00006*('Cost Model L-PSH'!C16)^2 + 0.017*'Cost Model L-PSH'!C16 - 0.7412)*'Cost Model L-PSH'!C17*1000 -> 2811640
S312: =(0.0000905*('Cost Model L-PSH'!C16)^2 + 0.00386*('Cost Model L-PSH'!C16) + 0.0707)*1000 -> 1837.1

Sheet Cost Curves L-PSH
B1: Underground Powestation Structure Cost 80MW units | L1: Underground Powestation Structure Cost 350MW units | V1: Surface Powestation Structure Cost 80MW units | AF1: Surface Powestation Structure Cost 350MW units
B2: $/kW Average Conditions | F2: $/kW Adverse Conditions | L2: $/kW Average Conditions | P2: $/kW Adverse Conditions | V2: $/kW Average Conditions | Z2: $/kW Adverse Conditions | AF2: $/kW Average Conditions | AJ2: $/kW Adverse Conditions
A3: Average Head, Ft | B3: 2 Units | C3: 3 Units | D3: 4 Units | E3: 6 Units | F3: 2 Units | G3: 3 Units | H3: 4 Units | I3: 6 Units | K3: Average Head, Ft | L3: 2 Units | M3: 3 Units | N3: 4 Units | O3: 6 Units | P3: 2 Units | Q3: 3 Units | R3: 4 Units | S3: 6 Units | U3: Average Head, Ft | V3: 2 Units | W3: 3 Units | X3: 4 Units | Y3: 6 Units | Z3: 2 Units | AA3: 3 Units | AB3: 4 Units | AC3: 6 Units | AE3: Average Head, Ft | AF3: 2 Units | AG3: 3 Units | AH3: 4 Units | AI3: 6 Units | AJ3: 2 Units | AK3: 3 Units | AL3: 4 Units | AM3: 6 Units
A4: 350 | B4: 135 | C4: 116 | D4: 104 | E4: 92 | F4: 174 | G4: 145 | H4: 132 | I4: 118 | K4: 500 | L4: 78 | M4: 70 | N4: 62 | O4: 58 | P4: 98 | Q4: 84 | R4: 78 | S4: 70 | U4: 350 | V4: 84 | W4: 77 | X4: 72.5 | Y4: 67 | Z4: 112 | AA4: 95 | AB4: 87 | AC4: 78 | AE4: 350 | AF4: 38 | AG4: 35 | AH4: 32 | AI4: 30 | AJ4: 58 | AK4: 48.5 | AL4: 45 | AM4: 39
A5: 500 | B5: 113 | C5: 96 | D5: 86 | E5: 78 | F5: 150 | G5: 124 | H5: 113.5 | I5: 102 | K5: 1000 | L5: 48 | M5: 42 | N5: 37 | O5: 33 | P5: 62 | Q5: 52 | R5: 46 | S5: 42.25 | U5: 500 | V5: 84 | W5: 77.25 | X5: 74 | Y5: 68 | Z5: 113.5 | AA5: 96 | AB5: 89 | AC5: 79.5 | AE5: 500 | AF5: 36 | AG5: 34 | AH5: 30 | AI5: 28 | AJ5: 54 | AK5: 45 | AL5: 42 | AM5: 37
A6: 1000 | B6: 91 | C6: 76 | D6: 68 | E6: 60 | F6: 116 | G6: 98 | H6: 86 | I6: 76.5 | K6: 1500 | L6: 40.5 | M6: 34 | N6: 30 | O6: 26 | P6: 53 | Q6: 43 | R6: 39 | S6: 34.5 | U6: 1000 | V6: 87 | W6: 80 | X6: 76 | Y6: 74 | Z6: 118 | AA6: 102 | AB6: 93 | AC6: 85 | AE6: 1000 | AF6: 31 | AG6: 28 | AH6: 26 | AI6: 25 | AJ6: 45 | AK6: 40 | AL6: 37 | AM6: 34
A7: 1500 | B7: 81 | C7: 69 | D7: 59.5 | E7: 54 | F7: 103 | G7: 88 | H7: 77 | I7: 68.5 | K7: 2000 | L7: 36 | M7: 31 | N7: 26 | O7: 24 | P7: 45 | Q7: 39 | R7: 34.5 | S7: 26 | U7: 1500 | V7: 92.5 | W7: 86 | X7: 84 | Y7: 80 | Z7: 125 | AA7: 108 | AB7: 100 | AC7: 91.5 | AE7: 1500 | AF7: 30 | AG7: 27 | AH7: 26 | AI7: 25.25 | AJ7: 44.5 | AK7: 39 | AL7: 36 | AM7: 32
A8: 2000 | B8: 78 | C8: 63 | D8: 58 | E8: 50 | F8: 98 | G8: 82 | H8: 72 | I8: 62.5 | K8: 2250 | L8: 35 | M8: 30 | N8: 25 | O8: 23 | P8: 44 | Q8: 38 | R8: 33.5 | S8: 25 | U8: 2000 | V8: 102 | W8: 95 | X8: 92 | Y8: 87 | Z8: 134 | AA8: 116 | AB8: 106 | AC8: 98 | AE8: 2000 | AF8: 32 | AG8: 30 | AH8: 29 | AI8: 26 | AJ8: 46 | AK8: 41 | AL8: 38 | AM8: 34
A9: 2250 | B9: 77 | C9: 62 | D9: 57 | E9: 49 | F9: 97 | G9: 81 | H9: 71 | I9: 62 | U9: 2250 | V9: 105.5 | W9: 98 | X9: 95 | Y9: 90 | Z9: 137 | AA9: 119 | AB9: 109.5 | AC9: 100 | AE9: 2250 | AF9: 33 | AG9: 31 | AH9: 30 | AI9: 28 | AJ9: 48 | AK9: 42 | AL9: 39.5 | AM9: 35
B10: y = 740.12x-0.298 | C10: y = 760.42x-0.328 | D10: y = 645.72x-0.32 | E10: y = 640.28x-0.337 | F10: y = 1096.7x-0.319 | G10: y = 878.1x-0.313 | H10: y = 926.99x-0.337 | I10: y = 911.22x-0.352 | L10: y = 2032.8x-0.532 | M10: y = 2231.2x-0.565 | N10: y = 2553x-0.604 | O10: y = 2504.2x-0.615 | P10: y = 2613x-0.533 | Q10: y = 2154.7x-0.53 | R10: y = 2380.6x-0.559 | S10: y = 4996.8x-0.687 | V10: y = 5E-06x2 - 0.0009x + 83.095 | W10: y = 4E-06x2 + 0.0004x + 75.715 | X10: y = 4E-06x2 + 0.0021x + 71.437 | Y10: y = 6E-07x2 + 0.0109x + 62.383 | Z10: y = 3E-06x2 + 0.0062x + 109.48 | AA10: y = 1E-06x2 + 0.0099x + 90.767 | AB10: y = 2E-06x2 + 0.0073x + 84.676 | AC10: y = -1E-07x2 + 0.0123x + 73.167 | AF10: y = 6E-06x2 - 0.0183x + 43.547 | AG10: y = 7E-06x2 - 0.0198x + 41.489 | AH10: y = 6E-06x2 - 0.0162x + 36.672 | AI10: y = 5E-06x2 - 0.0128x + 33.573 | AJ10: y = 1E-05x2 - 0.0308x + 67.023 | AK10: y = 7E-06x2 - 0.0207x + 54.238 | AL10: y = 7E-06x2 - 0.0205x + 50.886 | AM10: y = 5E-06x2 - 0.0146x + 43.361
A11: Est. $/kW | B11: =740.12*('Cost Model L-PSH'!C14)^-0.298 -> 82.74676231 | C11: =760.42*('Cost Model L-PSH'!C14)^-0.328 -> 68.18811149 | D11: =645.72*('Cost Model L-PSH'!C14)^-0.32 -> 61.41074508 | E11: =640.28*('Cost Model L-PSH'!C14)^-0.337 -> 53.73867407 | F11: =1096.7*('Cost Model L-PSH'!C14)^-0.319 -> 105.070572 | G11: =878.1*('Cost Model L-PSH'!C14)^-0.313 -> 87.92167998 | H11: =926.99*('Cost Model L-PSH'!C14)^-0.337 -> 77.80223259 | I11: =911.22*('Cost Model L-PSH'!C14)^-0.352 -> 68.49255777 | K11: Est. $/kW | L11: =2032.8*('Cost Model L-PSH'!C14)^-0.532 -> 40.67732316 | M11: =2231.2*('Cost Model L-PSH'!C14)^-0.565 -> 35.02862606 | N11: =2553*('Cost Model L-PSH'!C14)^-0.604 -> 30.08870923 | O11: =2504.2*('Cost Model L-PSH'!C14)^-0.615 -> 27.22058054 | P11: =2613*('Cost Model L-PSH'!C14)^-0.533 -> 51.90437893 | Q11: =2154.7*('Cost Model L-PSH'!C14)^-0.53 -> 43.75531095 | R11: =2380.6*('Cost Model L-PSH'!C14)^-0.559 -> 39.05977874 | S11: =4996.8*('Cost Model L-PSH'!C14)^-0.687 -> 31.99008307 | U11: Est. $/kW | V11: =0.000005*('Cost Model L-PSH'!C14)^2 - 0.0009*('Cost Model L-PSH'!C14) + 83.095 -> 93.859 | W11: =0.000004*('Cost Model L-PSH'!C14)^2 + 0.0004*('Cost Model L-PSH'!C14) + 75.715 -> 86.0734 | X11: =0.000004*('Cost Model L-PSH'!C14)^2 + 0.0021*('Cost Model L-PSH'!C14) + 71.437 -> 84.4474 | Y11: =0.0000006*('Cost Model L-PSH'!C14)^2 + 0.0109*('Cost Model L-PSH'!C14) + 62.383 -> 80.84716 | Z11: =0.000003*('Cost Model L-PSH'!C14)^2 + 0.0062*('Cost Model L-PSH'!C14) + 109.48 -> 126.4528 | AA11: =0.000001*('Cost Model L-PSH'!C14)^2 + 0.0099*('Cost Model L-PSH'!C14) + 90.767 -> 108.6446 | AB11: =0.000002*('Cost Model L-PSH'!C14)^2 + 0.0073*('Cost Model L-PSH'!C14) + 84.676 -> 100.9312 | AC11: =-0.0000001*('Cost Model L-PSH'!C14)^2 + 0.0123*('Cost Model L-PSH'!C14) + 73.167 -> 92.11164 | AE11: Est. $/kW | AF11: =0.000006*('Cost Model L-PSH'!C14)^2 - 0.0183*('Cost Model L-PSH'!C14) + 43.547 -> 29.6006 | AG11: =0.000007*('Cost Model L-PSH'!C14)^2 - 0.0198*('Cost Model L-PSH'!C14) + 41.489 -> 27.6362 | AH11: =0.000006*('Cost Model L-PSH'!C14)^2 - 0.0162*('Cost Model L-PSH'!C14) + 36.672 -> 26.0016 | AI11: =0.000005*('Cost Model L-PSH'!C14)^2 - 0.0128*('Cost Model L-PSH'!C14) + 33.573 -> 25.773 | AJ11: =0.00001*('Cost Model L-PSH'!C14)^2 - 0.0308*('Cost Model L-PSH'!C14) + 67.023 -> 43.311 | AK11: =0.000007*('Cost Model L-PSH'!C14)^2 - 0.0207*('Cost Model L-PSH'!C14) + 54.238 -> 38.9812 | AL11: =0.000007*('Cost Model L-PSH'!C14)^2 - 0.0205*('Cost Model L-PSH'!C14) + 50.886 -> 35.9412 | AM11: =0.000005*('Cost Model L-PSH'!C14)^2 - 0.0146*('Cost Model L-PSH'!C14) + 43.361 -> 32.753
J35: f
B43: Underground Powestation Structure Cost 125MW units | L43: Underground Powestation Structure Cost 225MW units | V43: Surface Powestation Structure Cost 125MW units | AF43: Surface Powestation Structure Cost 225MW units
B44: $/kW Average Conditions | F44: $/kW Adverse Conditions | L44: $/kW Average Conditions | P44: $/kW Adverse Conditions | V44: $/kW Average Conditions | Z44: $/kW Adverse Conditions | AF44: $/kW Average Conditions | AJ44: $/kW Adverse Conditions
A45: Average Head, Ft | B45: 2 Units | C45: 3 Units | D45: 4 Units | E45: 6 Units | F45: 2 Units | G45: 3 Units | H45: 4 Units | I45: 6 Units | K45: Average Head, Ft | L45: 2 Units | M45: 3 Units | N45: 4 Units | O45: 6 Units | P45: 2 Units | Q45: 3 Units | R45: 4 Units | S45: 6 Units | U45: Average Head, Ft | V45: 2 Units | W45: 3 Units | X45: 4 Units | Y45: 6 Units | Z45: 2 Units | AA45: 3 Units | AB45: 4 Units | AC45: 6 Units | AE45: Average Head, Ft | AF45: 2 Units | AG45: 3 Units | AH45: 4 Units | AI45: 6 Units | AJ45: 2 Units | AK45: 3 Units | AL45: 4 Units | AM45: 6 Units
A46: 350 | B46: 123 | C46: 108 | D46: 97 | E46: 90 | F46: 158 | G46: 134 | H46: 122 | I46: 112 | K46: 350 | L46: 116 | M46: 100 | N46: 92 | O46: 83 | P46: 148 | Q46: 126 | R46: 116 | S46: 104 | U46: 350 | V46: 63 | W46: 56 | X46: 52 | Y46: 48 | Z46: 92 | AA46: 75.5 | AB46: 70 | AC46: 64 | AE46: 350 | AF46: 50 | AG46: 44 | AH46: 41 | AI46: 38 | AJ46: 73 | AK46: 61.5 | AL46: 56 | AM46: 50
A47: 500 | B47: 95 | C47: 83 | D47: 75 | E47: 68 | F47: 120 | G47: 103 | H47: 96 | I47: 86 | K47: 500 | L47: 95 | M47: 80 | N47: 73 | O47: 64 | P47: 116 | Q47: 100 | R47: 94 | S47: 83 | U47: 500 | V47: 62 | W47: 55 | X47: 52 | Y47: 48 | Z47: 90 | AA47: 76 | AB47: 71 | AC47: 64 | AE47: 500 | AF47: 46 | AG47: 41.5 | AH47: 38 | AI47: 36 | AJ47: 70 | AK47: 59 | AL47: 55 | AM47: 48
A48: 1000 | B48: 69 | C48: 58 | D48: 52 | E48: 48 | F48: 87 | G48: 74 | H48: 66 | I48: 58 | K48: 1000 | L48: 59 | M48: 52 | N48: 44 | O48: 40 | P48: 74 | Q48: 64 | R48: 55 | S48: 52 | U48: 1000 | V48: 60 | W48: 54 | X48: 53 | Y48: 49 | Z48: 90 | AA48: 78 | AB48: 74 | AC48: 66 | AE48: 1000 | AF48: 42 | AG48: 37 | AH48: 36 | AI48: 34.5 | AJ48: 64 | AK48: 55.5 | AL48: 51 | AM48: 46
A49: 1500 | B49: 63 | C49: 54 | D49: 46 | E49: 41 | F49: 79 | G49: 69 | H49: 62 | I49: 56 | K49: 1500 | L49: 46 | M49: 41 | N49: 36 | O49: 32 | P49: 60 | Q49: 50 | R49: 44 | S49: 40 | U49: 1500 | V49: 62 | W49: 56 | X49: 54.5 | Y49: 53 | Z49: 94 | AA49: 82 | AB49: 75.5 | AC49: 69 | AE49: 1500 | AF49: 44 | AG49: 40 | AH49: 37.5 | AI49: 36 | AJ49: 62 | AK49: 55 | AL49: 50 | AM49: 47
A50: 2000 | B50: 58 | C50: 50 | D50: 44 | E50: 39 | F50: 76 | G50: 64 | H50: 56 | I50: 52 | K50: 2000 | L50: 45 | M50: 38.75 | N50: 34 | O50: 30 | P50: 56 | Q50: 48 | R50: 43 | S50: 38 | U50: 2000 | V50: 66 | W50: 64 | X50: 59 | Y50: 56 | Z50: 98 | AA50: 85 | AB50: 80 | AC50: 74 | AE50: 2000 | AF50: 45 | AG50: 43 | AH50: 40 | AI50: 38 | AJ50: 64 | AK50: 56 | AL50: 53 | AM50: 49
A51: 2250 | B51: 56 | C51: 49 | D51: 43 | E51: 38 | F51: 74 | G51: 62 | H51: 54 | I51: 51 | K51: 2250 | L51: 45 | M51: 38.5 | N51: 33.75 | O51: 29.5 | P51: 57 | Q51: 48 | R51: 43 | S51: 38.5 | U51: 2250 | V51: 71 | W51: 66 | X51: 63 | Y51: 60 | Z51: 101 | AA51: 89 | AB51: 83 | AC51: 75 | AE51: 2250 | AF51: 46 | AG51: 44 | AH51: 41 | AI51: 38.5 | AJ51: 66 | AK51: 58 | AL51: 55 | AM51: 50
B52: y = 1229.6x-0.405 | C52: y = 1113.2x-0.412 | D52: y = 1126.8x-0.431 | E52: y = 1195.5x-0.454 | F52: y = 1435.5x-0.392 | G52: y = 1258x-0.396 | H52: y = 1375x-0.424 | I52: y = 1131x-0.41 | L52: y = 2163.3x-0.512 | M52: y = 1725.2x-0.501 | N52: y = 1735.2x-0.52 | O52: y = 1578.2x-0.524 | P52: y = 2315.8x-0.49 | Q52: y = 2194.6x-0.505 | R52: y = 2353.1x-0.53 | S52: y = 2162.4x-0.533 | V52: y = 7E-06x2 - 0.0146x + 67.574 | W52: y = 7E-06x2 - 0.0117x + 59.042 | X52: y = 5E-06x2 - 0.0065x + 54.377 | Y52: y = 3E-06x2 - 0.0018x + 48.04 | Z52: y = 4E-06x2 - 0.0039x + 90.761 | AA52: y = 2E-06x2 + 0.0008x + 75.02 | AB52: y = 2E-06x2 + 0.0002x + 70.655 | AC52: y = 2E-06x2 + 0.002x + 62.446 | AF52: y = 6E-06x2 - 0.0159x + 53.593 | AG52: y = 6E-06x2 - 0.0157x + 47.989 | AH52: y = 5E-06x2 - 0.0116x + 43.522 | AI52: y = 3E-06x2 - 0.0078x + 39.647 | AJ52: y = 8E-06x2 - 0.0241x + 80.261 | AK52: y = 5E-06x2 - 0.0155x + 65.884 | AL52: y = 6E-06x2 - 0.0165x + 61.35 | AM52: y = 4E-06x2 - 0.0099x + 52.44
A53: Est. $/kW | B53: =1229.6*('Cost Model L-PSH'!C14)^-0.405 -> 62.59626092 | C53: =1113.2*('Cost Model L-PSH'!C14)^-0.412 -> 53.82770494 | D53: =1126.8*('Cost Model L-PSH'!C14)^-0.431 -> 47.38164521 | E53: =1195.5*('Cost Model L-PSH'!C14)^-0.454 -> 42.4493469 | F53: =1435.5*('Cost Model L-PSH'!C14)^-0.392 -> 80.40783231 | G53: =1258*('Cost Model L-PSH'!C14)^-0.396 -> 68.42318722 | H53: =1375*('Cost Model L-PSH'!C14)^-0.424 -> 60.87204168 | I53: =1131*('Cost Model L-PSH'!C14)^-0.41 -> 55.49853506 | K53: Est. $/kW | L53: =2163.3*('Cost Model L-PSH'!C14)^-0.512 -> 50.14607616 | M53: =1725.2*('Cost Model L-PSH'!C14)^-0.501 -> 43.35947606 | N53: =1735.2*('Cost Model L-PSH'!C14)^-0.52 -> 37.92492651 | O53: =1578.2*('Cost Model L-PSH'!C14)^-0.524 -> 33.4938252 | P53: =2315.8*('Cost Model L-PSH'!C14)^-0.49 -> 63.10590458 | Q53: =2194.6*('Cost Model L-PSH'!C14)^-0.505 -> 53.55838252 | R53: =2353.1*('Cost Model L-PSH'!C14)^-0.53 -> 47.784203 | S53: =2162.4*('Cost Model L-PSH'!C14)^-0.533 -> 42.95370417 | U53: Est. $/kW | V53: =0.000007*('Cost Model L-PSH'!C14)^2 - 0.0146*('Cost Model L-PSH'!C14) + 67.574 -> 61.8332 | W53: =0.000007*('Cost Model L-PSH'!C14)^2 - 0.0117*('Cost Model L-PSH'!C14) + 59.042 -> 57.8252 | X53: =0.000005*('Cost Model L-PSH'!C14)^2 - 0.0065*('Cost Model L-PSH'!C14) + 54.377 -> 56.405 | Y53: =0.000003*('Cost Model L-PSH'!C14)^2 - 0.0018*('Cost Model L-PSH'!C14) + 48.04 -> 52.5328 | Z53: =0.000004*('Cost Model L-PSH'!C14)^2 - 0.0039*('Cost Model L-PSH'!C14) + 90.761 -> 94.4114 | AA53: =0.000002*('Cost Model L-PSH'!C14)^2 + 0.0008*('Cost Model L-PSH'!C14) + 75.02 -> 81.1352 | AB53: =0.000002*('Cost Model L-PSH'!C14)^2 + 0.0002*('Cost Model L-PSH'!C14) + 70.655 -> 75.8342 | AC53: =0.000002*('Cost Model L-PSH'!C14)^2 + 0.002*('Cost Model L-PSH'!C14)+ 62.446 -> 70.4332 | AE53: Est. $/kW | AF53: =0.000006*('Cost Model L-PSH'!C14)^2 - 0.0159*('Cost Model L-PSH'!C14) + 53.593 -> 43.3906 | AG53: =0.000006*('Cost Model L-PSH'!C14)^2 - 0.0157*('Cost Model L-PSH'!C14) + 47.989 -> 38.0986 | AH53: =0.000005*('Cost Model L-PSH'!C14)^2 - 0.0116*('Cost Model L-PSH'!C14)+ 43.522 -> 37.594 | AI53: =0.000003*('Cost Model L-PSH'!C14)^2 - 0.0078*('Cost Model L-PSH'!C14) + 39.647 -> 34.7798 | AJ53: =0.000008*('Cost Model L-PSH'!C14)^2 - 0.0241*('Cost Model L-PSH'!C14)+ 80.261 -> 62.1338 | AK53: =0.000005*('Cost Model L-PSH'!C14)^2 - 0.0155*('Cost Model L-PSH'!C14) + 65.884 -> 53.872 | AL53: =0.000006*('Cost Model L-PSH'!C14)^2 - 0.0165*('Cost Model L-PSH'!C14) + 61.35 -> 50.2116 | AM53: =0.000004*('Cost Model L-PSH'!C14)^2 - 0.0099*('Cost Model L-PSH'!C14) + 52.44 -> 46.7304
A85: Embankment Structure Cost $/CY | K85: Cost of Intakes/Outlets $M | V85: Cost of concrete lined water conductors | AE85: Cost of Vertical Shafts $/LF
A86: Average Dam Height, Ft | B86: Unit Volume CY/FT * 1000 | D86: Total Dam Volume (CY x 10^6) | E86: Unit Cost $/CY | F86: 1/x | G86: 1/y | H86: hyperbolic fit | K86: Water Conductor Diameter, Ft | L86: Horizontal Intake | M86: Vertical Intake | V86: $/LF Average Tunneling Conditions | Z86: $/LF Poor Tunneling Conditions | AE86: Shaft Diameter, Ft | AF86: $/LF
A87: 25 | B87: 0.2 | D87: 0.114 | E87: 13.5 | F87: =1/D87 -> 8.771929825 | G87: =1/E87 -> 0.07407407407 | H87: =($H$98*D87)/($H$96+D87) -> 13.72056559 | K87: 10 | L87: 1.3 | M87: 0.2 | P87: 0.0154x2 - 0.1968x + 1.85 | U87: Inside Diameter, Ft | V87: 1/2 Mile | W87: 1 Mile | X87: 2 Mile | Y87: 4 Mile | Z87: 1/2 Mile | AA87: 1 Mile | AB87: 2 Mile | AC87: 4 Mile | AE87: 10 | AF87: 1950
A88: 50 | B88: 0.5 | D88: 1 | E88: 9 | F88: =1/D88 -> 1 | G88: =1/E88 -> 0.1111111111 | H88: 8.156526608 | K88: 15 | L88: 2.5 | M88: 0.45 | O88: horizontal | P88: =0.0154*('Cost Model L-PSH'!C97)^2 - 0.1968*'Cost Model L-PSH'!C97 + 1.85 -> 6.772936112 | U88: 10 | V88: 1000 | W88: 1200 | X88: 1300 | Y88: 1400 | Z88: 1400 | AA88: 1500 | AB88: 1550 | AC88: 1600 | AE88: 15 | AF88: 2800
A89: 100 | B89: 1.4 | D89: 2 | E89: 8 | F89: 0.5 | G89: 0.125 | H89: 7.949140595 | K89: 20 | L89: 4.2 | M89: 0.9 | U89: 15 | V89: 1500 | W89: 1700 | X89: 1800 | Y89: 1900 | Z89: 2200 | AA89: 2400 | AB89: 2500 | AC89: 2600 | AE89: 20 | AF89: 3700 | AI89: 186.57x + 27.143
A90: 150 | B90: 2.7 | D90: 4 | E90: 7.8 | F90: 0.25 | G90: 0.1282051282 | H90: 7.849352657 | K90: 25 | L90: 6.4 | M90: 1.3 | P90: 0.0046x2 - 0.0819x + 0.5993 | U90: 20 | V90: 2200 | W90: 2400 | X90: 2500 | Y90: 2700 | Z90: 3200 | AA90: 3450 | AB90: 3600 | AC90: 3900 | AE90: 25 | AF90: 4700 | AH90: $/lf | AI90: =186.57*'Cost Model L-PSH'!C97 + 27.143 -> 4761.618524
A91: 200 | B91: 4.4 | D91: 6 | E91: 7.7 | F91: 0.1666666667 | G91: 0.1298701299 | H91: 7.816644432 | K91: 30 | L91: 9.6 | M91: 2.3 | O91: vertical | P91: =0.0046*('Cost Model L-PSH'!C97)^2 - 0.0819*'Cost Model L-PSH'!C97 + 0.5993 -> 1.483197022 | U91: 25 | V91: 3200 | W91: 3400 | X91: 3550 | Y91: 3900 | Z91: 4600 | AA91: 4900 | AB91: 5200 | AC91: 5600 | AE91: 30 | AF91: 5600
A92: 250 | B92: 6.7 | D92: 8 | E92: 7.6 | F92: 0.125 | G92: 0.1315789474 | H92: 7.800392328 | K92: 35 | L92: 13.9 | M92: 3.4 | U92: 30 | V92: 4400 | W92: 4550 | X92: 4975 | Y92: 5450 | Z92: 6500 | AA92: 6700 | AB92: 7400 | AC92: 8100 | AE92: 35 | AF92: 6600
A93: 300 | B93: 9.4 | D93: 10 | E93: 7.5 | F93: 0.1 | G93: 0.1333333333 | H93: 7.790673465 | U93: 35 | V93: 5600 | W93: 5900 | X93: 6450 | Y93: 7500 | Z93: 8450 | AA93: 8750 | AB93: 9350 | AC93: 11250
A94: 350 | B94: 12.5 | H94: y = (7.75204x)/(x - 0.049591) | V94: 3.9286x2 + 10.071x + 481.43 | W94: 4.3214x2 - 5.6071x + 815 | X94: 5.5536x2 - 42.339x + 1165.4 | Y94: 7.6786x2 - 103.54x + 1690.7 | Z94: 6.6786x2 - 17.393x + 915 | AA94: 6.25x2 + 7.8929x + 819.29 | AB94: 6.7143x2 + 13.857x + 732.86 | AC94: 11.107x2 - 120.11x + 1777.9
C95: Upper Dam | E95: Lower Dam | G95: slope-> | H95: =SLOPE(G87:G93,F87:F93) -> -0.006397112993 | I95: $/CY Upper | J95: =(7.75204*C98)/(C98 - 0.049591) -> 7.916642136 | V95: =3.9286*('Cost Model L-PSH'!C97)^2 + 10.071*('Cost Model L-PSH'!C97) + 481.43 -> 3266.864216 | W95: =4.3214*('Cost Model L-PSH'!C97)^2 - 5.6071*('Cost Model L-PSH'!C97) + 815 -> 3455.528639 | X95: =5.5536*('Cost Model L-PSH'!C97)^2 - 42.339*'Cost Model L-PSH'!C97 + 1165.4 -> 3667.29491 | Y95: =7.6786*('Cost Model L-PSH'!C97)^2 - 103.54*'Cost Model L-PSH'!C97 + 1690.7 -> 4007.952561 | Z95: =6.6786*('Cost Model L-PSH'!C97)^2 - 17.393*'Cost Model L-PSH'!C97 + 915 -> 4774.391724 | AA95: =6.25*('Cost Model L-PSH'!C97)^2 + 7.8929*'Cost Model L-PSH'!C97 + 819.29 -> 5044.344873 | AB95: =6.7143*('Cost Model L-PSH'!C97)^2 + 13.857*'Cost Model L-PSH'!C97 + 732.86 -> 5408.253758 | AC95: =11.107*('Cost Model L-PSH'!C97)^2 - 120.11*'Cost Model L-PSH'!C97 + 1777.9 -> 5882.424312
B96: U.Unit Volume CY/Ft | C96: =(0.00009*('Cost Model L-PSH'!C16)^2 + 0.0039*'Cost Model L-PSH'!C16 + 0.0707)*1000 -> 1834.7 | D96: L.Unit Volume CY/Ft | E96: =(0.00009*('Cost Model L-PSH'!C18)^2 + 0.0039*'Cost Model L-PSH'!C18 + 0.0707)*1000 -> 628.7 | G96: hyper k-> | H96: =H95*H98 -> -0.04959066937 | I96: $/CY Lower | J96: =(7.75204*E98)/(E98 - 0.049591) -> 8.350862416
B97: U.Total Volume CY | C97: =C96*'Cost Model L-PSH'!C17 -> 2385110 | D97: L.Total Volume CY | E97: =E96*'Cost Model L-PSH'!C19 -> 691570 | G97: intercept-> | H97: =INTERCEPT(G87:G93,F87:F93) -> 0.1289983191
B98: U.Volume CY * 10^6 | C98: =C97/(10^6) -> 2.38511 | D98: L.Volume CY * 10^6 | E98: =E97/(10^6) -> 0.69157 | G98: hyper m-> | H98: =1/H97 -> 7.752038994
U121: Penstock Tunnel Max Velocity | Y121: Draft Tube Tunnel Max Velocity
A122: Cost of Pennstocks and Draft Tube Tunnels $/Ft | K122: Cost of Surface Pennstocks $/Ft | U122: Head (ft) | V122: Velocity (Fps) | Y122: Head (ft) | Z122: Velocity (Fps)
A123: Diameter, Ft | B123: 500 Ft | C123: 1000 Ft | D123: 1500 Ft | E123: 2000 Ft | K123: Diameter, Ft | L123: 300 Ft | M123: 500 Ft | N123: 700 Ft | O123: 1000 Ft | P123: 1500 Ft | U123: 300 | V123: 18 | Y123: 300 | Z123: 8
A124: 5 | K124: 10 | L124: 1.55 | M124: 2.2 | N124: 3.2 | O124: 4.5 | P124: 6.65 | U124: 500 | V124: 20 | Y124: 500 | Z124: 10
A125: 10 | B125: 2200 | C125: 2400 | D125: 3000 | E125: 3800 | K125: 15 | L125: 3.3 | M125: 5 | N125: 7 | O125: 10 | P125: 14.75 | U125: 1000 | V125: 25 | Y125: 1000 | Z125: 13
A126: 15 | B126: 4100 | C126: 4600 | D126: 6000 | E126: 7600 | K126: 20 | L126: 5.6 | M126: 8.7 | N126: 12.3 | U126: 1500 | V126: 28 | Y126: 1500 | Z126: 15
A127: 20 | B127: 6900 | C127: 7800 | D127: 10300 | E127: 13250 | K127: 25 | L127: 8.6 | M127: 13.7 | U127: 2200 | V127: 32 | Y127: 2200 | Z127: 17
A128: 25 | B128: 10000 | C128: 11700 | D128: 15800 | K128: 30 | L128: 12.2
A129: 30 | K129: 35 | L129: 16.5 | V129: 0.0074x + 16.512 | AA129: 0.0046x + 7.516
B130: 47.162x1.6615 | C130: 43.711x1.7314 | D130: 45.454x1.8126 | E130: 60.182x1.7959 | L130: 0.02x1.885 | M130: 0.0226x1.9901 | N130: 0.0365x1.9417 | O130: 0.0483x1.9694 | P130: 0.0721x1.9647 | V130: =0.0074*'Cost Model L-PSH'!C14 + 16.512 -> 28.056 | AA130: =0.0046*('Cost Model L-PSH'!C14-'Cost Model L-PSH'!C91) + 7.516 -> 9.6688
A131: Penstock | B131: =47.162*('Cost Model L-PSH'!C113)^1.6615 -> 2723.951893 | C131: =43.711*('Cost Model L-PSH'!C113)^1.7314 -> 2994.397933 | D131: =45.454*('Cost Model L-PSH'!C113)^1.8126 -> 3796.498825 | E131: =60.182*('Cost Model L-PSH'!C113)^1.7959 -> 4825.825179 | L131: =0.02*('Cost Model L-PSH'!C113)^1.885*1000 -> 1993.440779 | M131: =0.0226*('Cost Model L-PSH'!C113)^1.9901*1000 -> 2911.482429 | N131: =0.0365*('Cost Model L-PSH'!C113)^1.9417*1000 -> 4178.134775 | O131: =0.0483*('Cost Model L-PSH'!C113)^1.9694*1000 -> 5915.693534 | P131: =0.0721*('Cost Model L-PSH'!C113)^1.9647*1000 -> 8729.927174
A132: Draft Tube | B132: =47.162*('Cost Model L-PSH'!C114)^1.6615 -> 6600.070269 | C132: =43.711*('Cost Model L-PSH'!C114)^1.7314 -> 7530.578997 | D132: =45.454*('Cost Model L-PSH'!C114)^1.8126 -> 9969.786157 | E132: =60.182*('Cost Model L-PSH'!C114)^1.7959 -> 12560.6179
A161: Underground Powerstation Equipment Costs 80MW Units $/kW | K161: Underground Powerstation Equipment Costs 125MW Units $/kW | U161: Underground Powerstation Equipment Costs 225MW Units $/kW | AE161: Underground Powerstation Equipment Costs 350MW Units $/kW
A162: Average Head, Ft | B162: 160 MW | C162: 240 MW | D162: 320 MW | E162: 480 MW | K162: Average Head, Ft | L162: 250 MW | M162: 375 MW | N162: 500 MW | O162: 750 MW | U162: Average Head, Ft | V162: 450 MW | W162: 675 MW | X162: 900 MW | Y162: 1350 MW | AE162: Average Head, Ft | AF162: 700 MW | AG162: 1050 MW | AH162: 1400 MW | AI162: 2100 MW
A163: 350 | B163: 242 | C163: 229 | D163: 223 | E163: 216 | K163: 350 | L163: 203 | M163: 194 | N163: 188 | O163: 184 | U163: 350 | V163: 163 | W163: 155 | X163: 151 | Y163: 146 | AE163: 350 | AF163: 130 | AG163: 124 | AH163: 121 | AI163: 117
A164: 500 | B164: 235 | C164: 224 | D164: 217 | E164: 210 | K164: 500 | L164: 194 | M164: 185 | N164: 180 | O164: 176 | U164: 500 | V164: 153 | W164: 145 | X164: 142 | Y164: 137 | AE164: 500 | AF164: 124 | AG164: 116 | AH164: 114 | AI164: 111
A165: 1000 | B165: 224 | C165: 212 | D165: 205 | E165: 200 | K165: 1000 | L165: 183 | M165: 174 | N165: 169 | O165: 165 | U165: 1000 | V165: 139 | W165: 134 | X165: 130 | Y165: 126 | AE165: 1000 | AF165: 112 | AG165: 107 | AH165: 105 | AI165: 102
A166: 1500 | B166: 222 | C166: 210 | D166: 204 | E166: 200 | K166: 1500 | L166: 180 | M166: 173 | N166: 168 | O166: 164 | U166: 1500 | V166: 138.5 | W166: 133.5 | X166: 129 | Y166: 126 | AE166: 1500 | AF166: 114 | AG166: 107.5 | AH166: 105.5 | AI166: 103
A167: 2000 | B167: 237 | C167: 226 | D167: 220 | E167: 215 | K167: 2000 | L167: 185 | M167: 176 | N167: 173 | O167: 168 | U167: 2000 | V167: 143 | W167: 135.5 | X167: 134 | Y167: 130 | AE167: 2000 | AF167: 115 | AG167: 110 | AH167: 107 | AI167: 104.5
A168: 2250 | B168: 245 | C168: 234 | D168: 228 | E168: 223 | K168: 2250 | L168: 187 | M168: 179 | N168: 175 | O168: 171 | U168: 2250 | V168: 145 | W168: 137 | X168: 135 | Y168: 132 | AE168: 2250 | AF168: 115.5 | AG168: 110.5 | AH168: 107.5 | AI168: 105.5
B170: 2E-05x2 - 0.0609x + 259.97 | C170: 2E-05x2 - 0.0609x + 247.79 | D170: 2E-05x2 - 0.0617x + 241.53 | E170: 2E-05x2 - 0.0555x + 232.3 | L170: 2E-05x2 - 0.0485x + 216.18 | M170: 2E-05x2 - 0.0462x + 206.27 | N170: 2E-05x2 - 0.0453x + 200.29 | O170: 2E-05x2 - 0.0456x + 196.43 | V170: 2E-05x2 - 0.0544x + 177.56 | W170: 1E-05x2 - 0.0448x + 166.28 | X170: 2E-05x2 - 0.048x + 163.78 | Y170: 2E-05x2 - 0.0452x + 157.75 | AF170: 1E-05x2 - 0.0365x + 139.89 | AG170: 1E-05x2 - 0.0355x + 132.8 | AH170: 1E-05x2 - 0.033x + 129.39 | AI170: 1E-05x2 - 0.0316x + 125.28
B171: =0.00002*('Cost Model L-PSH'!C92)^2 - 0.0609*'Cost Model L-PSH'!C92 + 259.97 -> 214.38212 | C171: =0.00002*('Cost Model L-PSH'!C92)^2 - 0.0609*('Cost Model L-PSH'!C92) + 247.79 -> 202.20212 | D171: =0.00002*('Cost Model L-PSH'!C92)^2 - 0.0617*('Cost Model L-PSH'!C92) + 241.53 -> 194.88132 | E171: =0.00002*('Cost Model L-PSH'!C92)^2 - 0.0555*('Cost Model L-PSH'!C92) + 232.3 -> 193.87252 | L171: =0.00002*('Cost Model L-PSH'!C92)^2 - 0.0485*('Cost Model L-PSH'!C92) + 216.18 -> 187.03452 | M171: =0.00002*('Cost Model L-PSH'!C92)^2 - 0.0462*('Cost Model L-PSH'!C92) + 206.27 -> 180.17432 | N171: =0.00002*('Cost Model L-PSH'!C92)^2 - 0.0453*('Cost Model L-PSH'!C92) + 200.29 -> 175.38772 | O171: =0.00002*('Cost Model L-PSH'!C92)^2 - 0.0456*('Cost Model L-PSH'!C92) + 196.43 -> 171.12992 | V171: =0.00002*('Cost Model L-PSH'!C92)^2 - 0.0544*('Cost Model L-PSH'!C92) + 177.56 -> 140.59112 | W171: =0.00001*('Cost Model L-PSH'!C92)^2 - 0.0448*('Cost Model L-PSH'!C92) + 166.28 -> 124.45796 | X171: =0.00002*('Cost Model L-PSH'!C92)^2 - 0.048*('Cost Model L-PSH'!C92) + 163.78 -> 135.29752 | Y171: =0.00002*('Cost Model L-PSH'!C92)^2 - 0.0452*('Cost Model L-PSH'!C92) + 157.75 -> 132.98032 | AF171: =0.00001*('Cost Model L-PSH'!C92)^2 - 0.0365*('Cost Model L-PSH'!C92) + 139.89 -> 109.07376 | AG171: =0.00001*('Cost Model L-PSH'!C92)^2 - 0.0355*('Cost Model L-PSH'!C92) + 132.8 -> 103.30976 | AH171: =0.00001*('Cost Model L-PSH'!C92)^2 - 0.033*('Cost Model L-PSH'!C92) + 129.39 -> 103.21476 | AI171: =0.00001*('Cost Model L-PSH'!C92)^2 - 0.0316*('Cost Model L-PSH'!C92) + 125.28 -> 100.96116
A203: Surface Powerstation Equipment Costs 80MW Units $/kW | K203: Surface Powerstation Equipment Costs 125MW Units $/kW | U203: Surface Powerstation Equipment Costs 225MW Units $/kW | AE203: Surface Powerstation Equipment Costs 350MW Units $/kW | AO203: Pump Type Cost Multipliers
A204: Average Head, Ft | B204: 160 MW | C204: 240 MW | D204: 320 MW | E204: 480 MW | K204: Average Head, Ft | L204: 250 MW | M204: 375 MW | N204: 500 MW | O204: 750 MW | U204: Average Head, Ft | V204: 450 MW | W204: 675 MW | X204: 900 MW | Y204: 1350 MW | AE204: Average Head, Ft | AF204: 700 MW | AG204: 1050 MW | AH204: 1400 MW | AI204: 2100 MW | AP204: Pump-Turbine | AQ204: Powerhouse
A205: 350 | B205: 237 | C205: 225 | D205: 219 | E205: 214 | K205: 350 | L205: 200 | M205: 190 | N205: 185 | O205: 183 | U205: 350 | V205: 157 | W205: 151 | X205: 146 | Y205: 144 | AE205: 350 | AF205: 133 | AG205: 126 | AH205: 124 | AI205: 120 | AO205: Fixed | AP205: 1 | AQ205: 1
A206: 500 | B206: 236.5 | C206: 224 | D206: 217 | E206: 213 | K206: 500 | L206: 189 | M206: 179.5 | N206: 176 | O206: 171.5 | U206: 500 | V206: 151 | W206: 144.5 | X206: 142 | Y206: 136 | AE206: 500 | AF206: 124 | AG206: 117 | AH206: 115 | AI206: 114 | AO206: Variable | AP206: 1.2 | AQ206: 1.05
A207: 1000 | B207: 234 | C207: 222 | D207: 216 | E207: 210 | K207: 1000 | L207: 180 | M207: 170.5 | N207: 167 | O207: 162 | U207: 1000 | V207: 144 | W207: 137 | X207: 134 | Y207: 130.5 | AE207: 1000 | AF207: 111.5 | AG207: 105.5 | AH207: 104 | AI207: 101
A208: 1500 | B208: 234.5 | C208: 223 | D208: 216.5 | E208: 212 | K208: 1500 | L208: 181.5 | M208: 174 | N208: 168 | O208: 164 | U208: 1500 | V208: 144 | W208: 137.5 | X208: 134 | Y208: 131 | AE208: 1500 | AF208: 110 | AG208: 105 | AH208: 104 | AI208: 100
A209: 2000 | B209: 238.5 | C209: 228 | D209: 224 | E209: 217 | K209: 2000 | L209: 187.5 | M209: 180 | N209: 176 | O209: 173 | U209: 2000 | V209: 146 | W209: 143 | X209: 137 | Y209: 135 | AE209: 2000 | AF209: 110.5 | AG209: 105 | AH209: 104 | AI209: 100.5
A210: 2250 | B210: 245 | C210: 234 | D210: 228 | E210: 222 | K210: 2250 | L210: 194 | M210: 185 | N210: 180 | O210: 176 | U210: 2250 | V210: 150 | W210: 144.5 | X210: 140.5 | Y210: 137 | AE210: 2250 | AF210: 111 | AG210: 105.3 | AH210: 104 | AI210: 101
B212: 8E-06x2 - 0.0174x + 242.74 | C212: 8E-06x2 - 0.017x + 230.3 | D212: 8E-06x2 - 0.0168x + 223.7 | E212: 8E-06x2 - 0.0173x + 219.28 | L212: 2E-05x2 - 0.0499x + 212.36 | M212: 2E-05x2 - 0.0457x + 200.9 | N212: 2E-05x2 - 0.046x + 196.81 | O212: 2E-05x2 - 0.0501x + 195 | V212: 1E-05x2 - 0.0319x + 165.52 | W212: 1E-05x2 - 0.0338x + 159.73 | X212: 1E-05x2 - 0.0313x + 155.12 | Y212: 1E-05x2 - 0.0309x + 151.13 | AF212: 1E-05x2 - 0.0447x + 144.85 | AG212: 1E-05x2 - 0.041x + 136.46 | AH212: 1E-05x2 - 0.0391x + 133.75 | AI212: 1E-05x2 - 0.0406x + 131.67
B213: =0.000008*('Cost Model L-PSH'!C92)^2 - 0.0174*('Cost Model L-PSH'!C92) + 242.74 -> 233.733808 | C213: =0.000008*('Cost Model L-PSH'!C92)^2 - 0.017*('Cost Model L-PSH'!C92) + 230.3 -> 221.824208 | D213: =0.000008*('Cost Model L-PSH'!C92)^2 - 0.0168*('Cost Model L-PSH'!C92) + 223.7 -> 215.489408 | E213: =0.000008*('Cost Model L-PSH'!C92)^2 - 0.0173*('Cost Model L-PSH'!C92) + 219.28 -> 210.406408 | L213: =0.00002*('Cost Model L-PSH'!C92)^2 - 0.0499*('Cost Model L-PSH'!C92) + 212.36 -> 181.35812 | M213: =0.00002*('Cost Model L-PSH'!C92)^2 - 0.0457*('Cost Model L-PSH'!C92) + 200.9 -> 175.46732 | N213: =0.00002*('Cost Model L-PSH'!C92)^2 - 0.046*('Cost Model L-PSH'!C92) + 196.81 -> 170.97952 | O213: =0.00002*('Cost Model L-PSH'!C92)^2 - 0.0501*('Cost Model L-PSH'!C92)+ 195 -> 163.73292 | V213: =0.00001*('Cost Model L-PSH'!C92)^2 - 0.0319*('Cost Model L-PSH'!C92) + 165.52 -> 140.80336 | W213: =0.00001*('Cost Model L-PSH'!C92)^2 - 0.0338*('Cost Model L-PSH'!C92)+ 159.73 -> 132.49396 | X213: =0.00001*('Cost Model L-PSH'!C92)^2 - 0.0313*('Cost Model L-PSH'!C92) + 155.12 -> 131.19896 | Y213: =0.00001*('Cost Model L-PSH'!C92)^2 - 0.0309*('Cost Model L-PSH'!C92) + 151.13 -> 127.73936 | AF213: =0.00001*('Cost Model L-PSH'!C92)^2 - 0.0447*('Cost Model L-PSH'!C92) + 144.85 -> 103.16056 | AG213: =0.00001*('Cost Model L-PSH'!C92)^2 - 0.041*('Cost Model L-PSH'!C92)+ 136.46 -> 99.67676 | AH213: =0.00001*('Cost Model L-PSH'!C92)^2 - 0.0391*('Cost Model L-PSH'!C92) + 133.75 -> 99.48616 | AI213: =0.00001*('Cost Model L-PSH'!C92)^2 - 0.0406*('Cost Model L-PSH'!C92) + 131.67 -> 95.41716
A239: Access Tunnel Costs, $/LF | K239: Switchyard Costs, $M | V239: Access Road, $/mile | AE239: Liner Cost ($/sq.ft)
A240: Tunnel Length, Miles | B240: $/LF | K240: No. of generating units | L240: 115 to 161 kV | M240: 230 kV | N240: 345 kV | O240: 500 kV | V240: Terrain | W240: New | X240: Rebuild | AF240: $/Sq.yd | AG240: $/sq.ft
A241: 0.25 | B241: 2090 | D241: 2489.4x0.118 | K241: 2 | L241: 1.4 | M241: 1.7 | N241: 3.55 | O241: 7.35 | V241: Steep | W241: 439000 | X241: 293000 | AE241: Geomembrane Single Liner | AF241: 40 | AG241: =AF241/9 -> 4.444444444
A242: 0.5 | B242: 2330 | D242: =2489.4*('Cost Model L-PSH'!C39)^0.118 -> 2555.818837 | K242: 3 | L242: 2.2 | M242: 2.8 | N242: 6.15 | O242: 13.5 | V242: Mild | W242: 283000 | X242: 186000 | AE242: Geomembrane Double Liner with Leak Detection | AF242: 55 | AG242: =AF242/9 -> 6.111111111
A243: 1 | B243: 2500 | K243: 4 | L243: 2.75 | M243: 3.7 | N243: 7.9 | O243: 16.5 | V243: Flat | W243: 189000 | X243: 123000 | AE243: Other (clay, asphalt, concrete) | AF243: 60 | AG243: =AF243/9 -> 6.666666667
A244: 1.5 | B244: 2600 | K244: 5 | L244: 3.3 | M244: 4.4 | N244: 9.4 | O244: 19
A245: 2 | B245: 2690 | K245: 6 | L245: 3.65 | M245: 4.9 | N245: 11 | O245: 21
L247: -0.0643x2 + 1.0743x - 0.48 | M247: -0.1x2 + 1.6x - 1.1 | N247: -0.1607x2 + 3.1007x - 1.91 | O247: -0.6286x2 + 8.3086x - 6.45
L248: =-0.0643*('Cost Model L-PSH'!C109)^2 + 1.0743*'Cost Model L-PSH'!C109 - 0.48 -> 2.7884 | M248: =-0.1*('Cost Model L-PSH'!C109)^2 + 1.6*('Cost Model L-PSH'!C109) - 1.1 -> 3.7 | N248: =-0.1607*('Cost Model L-PSH'!C109)^2 + 3.1007*('Cost Model L-PSH'!C109) - 1.91 -> 7.9216 | O248: =-0.6286*('Cost Model L-PSH'!C109)^2 + 8.3086*('Cost Model L-PSH'!C109) - 6.45 -> 16.7268 | Q248: =IF('Cost Model L-PSH'!C66<=160,'Cost Curves L-PSH'!L248,IF(AND('Cost Model L-PSH'!C66>160,'Cost Model L-PSH'!C66<=230),'Cost Curves L-PSH'!M248,IF(AND('Cost Model L-PSH'!C66>230,'Cost Model L-PSH'!C66<=345),'Cost Curves L-PSH'!N248,IF('Cost Model L-PSH'!C66>345,'Cost Curves L-PSH'!O248)))) -> 16.7268
A274: Transmission Line Costs Per Mile, $1000s
A275: Transmitted Power, MW | B275: 138 kV | C275: 230 kV | D275: 345 kV | E275: 500 kV | H275: Transmission Terrain Multiplier
A276: 28.5 | B276: 110 | H276: Desert | I276: 1.05
A277: 30 | B277: 112 | H277: Flat | I277: 1 | Y277: Dam Height (ft) | Z277: Earthfill Volume (x1000 cu. yd.) | AA277: Rockfill Volume (x1000 cu. yd.) | AB277: RCC Gravity Volume (x1000 cu. yd.)
A278: 40 | B278: 115 | H278: Farmland | I278: 1 | Y278: 50 | Z278: 0.15 | AA278: 0.15 | AB278: 0.15
A279: 50 | B279: 120 | H279: Forested | I279: 2.25 | Y279: 100 | Z279: 1.8 | AA279: 1 | AB279: 0.2
A280: 60 | B280: 122 | H280: Rolling Hill | I280: 1.4 | Y280: 200 | Z280: 5 | AA280: 3 | AB280: 0.65
A281: 70 | B281: 128 | H281: Mountain | I281: 1.75 | Y281: 300 | Z281: 10 | AA281: 5.95 | AB281: 1.1
A282: 80 | B282: 132 | H282: Wetland | I282: 1.2 | Y282: 400 | Z282: 16 | AA282: 9.5 | AB282: 2.25
A283: 90 | B283: 140 | H283: Suburban | I283: 1.27
A284: 100 | B284: 150 | H284: Urban | I284: 1.59 | X284: Upper Dam Volume | Z284: =(6.21*(10^-5)*('Cost Model L-PSH'!C16)^2 + 0.017*'Cost Model L-PSH'!C16 - 0.7412)*'Cost Model L-PSH'!C17*1000 -> 2850952 | AA284: =(3.72*(10^-5)*('Cost Model L-PSH'!C16)^2 + 0.00993*'Cost Model L-PSH'!C16 - 0.4173)*'Cost Model L-PSH'!C17*1000 -> 1702974 | AB284: =(0.0000164*('Cost Model L-PSH'!C16)^2 - 0.00155*'Cost Model L-PSH'!C16 + 0.2021)*'Cost Model L-PSH'!C17*1000 -> 327938
A285: 125 | B285: 172 | X285: Lower Dam Volume | Z285: =(6.21*(10^-5)*('Cost Model L-PSH'!C18)^2 + 0.017*'Cost Model L-PSH'!C18 - 0.7412)*'Cost Model L-PSH'!C19*1000 -> 552596 | AA285: =(3.72*(10^-5)*('Cost Model L-PSH'!C18)^2 + 0.00993*'Cost Model L-PSH'!C18 - 0.4173)*'Cost Model L-PSH'!C19*1000 -> 343662 | AB285: =(0.0000164*('Cost Model L-PSH'!C18)^2 - 0.00155*'Cost Model L-PSH'!C18 + 0.2021)*'Cost Model L-PSH'!C19*1000 -> 184954
A286: 102 | C286: 175 | H286: Tranmission Circuit Multiplier
A287: 150 | C287: 180 | H287: Double | I287: =AVERAGE(K290:K292) -> 1.600469629
A288: 200 | C288: 190
A289: 300 | C289: 230 | H289: Transmission kV | I289: Single Circuit $/mile | J289: Double Circuit $/mile
A290: 340 | C290: 240 | H290: 230 | I290: 959700 | J290: 1536400 | K290: =J290/I290 -> 1.600916953
A291: 350 | D291: 275 | H291: 345 | I291: 1343800 | J291: 2150300 | K291: =J291/I291 -> 1.600163715
A292: 400 | D292: 280 | H292: 500 | I292: 1919450 | J292: 3071750 | K292: =J292/I292 -> 1.600328219
A293: 500 | D293: 285
A294: 600 | D294: 290
A295: 700 | D295: 295
A296: 800 | D296: 305
A297: 900 | D297: 325 | E297: 400
A298: 1000 | D298: 370 | E298: 402
A299: 2000 | E299: 450
A300: 3000 | E300: 575
B302: 0.0043x2 - 0.028x + 108.72 | C302: 0.0007x2 - 0.0382x + 169.98 | D302: 0.0003x2 - 0.2536x + 335.57 | E302: 4E-05x2 - 0.0652x + 428.5
B303: =0.0043*('Cost Model L-PSH'!C108)^2 - 0.028*'Cost Model L-PSH'!C108 + 108.72 -> 7154.587515 | C303: =0.0007*('Cost Model L-PSH'!C108)^2 - 0.0382*('Cost Model L-PSH'!C108) + 169.98 -> 1273.808152 | D303: =0.0003*('Cost Model L-PSH'!C108)^2 - 0.2536*('Cost Model L-PSH'!C108) + 335.57 -> 504.1971732 | E303: =0.00004*('Cost Model L-PSH'!C108)^2 - 0.0652*('Cost Model L-PSH'!C108)+ 428.5 -> 410.7042393 | G303: =IF('Cost Model L-PSH'!C65<=138,'Cost Curves L-PSH'!B303,IF(AND('Cost Model L-PSH'!C65>138,'Cost Model L-PSH'!C65<=230),'Cost Curves L-PSH'!C303,IF(AND('Cost Model L-PSH'!C65>230,'Cost Model L-PSH'!C65<=345),'Cost Curves L-PSH'!D303,IF('Cost Model L-PSH'!C65<=138>=345,'Cost Curves L-PSH'!E303)))) -> 410.7042393
R311: Upper Dam | U311: Lower Dam
R312: Unit Volume | S312: =(0.0000905*('Cost Model L-PSH'!C16)^2 + 0.00386*('Cost Model L-PSH'!C16) + 0.0707)*1000 -> 1837.1 | U312: Unit Volume | V312: =(0.0000905*('Cost Model L-PSH'!C18)^2 + 0.00386*('Cost Model L-PSH'!C18) + 0.0707)*1000 -> 628.1
R313: Total Volume | S313: =S312*'Cost Model L-PSH'!C17 -> 2388230 | U313: Total Volume | V313: =V312*'Cost Model L-PSH'!C19 -> 690910
A332: Power Station | B332: ='Cost Model L-PSH'!C47 -> Underground
A333: UR Connection | B333: =IF('Cost Model L-PSH'!C44="Horizontal","Horizontal Intake to Upper low pressure tunnel to Shaft to Upper high pressure tunnel",IF('Cost Model L-PSH'!C44="Vertical","Vertical Intake to Shaft to Upper Tunnel")) -> Vertical Intake to Shaft to Upper Tunnel
A334: Water Conductor | B334: Penstock
A335: LR Connection | B335: Direct Discharge
A337: Configuration | B337: =IF(AND(B332="Underground",B333="Vertical Intake to Shaft to Upper Tunnel",B334="Tunnel",B335="Tailrace tunnel"),"A",IF(AND(B332="Underground",B333="Horizontal Intake to Upper low pressure tunnel to Shaft to Upper high pressure tunnel",B334="Tunnel",B335="Tailrace tunnel"),"B",IF(AND(B332="Surface",B333="Vertical Intake to Shaft to Upper Tunnel",B334="Tunnel",B335="Direct Discharge"),"C",IF(AND(B332="Surface",B333="Horizontal Intake to Upper low pressure tunnel to Shaft to Upper high pressure tunnel",B334="Tunnel",B335="Tailrace tunnel"),"D",IF(AND(B332="Surface",B333="Horizontal Intake to Upper low pressure tunnel to Shaft to Upper high pressure tunnel",B334="Penstock",B335="Tailrace tunnel"),"E",IF(AND(B332="Surface",B333="Horizontal Intake to Upper low pressure tunnel to Shaft to Upper high pressure tunnel",B334="Penstock",B335="Direct Discharge"),"F","Out of Bounds")))))) -> Out of Bounds
A338: Small System Powerstation Costs
A361: 2008-2011 $ | C361: 1 cfs = 448.83 gal/min or 7.48 gal/sec
A362: gal/min | B362: stand by power k$
A363: 400 | B363: 65 | D363: ='Cost Model L-PSH'!C116*448.83 -> 4011325.832 | E363: gal/min
A364: 700 | B364: 100 | D364: stand by power k$
A365: 1000 | B365: 150 | D365: =0.7799*(D363)^0.7442*1000 -> 64003806.78 | E365: $
A366: 5000 | B366: 400
A367: 10000 | B367: 750
A368: 15000 | B368: 1000
A369: 50000 | B369: 2500
A371: 2011-2015 $
A372: Low Head | B372: 200 ft or less
A373: Turbine generator and Control Cost in $/kW by capacity in MW
A374: y = 1051.9*x^-0.204 | D374: ='Cost Model L-PSH'!I10/1000 -> 1283.327859 | E374: =1051.9*(D374^-0.204)*'Market Adj Factors'!C47 -> 293.3381996
A376: High Head | B376: 200 ft or more
A377: Turbine generator and Control Cost in $/kW by capacity in MW
A378: y = 697.41*x^-0.329 | D378: =D374 -> 1283.327859 | E378: =697.41*D378^-0.329*'Market Adj Factors'!C47 -> 79.49505874

Sheet Cost Model S-PSH
B6: Inputs & Assumptions | F6: Cost Components | G6: Include in Total? (Yes or No - User Option) | H6: Unit | I6: Qty | J6: Base Unit Cost ($/unit) (Includes material, equipment rental, installation labor) | K6: Locational Factor | L6: CPI + MAF Composite (2022) | M6: USBR Adjustment Factor (2024) | N6: Adjusted Unit Cost ($) | O6: Override Qty | P6: Override Unit Cost ($) | Q6: Total Component Cost ($) | R6: % of total cost (component) | S6: % of total cost (category)
B8: Site Related | F8: Land and Land Rights | G8: Yes | H8: Acres | I8: =IF(G8="Yes",IF(O8,O8,C20),0) -> 2185 | J8: =IFERROR(VLOOKUP(C9,'Land Value Data'!$A$3:$G$51,7,FALSE),'Land Value Data'!G51) -> 3093.333333 | K8: 1 | L8: =IF(C54="Yes",'Market Adj Factors'!C48,1) -> 1.15767172 | M8: 1 | N8: =IF(P8,P8,J8*K8*L8*M8) -> 3581.064521 | O8: 0 | P8: 0 | Q8: =I8*N8 -> 7824625.978 | R8: =Q8/$Q$53 -> 0.002836394176 | S8: =R8 -> 0.002836394176 | T8: 16264166.1
B9: Location | C9: United States | D9: #
B10: Avg. Max Upper Reservoir Depth | C10: 101 | D10: feet | F10: Powerplant Structure | G10: Yes | H10: kW | I10: =IF(G10="Yes",IF(O10,O10,C108*1000),0) -> 1283324.821 | J10: =VLOOKUP(C51,'Cost Curves S-PSH'!AO205:AQ206,3,FALSE)*IF(P10,P10,IF(AND(C46="Average",C47="Underground"),IF(C110<=80,IF(C109<=2,'Cost Curves S-PSH'!B11,IF(AND(C109>2,C109<=3),'Cost Curves S-PSH'!C11,IF(AND(C109>3,C109<=4),'Cost Curves S-PSH'!D11,IF(C109>4,'Cost Curves S-PSH'!E11)))),IF(AND(C110>80,C110<=125),IF(C109<=2,'Cost Curves S-PSH'!B53,IF(AND(C109>2,C109<=3),'Cost Curves S-PSH'!C53,IF(AND(C109>3,C109<=4),'Cost Curves S-PSH'!D53,IF(C109>4,'Cost Curves S-PSH'!E53)))),IF(AND(C110>125,C110<=225),IF(C109<=2,'Cost Curves S-PSH'!L53,IF(AND(C109>2,C109<=3),'Cost Curves S-PSH'!M53,IF(AND(C109>3,C109<=4),'Cost Curves S-PSH'!N53,IF(C109>4,'Cost Curves S-PSH'!O53)))),IF(C110>225,IF(C109<=2,'Cost Curves S-PSH'!L11,IF(AND(C109>2,C109<=3),'Cost Curves S-PSH'!M11,IF(AND(C109>3,C109<=4),'Cost Curves S-PSH'!N11,IF(C109>4,'Cost Curves S-PSH'!O11)))))))),IF(AND(C46="Adverse",C47="Underground"),IF(C110<=80,IF(C109<=2,'Cost Curves S-PSH'!F11,IF(AND(C109>2,C109<=3),'Cost Curves S-PSH'!G11,IF(AND(C109>3,C109<=4),'Cost Curves S-PSH'!H11,IF(C109>4,'Cost Curves S-PSH'!I11)))),IF(AND(C110>80,C110<=125),IF(C109<=2,'Cost Curves S-PSH'!F53,IF(AND(C109>2,C109<=3),'Cost Curves S-PSH'!G53,IF(AND(C109>3,C109<=4),'Cost Curves S-PSH'!H53,IF(C109>4,'Cost Curves S-PSH'!I53)))),IF(AND(C110>125,C110<=225),IF(C109<=2,'Cost Curves S-PSH'!P53,IF(AND(C109>2,C109<=3),'Cost Curves S-PSH'!Q53,IF(AND(C109>3,C109<=4),'Cost Curves S-PSH'!R53,IF(C109>4,'Cost Curves S-PSH'!S53)))),IF(C110>225,IF(C109<=2,'Cost Curves S-PSH'!P11,IF(AND(C109>2,C109<=3),'Cost Curves S-PSH'!Q11,IF(AND(C109>3,C109<=4),'Cost Curves S-PSH'!R11,IF(C109>4,'Cost Curves S-PSH'!S11)))))))),IF(AND(C46="Average",C47="Surface"),IF(C110<=80,IF(C109<=2,'Cost Curves S-PSH'!V11,IF(AND(C109>2,C109<=3),'Cost Curves S-PSH'!W11,IF(AND(C109>3,C109<=4),'Cost Curves S-PSH'!X11,IF(C109>4,'Cost Curves S-PSH'!Y11)))),IF(AND(C110>80,C110<=125),IF(C109<=2,'Cost Curves S-PSH'!V53,IF(AND(C109>2,C109<=3),'Cost Curves S-PSH'!W53,IF(AND(C109>3,C109<=4),'Cost Curves S-PSH'!X53,IF(C109>4,'Cost Curves S-PSH'!Y53)))),IF(AND(C110>125,C110<=225),IF(C109<=2,'Cost Curves S-PSH'!AF53,IF(AND(C109>2,C109<=3),'Cost Curves S-PSH'!AG53,IF(AND(C109>3,C109<=4),'Cost Curves S-PSH'!AH53,IF(C109>4,'Cost Curves S-PSH'!AI53)))),IF(C110>225,IF(C109<=2,'Cost Curves S-PSH'!AF11,IF(AND(C109>2,C109<=3),'Cost Curves S-PSH'!AG11,IF(AND(C109>3,C109<=4),'Cost Curves S-PSH'!AH11,IF(C109>4,'Cost Curves S-PSH'!AI11)))))))),IF(AND(C46="Adverse",C47="Surface"),IF(C110<=80,IF(C109<=2,'Cost Curves S-PSH'!Z11,IF(AND(C109>2,C109<=3),'Cost Curves S-PSH'!AA11,IF(AND(C109>3,C109<=4),'Cost Curves S-PSH'!AB11,IF(C109>4,'Cost Curves S-PSH'!AC11)))),IF(AND(C110>80,C110<=125),IF(C109<=2,'Cost Curves S-PSH'!Z53,IF(AND(C109>2,C109<=3),'Cost Curves S-PSH'!AA53,IF(AND(C109>3,C109<=4),'Cost Curves S-PSH'!AB53,IF(C109>4,'Cost Curves S-PSH'!AC53)))),IF(AND(C110>125,C110<=225),IF(C109<=2,'Cost Curves S-PSH'!AJ53,IF(AND(C109>2,C109<=3),'Cost Curves S-PSH'!AK53,IF(AND(C109>3,C109<=4),'Cost Curves S-PSH'!AL53,IF(C109>4,'Cost Curves S-PSH'!AM53)))),IF(C110>225,IF(C109<=2,'Cost Curves S-PSH'!AJ11,IF(AND(C109>2,C109<=3),'Cost Curves S-PSH'!AK11,IF(AND(C109>3,C109<=4),'Cost Curves S-PSH'!AL11,IF(C109>4,'Cost Curves S-PSH'!AM11))))))))))))) -> 39.05977874 | K10: =VLOOKUP(C9,'Locational Adj Factors'!$A$3:$B$55,2,FALSE)/100 -> 1 | L10: =IF(C54="Yes",'Market Adj Factors'!U61,1) -> 3.133 | M10: ='Market Adj Factors'!X61 -> 1.066666667 | N10: =IF(P10,P10,J10*K10*L10*M10) -> 130.5325726 | O10: 0 | P10: 0 | Q10: =N10*I10 -> 167515690.3 | R10: =Q10/$Q$53 -> 0.06072373679 | S10: =R10 -> 0.06072373679 | T10: 156806247.9
B11: Upper Reservoir Area | C11: 191 | D11: acres
B12: Avg. Max Lower Reservoir Depth | C12: 120 | D12: feet | F12: Reservoirs, Dams, and Waterways
B13: Lower Reservoir Area | C13: 163 | D13: acres | F13: Upper Reservoir Dam and Spillway | G13: Yes | H13: CY | I13: =IF(G13="Yes",IF(O13,O13,C86),0) -> 327938 | J13: ='Cost Curves S-PSH'!J95 -> 7.916642136 | K13: =VLOOKUP(C9,'Locational Adj Factors'!$A$3:$B$55,2,FALSE)/100 -> 1 | L13: =IF(C54="Yes",'Market Adj Factors'!U62,1) -> 3.374 | M13: ='Market Adj Factors'!X62 -> 1.068432671 | N13: =IF(P13,P13,J13*K13*L13*M13) -> 28.53863857 | O13: 0 | P13: 0 | Q13: =IF(C50="Earthfill",N13*I13,IF(C50="Rockfill",0.787*N13*I13+4,IF(C50="RCC",11.389*N13*I13))) -> 106588558.3 | R13: =Q13/$Q$53 -> 0.03863790638 | S13: =SUM(R13:R17) -> 0.1055902739 | T13: 74986382.09
B14: Nominal (Max) Head | C14: 1560 | D14: feet | F14: Upper Reservoir Intake/Outlet | G14: Yes | H14: # | I14: =IF(G14="Yes",IF(O14,O14,C96),0) -> 1 | J14: =IF(C44="Horizontal",'Cost Curves S-PSH'!P88,IF('Cost Model S-PSH'!C44="Vertical",'Cost Curves S-PSH'!P91))*1000000 -> 265517.7545 | K14: =VLOOKUP(C9,'Locational Adj Factors'!$A$3:$B$55,2,FALSE)/100 -> 1 | L14: =IF(C54="Yes",IF(C44="Horizontal",'Market Adj Factors'!U63,'Market Adj Factors'!U63),1) -> 4.82 | M14: ='Market Adj Factors'!X63 -> 1.041916168 | N14: =IF(P14,P14,J14*K14*L14*M14) -> 1333439.703 | O14: 0 | P14: 0 | Q14: =N14*I14 -> 1333439.703 | R14: =Q14/$Q$53 -> 0.0004833663127 | T14: 7138076.301
B15: Total Conveyance Length (vert+horiz) | C15: 14394 | D15: feet | F15: Surge Facilities | G15: Yes | H15: LS | I15: =IF(G15="Yes",IF(O15,O15,IF(C99="Yes",40%,0%)),0) -> 0.4 | J15: NA | N15: NA | O15: 0 | P15: NA | Q15: =I15*SUM(Q21:Q26) -> 114659277.6 | R15: =Q15/$Q$53 -> 0.04156350837 | T15: 103101433.6
B16: Avg. Upper Dam Height | C16: 120 | D16: ft | F16: Lower Reservoir Intake/Outlet | G16: Yes | H16: # | I16: =IF(G16="Yes",IF(C47="Underground",IF(O16,O16,C96),0)) -> 1 | J16: =IF(C45="Horizontal",'Cost Curves S-PSH'!P88,IF('Cost Model S-PSH'!C45="Vertical",'Cost Curves S-PSH'!P91))*1000000 -> 1621589.108 | K16: =VLOOKUP(C9,'Locational Adj Factors'!$A$3:$B$55,2,FALSE)/100 -> 1 | L16: =IF(C54="Yes",IF(C45="Horizontal",'Market Adj Factors'!U64,'Market Adj Factors'!U64),1) -> 3.133 | M16: ='Market Adj Factors'!X64 -> 1.041916168 | N16: =IF(P16,P16,J16*K16*L16*M16) -> 5293391.195 | O16: 0 | P16: 0 | Q16: =N16*I16 -> 5293391.195 | R16: =Q16/$Q$53 -> 0.001918832159 | T16: 21187166.38
B17: Upper Dam Crest Length | C17: 1300 | D17: ft | F17: Lower Reservoir Dam and Spillway | G17: Yes | H17: CY | I17: =IF(G17="Yes",IF(O17,O17,C87),0) -> 184954 | J17: ='Cost Curves S-PSH'!J96 -> 8.350862416 | K17: =VLOOKUP(C9,'Locational Adj Factors'!$A$3:$B$55,2,FALSE)/100 -> 1 | L17: =IF(C54="Yes",'Market Adj Factors'!U62,1) -> 3.374 | M17: ='Market Adj Factors'!X62 -> 1.068432671 | N17: =IF(P17,P17,J17*K17*L17*M17) -> 30.10395571 | O17: 0 | P17: 0 | Q17: =IF(C50="Earthfill",N17*I17,IF(C50="Rockfill",0.787*N17*I17+4,IF(C50="RCC",11.389*N17*I17))) -> 63412209.77 | R17: =Q17/$Q$53 -> 0.0229866607 | T17: 15312121.92
B18: Avg. Lower Dam Height | C18: 60 | D18: ft | F18: Upper & Lower Reservoir Liner | G18: Yes | H18: Sq.Ft | I18: =IF(G18="Yes",IF(O18,O18,(SQRT(((C16^2)*(C17/2)^2)+((C16^2)*((2*C11*C26)/C17)^2)+(((C17/2)^2)*((2*C11*C26)/C17)^2))+SQRT(((C18^2)*(C19/2)^2)+((C18^2)*((2*C13*C26)/C19)^2)+(((C19/2)^2)*((2*C13*C26)/C19)^2)))),0) -> 15603360.59 | J18: =IFERROR(VLOOKUP(C49,'Cost Curves S-PSH'!AE241:AG243,3,FALSE),0) -> 4.444444444 | K18: =VLOOKUP(C9,'Locational Adj Factors'!$A$3:$B$55,2,FALSE)/100 -> 1 | L18: 1 | M18: 1 | N18: =IF(P18,P18,J18*K18*L18*M18) -> 4.444444444 | O18: 0 | P18: 0 | Q18: =N18*I18 -> 69348269.31 | R18: =Q18/$Q$53 -> 0.02513845745 | T18: 46260613.8 | U18: liner
B19: Lower Dam Crest Length | C19: 1100 | D19: ft
B20: Acreage to be acquired | C20: 2185 | D20: acres | F20: Water Conductors
B21: Generation Time | C21: 18.5 | D21: hours | F21: Upper Low & High Pressure Tunnels | G21: Yes | H21: Ft | I21: =IF(G21="Yes",IF(O21,O21,(C15-C92-I23/C109-I24/C109)*0.5),0)*$C$96 -> 6293.25 | J21: =IF(C34="Average",IF(I21*C25<=0.5,'Cost Curves S-PSH'!V95,IF(AND(I21*C25>0.5,I21*C25<=1),'Cost Curves S-PSH'!W95,IF(AND(I21*C25>1,I21*C25<=2),'Cost Curves S-PSH'!X95,IF(I21*C25>2,'Cost Curves S-PSH'!Y95)))),IF(C34="Poor",IF(I21*C25<=0.5,'Cost Curves S-PSH'!Z95,IF(AND(I21*C25>0.5,I21*C25<=1),'Cost Curves S-PSH'!AA95,IF(AND(I21*C25>1,I21*C25<=2),'Cost Curves S-PSH'!AB95,IF(I21*C25>2,'Cost Curves S-PSH'!AC95)))))) -> 3667.287933 | K21: =VLOOKUP(C9,'Locational Adj Factors'!$A$3:$B$55,2,FALSE)/100 -> 1 | L21: =IF(C54="Yes",'Market Adj Factors'!U67,1) -> 3.856 | M21: ='Market Adj Factors'!X67 -> 1.079051383 | N21: =IF(P21,P21,J21*K21*L21*M21) -> 15258.9328 | O21: 0 | P21: 0 | Q21: =N21*I21 -> 96028278.87 | R21: =Q21/$Q$53 -> 0.03480984928 | S21: =SUM(R21:R26) -> 0.1039087709 | T21: 88504415.75
F22: Vertical Shafts | G22: Yes | H22: Ft | I22: =IF(G22="Yes",IF(O22,O22,C92),0)*C96 -> 1326 | J22: ='Cost Curves S-PSH'!AI90 -> 4761.61309 | K22: =VLOOKUP(C9,'Locational Adj Factors'!$A$3:$B$55,2,FALSE)/100 -> 1 | L22: =IF(C54="Yes",'Market Adj Factors'!U66,1) -> 4.338 | M22: ='Market Adj Factors'!X66 -> 1.079051383 | N22: 22288.75328 | O22: 0 | P22: 0 | Q22: 29554886.85 | R22: 0.01071352282 | T22: 27347886.62
B23: Unit Conversion Factors and Constants | F23: Penstock Tunnels | G23: Yes | H23: Ft | I23: =IF(G23="Yes",IF(C48="Underground",IF(O23,O23,C92*0.25),0))*$C$109 -> 1326 | J23: =IF(C14<=500,'Cost Curves S-PSH'!B131,IF(AND(C14>500,C14<=1000),'Cost Curves S-PSH'!C131,IF(AND(C14>1000,C14<=1500),'Cost Curves S-PSH'!D131,IF(C14>1500,'Cost Curves S-PSH'!E131)))) -> 4825.815231 | K23: =VLOOKUP(C9,'Locational Adj Factors'!$A$3:$B$55,2,FALSE)/100 -> 1 | L23: =IF($C$54="Yes",'Market Adj Factors'!U67,1) -> 3.856 | M23: ='Market Adj Factors'!X67 -> 1.079051383 | N23: 20079.35883 | O23: 0 | P23: 0 | Q23: 26625229.81 | R23: 0.009651534396 | T23: 29256438.24
B24: Meter to Feet | C24: 3.28084 | D24: feet | F24: Draft Tube Tunnels | G24: Yes | H24: Ft | I24: =IF(G24="Yes",IF(C47="Underground",IF(O24,O24,150),0))*$C$109 -> 600 | J24: =IF(C47="Underground",IF(C14-C91<=500,'Cost Curves S-PSH'!B131,IF(AND(C14-C91>500,C14-C91<=1000),'Cost Curves S-PSH'!C131,IF(AND(C14-C91>1000,C14-C91<=1500),'Cost Curves S-PSH'!D131,IF(C14-C91>1500,'Cost Curves S-PSH'!E131)))),0) -> 2723.946698 | K24: =VLOOKUP($C$9,'Locational Adj Factors'!$A$3:$B$55,2,FALSE)/100 -> 1 | L24: =IF($C$54="Yes",'Market Adj Factors'!U69,1) -> 4.579 | M24: ='Market Adj Factors'!X69 -> 1.079051383 | N24: 13458.95604 | O24: 0 | P24: 0 | Q24: =N24*I24 -> 8075373.622 | R24: 0.002927289148 | T24: 24140427.52
B25: Feet to Miles | C25: 0.000189394 | D25: miles | F25: Tailrace Tunnels | G25: Yes | H25: Ft | I25: =IF(G25="Yes",IF(O25,O25,(C15-C92-I23/C109-I24/C109)*0.5),0)*$C$96 -> 6293.25 | J25: =IF(C47="Underground",IF(C14<=500,'Cost Curves S-PSH'!B131,IF(AND(C14>500,C14<=1000),'Cost Curves S-PSH'!C131,IF(AND(C14>1000,C14<=1500),'Cost Curves S-PSH'!D131,IF(C14>1500,'Cost Curves S-PSH'!E131)))),0) -> 4825.815231 | K25: =VLOOKUP($C$9,'Locational Adj Factors'!$A$3:$B$55,2,FALSE)/100 -> 1 | L25: =IF($C$54="Yes",'Market Adj Factors'!U67,1) -> 3.856 | M25: ='Market Adj Factors'!X67 -> 1.079051383 | N25: 20079.35883 | O25: 0 | P25: 0 | Q25: 126364424.9 | R25: 0.04580657529 | T25: 88504415.75
B26: Ac. Ft to Cu. Ft | C26: 43559.9 | D26: cu.ft | F26: Surface Penstock | G26: Yes | H26: Ft | I26: =IF(G26="Yes",IF(O26,O26,IF( C48="Surface",C109*C92*0.25,0)),0) -> 0 | J26: =IF(OR(C107<100, C48="Surface"),IF(C14<=300,'Cost Curves S-PSH'!L131,IF(AND(C14>300,C14<=500),'Cost Curves S-PSH'!M131,IF(AND(C14>500,C14<=700),'Cost Curves S-PSH'!N131,IF(AND(C14>700,C14<=1000),'Cost Curves S-PSH'!O131,IF(C14>1000,'Cost Curves S-PSH'!P131))))),0) -> 0 | K26: =VLOOKUP($C$9,'Locational Adj Factors'!$A$3:$B$55,2,FALSE)/100 -> 1 | L26: =IF($C$54="Yes",IF(C48="Surface",'Market Adj Factors'!U65,'Market Adj Factors'!U68),1) -> 4.579 | M26: =IF(C48="Surface",'Market Adj Factors'!X65,'Market Adj Factors'!X68) -> 1.079051383 | N26: 0 | O26: 0 | P26: 0 | Q26: 0 | R26: 0 | T26: 0
B27: Cu. Ft to Cu. Yd | C27: 1613.33 | D27: CY
B28: Hr to Sec | C28: 3600 | D28: s | F28: Powerstation Equipment
B29: MW to W | C29: 1000000 | D29: W | F29: Pump/Motors | G29: Yes | H29: LS | I29: =IF(G29="Yes",1,0) -> 1 | J29: =VLOOKUP(C51,'Cost Curves S-PSH'!$AO$205:$AQ$206,2,FALSE)*IF(C107>100,0,'Cost Curves S-PSH'!D365) -> 0 | K29: =VLOOKUP($C$9,'Locational Adj Factors'!$A$3:$B$55,2,FALSE)/100 -> 1 | L29: =IF($C$54="Yes",'Market Adj Factors'!U72,1) -> 4.097 | M29: ='Market Adj Factors'!X72 -> 1.090069284 | N29: =IF(P29,P29,J29*K29*L29*M29) -> 0 | O29: 0 | P29: 0 | Q29: =N29*I29 -> 0 | R29: =Q29/$Q$53 -> 0 | S29: =IF(AND(R29=0%,R30=0%),R31,IF(R31=0%,SUM(R29:R30))) -> 0.2144378603 | T29: 0
B30: acceleration of gravity (metric) | C30: 9.81 | D30: m/s^2 | F30: Generator/Turbines | G30: Yes | H30: kW | I30: =IF(G30="Yes",IF(C107<=100,IF(O30,O30,I10),0),0) -> 0 | J30: =IF(C107>100,0,IF(C107<=100,'Cost Curves S-PSH'!E374,'Cost Curves S-PSH'!E378)) -> 0 | K30: =VLOOKUP($C$9,'Locational Adj Factors'!$A$3:$B$55,2,FALSE)/100 -> 1 | L30: =IF($C$54="Yes",'Market Adj Factors'!U72,1) -> 4.097 | M30: ='Market Adj Factors'!X72 -> 1.090069284 | N30: 0 | O30: 0 | P30: 0 | Q30: =N30*I30 -> 0 | R30: =Q30/$Q$53 -> 0 | T30: 0
B31: density of water (metric) | C31: 1000 | D31: kg/m^2 | F31: Total Powerstation | G31: Yes | H31: kW | I31: =IF(G31="Yes",IF(C107>100,IF(O31,O31,C108*1000),0),0) -> 1283324.821 | J31: =VLOOKUP(C51,'Cost Curves S-PSH'!$AO$205:$AQ$206,2,FALSE)*IF(C107<=100,0,IF(C47="Underground", IF(C110<=80,IF(C109<=2,'Cost Curves S-PSH'!B171,IF(AND(C109>2,C109<=3),'Cost Curves S-PSH'!C171,IF(AND(C109>3,C109<=4),'Cost Curves S-PSH'!D171,IF(C109>4,'Cost Curves S-PSH'!E171)))),IF(AND(C110>80,C110<=125),IF(C109<=2,'Cost Curves S-PSH'!L171,IF(AND(C109>2,C109<=3),'Cost Curves S-PSH'!M171,IF(AND(C109>3,C109<=4),'Cost Curves S-PSH'!N171,IF(C109>4,'Cost Curves S-PSH'!O171)))),IF(AND(C110>125,C110<=225),IF(C109<=2,'Cost Curves S-PSH'!V171,IF(AND(C109>2,C109<=3),'Cost Curves S-PSH'!W171,IF(AND(C109>3,C109<=4),'Cost Curves S-PSH'!X171,IF(C109>4,'Cost Curves S-PSH'!Y171)))),IF(C110>225,IF(C109<=2,'Cost Curves S-PSH'!AF171,IF(AND(C109>2,C109<=3),'Cost Curves S-PSH'!AG171,IF(AND(C109>3,C109<=4),'Cost Curves S-PSH'!AH171,IF(C109>4,'Cost Curves S-PSH'!AI171)))))))),IF(C47="Surface", IF(C110<=80,IF(C109<=2,'Cost Curves S-PSH'!B213,IF(AND(C109>2,C109<=3),'Cost Curves S-PSH'!C213,IF(AND(C109>3,C109<=4),'Cost Curves S-PSH'!D213,IF(C109>4,'Cost Curves S-PSH'!E213)))),IF(AND(C110>80,C110<=125),IF(C109<=2,'Cost Curves S-PSH'!L213,IF(AND(C109>2,C109<=3),'Cost Curves S-PSH'!M213,IF(AND(C109>3,C109<=4),'Cost Curves S-PSH'!N213,IF(C109>4,'Cost Curves S-PSH'!O213)))),IF(AND(C110>125,C110<=225),IF(C109<=2,'Cost Curves S-PSH'!V213,IF(AND(C109>2,C109<=3),'Cost Curves S-PSH'!W213,IF(AND(C109>3,C109<=4),'Cost Curves S-PSH'!X213,IF(C109>4,'Cost Curves S-PSH'!Y213)))),IF(C110>225,IF(C109<=2,'Cost Curves S-PSH'!AF213,IF(AND(C109>2,C109<=3),'Cost Curves S-PSH'!AG213,IF(AND(C109>3,C109<=4),'Cost Curves S-PSH'!AH213,IF(C109>4,'Cost Curves S-PSH'!AI213))))))))))) -> 103.21476 | K31: =VLOOKUP($C$9,'Locational Adj Factors'!$A$3:$B$55,2,FALSE)/100 -> 1 | L31: =IF($C$54="Yes",'Market Adj Factors'!U72,1) -> 4.097 | M31: ='Market Adj Factors'!X72 -> 1.090069284 | N31: =IF(P31,P31,J31*K31*L31*M31) -> 460.9585484 | O31: 0 | P31: 0 | Q31: =N31*I31 -> 591559546.5 | R31: =Q31/$Q$53 -> 0.2144378603 | T31: 541852349.1
B33: Condition Related | F33: Roads, Railroads, Bridges, and Access
B34: Tunneling Condition | C34: Average | D34: # | F34: Access Roads | G34: Yes | H34: Miles | I34: =IF(G34="Yes",IF(O34,O34,C38),0) -> 3.61 | J34: =INDEX('Cost Curves S-PSH'!W241:X243,MATCH('Cost Model S-PSH'!C35,'Cost Curves S-PSH'!V241:V243,0),MATCH('Cost Model S-PSH'!C36,'Cost Curves S-PSH'!W240:X240,0)) -> 189000 | K34: =VLOOKUP($C$9,'Locational Adj Factors'!$A$3:$B$55,2,FALSE)/100 -> 1 | L34: =IF($C$54="Yes",'Market Adj Factors'!U71,1) -> 2.41 | M34: ='Market Adj Factors'!X71 -> 1.043831169 | N34: =IF(P34,P34,J34*K34*L34*M34) -> 475454.6591 | O34: 0 | P34: 0 | Q34: =N34*I34 -> 1716391.319 | R34: =Q34/$Q$53 -> 0.0006221846713 | S34: =SUM(R34:R36) -> 0.01667916036 | T34: 1641809.046
B35: Access Road, Terrain | C35: Flat | D35: # | F35: Access Tunnels | G35: Yes | H35: Ft | I35: =IF(G35="Yes",IF(C47="Surface",0,IF(O35,O35,C39*5280)),0) -> 6600 | J35: =IF(C47="Surface",0,'Cost Curves S-PSH'!D242) -> 2555.818837 | K35: =VLOOKUP($C$9,'Locational Adj Factors'!$A$3:$B$55,2,FALSE)/100 -> 1 | L35: =IF($C$54="Yes",'Market Adj Factors'!U70,1) -> 2.41 | M35: ='Market Adj Factors'!X70 -> 1.079051383 | N35: =IF(P35,P35,J35*K35*L35*M35) -> 6646.442244 | O35: 0 | P35: 0 | Q35: =N35*I35 -> 43866518.81 | R35: =Q35/$Q$53 -> 0.01590142952 | T35: 40590802.76
B36: Access Road, Type | C36: New | D36: # | F36: Highway Realignment | G36: Yes | H36: % | I36: =IF(G36="Yes",IF(C37="Yes",25%,0%),0) -> 0.25 | O36: 0 | P36: NA | Q36: =Q34*I36 -> 429097.8298 | R36: =Q36/$Q$53 -> 0.0001555461678 | T36: 410452.2614
B37: Highway Realignment | C37: Yes | D37: #
B38: Access Road | C38: 3.61 | D38: miles | F38: Switchyard | G38: Yes | H38: LS | I38: =IF(G38="Yes",1,0) -> 1 | J38: ='Cost Curves S-PSH'!Q248*1000000 -> 16726800 | K38: =VLOOKUP($C$9,'Locational Adj Factors'!$A$3:$B$55,2,FALSE)/100 -> 1 | L38: =IF($C$54="Yes",'Market Adj Factors'!U74,1) -> 2.41 | M38: ='Market Adj Factors'!X74 -> 1.063424947 | N38: =IF(P38,P38,J38*K38*L38*M38) -> 42868348.34 | O38: 0 | P38: 0 | Q38: =N38*I38 -> 42868348.34 | R38: =Q38/$Q$53 -> 0.0155395969 | S38: =R38 -> 0.0155395969 | T38: 40250057.23
B39: Access Tunnel, Length | C39: 1.25 | D39: miles
B40: Water Supply = | C40: No | D40: # | F40: Transmission Lines | G40: Yes | H40: Miles | I40: =IF(G40="Yes",C64,0) -> 13.5 | J40: ='Cost Curves S-PSH'!G303*1000*C120*C121 -> 1150309.089 | K40: =VLOOKUP($C$9,'Locational Adj Factors'!$A$3:$B$55,2,FALSE)/100 -> 1 | L40: =IF($C$54="Yes",'Market Adj Factors'!U73,1) -> 3.133 | M40: ='Market Adj Factors'!X73 -> 1.050438596 | N40: =IF(P40,P40,J40*K40*L40*M40) -> 3785694.96 | O40: 0 | P40: 0 | Q40: =N40*I40 -> 51106881.96 | R40: =Q40/$Q$53 -> 0.01852603086 | S40: =R40 -> 0.01852603086 | T40: 48578635.3
B41: Water Supply Cost = | C41: 100 | D41: $/ac-ft
F42: Others
B43: Technology Related | F43: Water Supply | G43: Yes | H43: ac-ft | I43: =IF(G43="Yes",IF(C40="Yes",C88,0),0) -> 0 | J43: =C41 -> 100 | K43: =VLOOKUP($C$9,'Locational Adj Factors'!$A$3:$B$55,2,FALSE)/100 -> 1 | L43: 1 | M43: 1 | N43: =IF(P43,P43,J43*K43*L43*M43) -> 100 | O43: 0 | P43: 0 | Q43: =N43*I43 -> 0 | R43: =Q43/$Q$53 -> 0 | S43: =SUM(R43:R44) -> 0 | T43: 0
B44: U. Reservoir Intake/Outlet | C44: Vertical | D44: #
B45: L. Reservoir Intake/Outlet | C45: Horizontal | D45: # | F45: Indirect Costs
B46: Power Station Structure Geology | C46: Adverse | D46: # | F46: Mobilization/Demobilization | G46: Yes | H46: % | I46: =IF(G46="Yes",IF(O46,O46,C55),0) -> 0.05 | O46: 0 | P46: NA | Q46: =I46*SUM(Q8:Q43) -> 77708522.05 | R46: =Q46/$Q$53 -> 0.02816901408 | S46: =SUM(R46:R51) -> 0.4366197183 | T46: 68606694.88
B47: Power Station | C47: Underground | D47: # | F47: Sales Tax | G47: Yes | H47: % | I47: =IF(G47="Yes",IF(O47,O47,C57),0) -> 0.06 | O47: 0 | P47: NA | Q47: =I47*C56*SUM(Q8:Q43) -> 69937669.84 | R47: 0.02535211268 | T47: 82328033.86
B48: Penstock | C48: Underground | D48: # | F48: Contingency | G48: Yes | H48: % | I48: =IF(G48="Yes",IF(O48,O48,C58),0) -> 0.33 | O48: 0 | P48: NA | Q48: =SUM(Q8:Q43)*I48 -> 512876245.5 | R48: 0.185915493 | T48: 452804186.2
B49: Reservoir Liner | C49: Geomembrane Single Liner | D49: # | F49: EPC Cost | G49: Yes | H49: % | I49: =IF(G49="Yes",IF(O49,O49,C59),0) -> 0.25 | O49: 0 | P49: NA | Q49: =I49*SUM(Q8:Q43) -> 388542610.2 | R49: 0.1408450704 | T49: 343033474.4
B50: Dam Type | C50: RCC | D50: # | F50: Developer Cost | G50: Yes | H50: % | I50: =IF(G50="Yes",IF(O50,O50,C60),0) -> 0.03 | O50: 0 | P50: NA | Q50: =SUM(Q8:Q43)*I50 -> 46625113.23 | R50: 0.01690140845 | T50: 41164016.93
B51: Pump Type | C51: Fixed | D51: # | F51: Overhead & Profit | G51: Yes | H51: % | I51: =IF(G51="Yes",IF(O51,O51,C61),0) -> 0.07 | O51: 0 | P51: NA | Q51: =SUM(Q8:Q43)*I51 -> 108791930.9 | R51: 0.03943661972 | T51: 96049372.84
B53: Project Related | F53: Total Direct and Indirect Cost | Q53: =SUM(Q8:Q51) -> 2758652533 | R53: =SUM(R8:R51) -> 1 | S53: =SUM(S8:S51) -> 0.9748615426 | T53: 2456119677
B54: Inflation Factor | C54: Yes | D54: #
B55: Mobilization/Demobilization = | C55: 0.05 | D55: % | F55: System Cost
B56: Material/Equipment % = | C56: 0.75 | D56: % | F56: Total Direct and Indirect Cost $ | G56: =Q53 -> 2758652533
B57: Sales Tax = | C57: 0.06 | D57: % | F57: $/kW (Max. Power Capacity) | G57: =G56/(C108*1000) -> 2149.613635
B58: Contingency = | C58: 0.33 | D58: % | F58: $/kWh (Max. Energy Capacity) | G58: =G56/(C108*C21*1000) -> 116.1953316
B59: EPC Cost = | C59: 0.25 | D59: %
B60: Developer Cost = | C60: 0.03 | D60: %
B61: Overhead & Profit = | C61: 0.07 | D61: %
B63: Transmission Related
B64: Transmission Distance = | C64: 13.5 | D64: miles
B65: Transmission = | C65: 500 | D65: kV
B66: Substation = | C66: 500 | D66: kV
B67: Transmission Terrain = | C67: Mountain | D67: #
B68: Transmission Type (# circuits) = | C68: Double | D68: #
B70: Project Related
B71: Active Storage = | C71: 0.85 | D71: x Gross Storage
B72: Hmin/Hmax = | C72: 0.7 | D72: #
B73: Hazen Williams C = | C73: 90 | D73: #
B74: P-T Efficiency = | C74: 0.88 | D74: %
B75: Max Tunnel Velocity = | C75: 23 | D75: fps
B76: Max Tunnel Dia = | C76: 35 | D76: feet
B77: Max Unit Capacity = | C77: 350 | D77: MW
B78: Min No. Units = | C78: 2 | D78: #
B79: Pump Time = | C79: =12/10 -> 1.2 | D79: x gen time
B81: Output Specifications
B82: Project Related
B83: Conveyance Length | C83: =C15*C25 -> 2.726137236 | D83: miles
B84: Avg. Upper Reservoir Volume = | C84: =C11*C10 -> 19291 | D84: ac-ft
B85: Avg. Lower Reservoir Volume = | C85: =C13*C12 -> 19560 | D85: ac-ft
B86: Avg. Upper Dam Volume = | C86: =IF(C50="Rockfill",'Cost Curves S-PSH'!AA284,IF(C50="Earthfill",'Cost Curves S-PSH'!Z293,IF(C50="RCC",'Cost Curves S-PSH'!AB284))) -> 327938 | D86: CY
B87: Avg. Lower Dam Volume = | C87: =IF(C50="Rockfill",'Cost Curves S-PSH'!AA285,IF(C50="Earthfill",'Cost Curves S-PSH'!AB293,IF(C50="RCC",'Cost Curves S-PSH'!AB285))) -> 184954 | D87: CY
B88: Active Storage = | C88: =C71*C84 -> 16397.35 | D88: ac-ft
B89: Energy Storage = | C89: =C107*C21 -> 18593.07142 | D89: MWh
B90: Mean Gen Discharge = | C90: =C88*C26/C21/C28 -> 10724.72862 | D90: cfs
B91: Min Gross Head = | C91: =C72*C14 -> 1092 | D91: feet
B92: Mean Gross Head = | C92: =(C91+C14)/2 -> 1326 | D92: feet
B93: Min Gen Discharge = | C93: =(C91/C$92)^0.5*C$90 -> 9732.532638 | D93: cfs
B94: Max Gen Discharge = | C94: =(C14/C$92)^0.5*C$90 -> 11632.60145 | D94: cfs
B95: Nominal Tunnel Dia = | C95: =((C94/C75)*4/PI())^0.5 -> 25.37637396 | D95: feet
B96: No. Tunnels = | C96: =IF(C95<C76,1,2) -> 1 | D96: #
B97: Adjusted Tunnel Dia = | C97: =((C94/C96/C75)*4/PI())^0.5 -> 25.37637396 | D97: feet
B98: L/H = | C98: =C15/C92 -> 10.85520362 | D98: #
B99: Surge Chambers | C99: =IF(C98>=7,"Yes","No") -> Yes | D99: #
B100: Min Gen Headloss = | C100: =4.73*C93^1.85/C$73^1.85/C$97^4.87*C$15 -> 57.06106444 | D100: feet
B101: Mean Gen Headloss = | C101: =4.73*C90^1.85/C$73^1.85/C$97^4.87*C$15 -> 68.28678845 | D101: feet
B102: Max Gen Headloss = | C102: =4.73*C94^1.85/C$73^1.85/C$97^4.87*C$15 -> 79.36411576 | D102: feet
B103: Net Head @ Min Gen Discharge = | C103: =C91-C100 -> 1034.938936 | D103: feet
B104: Net Head @ Mean Gen Discharge = | C104: =C92-C101 -> 1257.713212 | D104: feet
B105: Net Head @ Max Gen Discharge = | C105: =C$14-C102 -> 1480.635884 | D105: feet
B106: Min Plant Gen Power (Firm Capacity) = | C106: =C93*C103*C$74*$C$30*$C$31/$C$29*(1/C24)^4 -> 750.5023722 | D106: MW
B107: Mean Plant Gen Power = | C107: =C90*C104*C$74*$C$30*$C$31/$C$29*(1/C24)^4 -> 1005.030888 | D107: MW
B108: Max Plant Gen Power = | C108: =C94*C105*C$74*$C$30*$C$31/$C$29*(1/C24)^4 -> 1283.324821 | D108: MW
B109: No. Units = | C109: =IF(C108/C77<=C78,C78,ROUNDUP(C108/C77,0)) -> 4 | D109: #
B110: Unit Rating = | C110: =C108/C109 -> 320.8312052 | D110: MW
B111: Max Penstock Velocity = | C111: ='Cost Curves S-PSH'!V130 -> 28.056 | D111: fps
B112: Max DraftTube Velocity = | C112: ='Cost Curves S-PSH'!AA130 -> 9.6688 | D112: fps
B113: Penstock Dia = | C113: =((C94/(C111*C109))*4/PI())^0.5 -> 11.4881636 | D113: feet
B114: Draft Tube Tunnel Dia = | C114: =((C94/(C112*C109))*4/PI())^0.5 -> 19.569386 | D114: feet
B115: Pump Time = | C115: =C79*C21 -> 22.2 | D115: hrs
B116: Mean Pump Discharge = | C116: =C88*C26/C115/3600 -> 8937.273852 | D116: cfs
B117: Mean Pump Headloss = | C117: =4.73*C116^1.85/C73^1.85/C97^4.87*C15 -> 48.73616848 | D117: feet
B118: Mean Pump Net Head = | C118: =C92+C117 -> 1374.736168 | D118: feet
B119: Mean Pump Power = | C119: =C116*C118*C74*$C$30*$C$31/$C$29*(1/C24)^4 -> 915.4526771 | D119: MW
B120: Tranmission Terrain Multiplier = | C120: =VLOOKUP(C67,'Cost Curves S-PSH'!H276:I284,2,FALSE) -> 1.75 | D120: #
B121: Tranmission Type Multiplier = | C121: =IF(C68="Double",'Cost Curves S-PSH'!I287,1) -> 1.600469629 | D121: #

Sheet Cost Curves S-PSH
B1: Underground Powestation Structure Cost 80MW units | L1: Underground Powestation Structure Cost 350MW units | V1: Surface Powestation Structure Cost 80MW units | AF1: Surface Powestation Structure Cost 350MW units
B2: $/kW Average Conditions | F2: $/kW Adverse Conditions | L2: $/kW Average Conditions | P2: $/kW Adverse Conditions | V2: $/kW Average Conditions | Z2: $/kW Adverse Conditions | AF2: $/kW Average Conditions | AJ2: $/kW Adverse Conditions
A3: Average Head, Ft | B3: 160 MW | C3: 240 MW | D3: 320 MW | E3: 480 MW | F3: 160 MW | G3: 240 MW | H3: 320 MW | I3: 480 MW | K3: Average Head, Ft | L3: 700 MW | M3: 1050 MW | N3: 1400 MW | O3: 2100 MW | P3: 700 MW | Q3: 1050 MW | R3: 1400 MW | S3: 2100 MW | U3: Average Head, Ft | V3: 160 MW | W3: 240 MW | X3: 320 MW | Y3: 480 MW | Z3: 160 MW | AA3: 240 MW | AB3: 320 MW | AC3: 480 MW | AE3: Average Head, Ft | AF3: 700 MW | AG3: 1050 MW | AH3: 1400 MW | AI3: 2100 MW | AJ3: 700 MW | AK3: 1050 MW | AL3: 1400 MW | AM3: 2100 MW
A4: 350 | B4: 135 | C4: 116 | D4: 104 | E4: 92 | F4: 174 | G4: 145 | H4: 132 | I4: 118 | K4: 500 | L4: 78 | M4: 70 | N4: 62 | O4: 58 | P4: 98 | Q4: 84 | R4: 78 | S4: 70 | U4: 350 | V4: 84 | W4: 77 | X4: 72.5 | Y4: 67 | Z4: 112 | AA4: 95 | AB4: 87 | AC4: 78 | AE4: 350 | AF4: 38 | AG4: 35 | AH4: 32 | AI4: 30 | AJ4: 58 | AK4: 48.5 | AL4: 45 | AM4: 39
A5: 500 | B5: 113 | C5: 96 | D5: 86 | E5: 78 | F5: 150 | G5: 124 | H5: 113.5 | I5: 102 | K5: 1000 | L5: 48 | M5: 42 | N5: 37 | O5: 33 | P5: 62 | Q5: 52 | R5: 46 | S5: 42.25 | U5: 500 | V5: 84 | W5: 77.25 | X5: 74 | Y5: 68 | Z5: 113.5 | AA5: 96 | AB5: 89 | AC5: 79.5 | AE5: 500 | AF5: 36 | AG5: 34 | AH5: 30 | AI5: 28 | AJ5: 54 | AK5: 45 | AL5: 42 | AM5: 37
A6: 1000 | B6: 91 | C6: 76 | D6: 68 | E6: 60 | F6: 116 | G6: 98 | H6: 86 | I6: 76.5 | K6: 1500 | L6: 40.5 | M6: 34 | N6: 30 | O6: 26 | P6: 53 | Q6: 43 | R6: 39 | S6: 34.5 | U6: 1000 | V6: 87 | W6: 80 | X6: 76 | Y6: 74 | Z6: 118 | AA6: 102 | AB6: 93 | AC6: 85 | AE6: 1000 | AF6: 31 | AG6: 28 | AH6: 26 | AI6: 25 | AJ6: 45 | AK6: 40 | AL6: 37 | AM6: 34
A7: 1500 | B7: 81 | C7: 69 | D7: 59.5 | E7: 54 | F7: 103 | G7: 88 | H7: 77 | I7: 68.5 | K7: 2000 | L7: 36 | M7: 31 | N7: 26 | O7: 24 | P7: 45 | Q7: 39 | R7: 34.5 | S7: 26 | U7: 1500 | V7: 92.5 | W7: 86 | X7: 84 | Y7: 80 | Z7: 125 | AA7: 108 | AB7: 100 | AC7: 91.5 | AE7: 1500 | AF7: 30 | AG7: 27 | AH7: 26 | AI7: 25.25 | AJ7: 44.5 | AK7: 39 | AL7: 36 | AM7: 32
A8: 2000 | B8: 78 | C8: 63 | D8: 58 | E8: 50 | F8: 98 | G8: 82 | H8: 72 | I8: 62.5 | K8: 2250 | L8: 35 | M8: 30 | N8: 25 | O8: 23 | P8: 44 | Q8: 38 | R8: 33.5 | S8: 25 | U8: 2000 | V8: 102 | W8: 95 | X8: 92 | Y8: 87 | Z8: 134 | AA8: 116 | AB8: 106 | AC8: 98 | AE8: 2000 | AF8: 32 | AG8: 30 | AH8: 29 | AI8: 26 | AJ8: 46 | AK8: 41 | AL8: 38 | AM8: 34
A9: 2250 | B9: 77 | C9: 62 | D9: 57 | E9: 49 | F9: 97 | G9: 81 | H9: 71 | I9: 62 | U9: 2250 | V9: 105.5 | W9: 98 | X9: 95 | Y9: 90 | Z9: 137 | AA9: 119 | AB9: 109.5 | AC9: 100 | AE9: 2250 | AF9: 33 | AG9: 31 | AH9: 30 | AI9: 28 | AJ9: 48 | AK9: 42 | AL9: 39.5 | AM9: 35
B10: y = 740.12x-0.298 | C10: y = 760.42x-0.328 | D10: y = 645.72x-0.32 | E10: y = 640.28x-0.337 | F10: y = 1096.7x-0.319 | G10: y = 878.1x-0.313 | H10: y = 926.99x-0.337 | I10: y = 911.22x-0.352 | L10: y = 2032.8x-0.532 | M10: y = 2231.2x-0.565 | N10: y = 2553x-0.604 | O10: y = 2504.2x-0.615 | P10: y = 2613x-0.533 | Q10: y = 2154.7x-0.53 | R10: y = 2380.6x-0.559 | S10: y = 4996.8x-0.687 | V10: y = 5E-06x2 - 0.0009x + 83.095 | W10: y = 4E-06x2 + 0.0004x + 75.715 | X10: y = 4E-06x2 + 0.0021x + 71.437 | Y10: y = 6E-07x2 + 0.0109x + 62.383 | Z10: y = 3E-06x2 + 0.0062x + 109.48 | AA10: y = 1E-06x2 + 0.0099x + 90.767 | AB10: y = 2E-06x2 + 0.0073x + 84.676 | AC10: y = -1E-07x2 + 0.0123x + 73.167 | AF10: y = 6E-06x2 - 0.0183x + 43.547 | AG10: y = 7E-06x2 - 0.0198x + 41.489 | AH10: y = 6E-06x2 - 0.0162x + 36.672 | AI10: y = 5E-06x2 - 0.0128x + 33.573 | AJ10: y = 1E-05x2 - 0.0308x + 67.023 | AK10: y = 7E-06x2 - 0.0207x + 54.238 | AL10: y = 7E-06x2 - 0.0205x + 50.886 | AM10: y = 5E-06x2 - 0.0146x + 43.361
A11: Est. $/kW | B11: =740.12*('Cost Model S-PSH'!C14)^-0.298 -> 82.74676231 | C11: =760.42*('Cost Model S-PSH'!C14)^-0.328 -> 68.18811149 | D11: =645.72*('Cost Model S-PSH'!C14)^-0.32 -> 61.41074508 | E11: =640.28*('Cost Model S-PSH'!C14)^-0.337 -> 53.73867407 | F11: =1096.7*('Cost Model S-PSH'!C14)^-0.319 -> 105.070572 | G11: =878.1*('Cost Model S-PSH'!C14)^-0.313 -> 87.92167998 | H11: =926.99*('Cost Model S-PSH'!C14)^-0.337 -> 77.80223259 | I11: =911.22*('Cost Model S-PSH'!C14)^-0.352 -> 68.49255777 | K11: Est. $/kW | L11: =2032.8*('Cost Model S-PSH'!C14)^-0.532 -> 40.67732316 | M11: =2231.2*('Cost Model S-PSH'!C14)^-0.565 -> 35.02862606 | N11: =2553*('Cost Model S-PSH'!C14)^-0.604 -> 30.08870923 | O11: =2504.2*('Cost Model S-PSH'!C14)^-0.615 -> 27.22058054 | P11: =2613*('Cost Model S-PSH'!C14)^-0.533 -> 51.90437893 | Q11: =2154.7*('Cost Model S-PSH'!C14)^-0.53 -> 43.75531095 | R11: =2380.6*('Cost Model S-PSH'!C14)^-0.559 -> 39.05977874 | S11: =4996.8*('Cost Model S-PSH'!C14)^-0.687 -> 31.99008307 | U11: Est. $/kW | V11: =0.000005*('Cost Model S-PSH'!C14)^2 - 0.0009*('Cost Model S-PSH'!C14) + 83.095 -> 93.859 | W11: =0.000004*('Cost Model S-PSH'!C14)^2 + 0.0004*('Cost Model S-PSH'!C14) + 75.715 -> 86.0734 | X11: =0.000004*('Cost Model S-PSH'!C14)^2 + 0.0021*('Cost Model S-PSH'!C14) + 71.437 -> 84.4474 | Y11: =0.0000006*('Cost Model S-PSH'!C14)^2 + 0.0109*('Cost Model S-PSH'!C14) + 62.383 -> 80.84716 | Z11: =0.000003*('Cost Model S-PSH'!C14)^2 + 0.0062*('Cost Model S-PSH'!C14) + 109.48 -> 126.4528 | AA11: =0.000001*('Cost Model S-PSH'!C14)^2 + 0.0099*('Cost Model S-PSH'!C14) + 90.767 -> 108.6446 | AB11: =0.000002*('Cost Model S-PSH'!C14)^2 + 0.0073*('Cost Model S-PSH'!C14) + 84.676 -> 100.9312 | AC11: =-0.0000001*('Cost Model S-PSH'!C14)^2 + 0.0123*('Cost Model S-PSH'!C14) + 73.167 -> 92.11164 | AE11: Est. $/kW | AF11: =0.000006*('Cost Model S-PSH'!C14)^2 - 0.0183*('Cost Model S-PSH'!C14) + 43.547 -> 29.6006 | AG11: =0.000007*('Cost Model S-PSH'!C14)^2 - 0.0198*('Cost Model S-PSH'!C14) + 41.489 -> 27.6362 | AH11: =0.000006*('Cost Model S-PSH'!C14)^2 - 0.0162*('Cost Model S-PSH'!C14) + 36.672 -> 26.0016 | AI11: =0.000005*('Cost Model S-PSH'!C14)^2 - 0.0128*('Cost Model S-PSH'!C14) + 33.573 -> 25.773 | AJ11: =0.00001*('Cost Model S-PSH'!C14)^2 - 0.0308*('Cost Model S-PSH'!C14) + 67.023 -> 43.311 | AK11: =0.000007*('Cost Model S-PSH'!C14)^2 - 0.0207*('Cost Model S-PSH'!C14) + 54.238 -> 38.9812 | AL11: =0.000007*('Cost Model S-PSH'!C14)^2 - 0.0205*('Cost Model S-PSH'!C14) + 50.886 -> 35.9412 | AM11: =0.000005*('Cost Model S-PSH'!C14)^2 - 0.0146*('Cost Model S-PSH'!C14) + 43.361 -> 32.753
B43: Underground Powestation Structure Cost 125MW units | L43: Underground Powestation Structure Cost 225MW units | V43: Surface Powestation Structure Cost 125MW units | AF43: Surface Powestation Structure Cost 225MW units
B44: $/kW Average Conditions | F44: $/kW Adverse Conditions | L44: $/kW Average Conditions | P44: $/kW Adverse Conditions | V44: $/kW Average Conditions | Z44: $/kW Adverse Conditions | AF44: $/kW Average Conditions | AJ44: $/kW Adverse Conditions
A45: Average Head, Ft | B45: 250 MW | C45: 375 MW | D45: 500 MW | E45: 750 MW | F45: 250 MW | G45: 375 MW | H45: 500 MW | I45: 750 MW | K45: Average Head, Ft | L45: 450 MW | M45: 675 MW | N45: 900 MW | O45: 1350 MW | P45: 450 MW | Q45: 675 MW | R45: 900 MW | S45: 1350 MW | U45: Average Head, Ft | V45: 250 MW | W45: 375 MW | X45: 500 MW | Y45: 750 MW | Z45: 250 MW | AA45: 375 MW | AB45: 500 MW | AC45: 750 MW | AE45: Average Head, Ft | AF45: 450 MW | AG45: 675 MW | AH45: 900 MW | AI45: 1350 MW | AJ45: 450 MW | AK45: 675 MW | AL45: 900 MW | AM45: 1350 MW
A46: 350 | B46: 123 | C46: 108 | D46: 97 | E46: 90 | F46: 158 | G46: 134 | H46: 122 | I46: 112 | K46: 350 | L46: 116 | M46: 100 | N46: 92 | O46: 83 | P46: 148 | Q46: 126 | R46: 116 | S46: 104 | U46: 350 | V46: 63 | W46: 56 | X46: 52 | Y46: 48 | Z46: 92 | AA46: 75.5 | AB46: 70 | AC46: 64 | AE46: 350 | AF46: 50 | AG46: 44 | AH46: 41 | AI46: 38 | AJ46: 73 | AK46: 61.5 | AL46: 56 | AM46: 50
A47: 500 | B47: 95 | C47: 83 | D47: 75 | E47: 68 | F47: 120 | G47: 103 | H47: 96 | I47: 86 | K47: 500 | L47: 95 | M47: 80 | N47: 73 | O47: 64 | P47: 116 | Q47: 100 | R47: 94 | S47: 83 | U47: 500 | V47: 62 | W47: 55 | X47: 52 | Y47: 48 | Z47: 90 | AA47: 76 | AB47: 71 | AC47: 64 | AE47: 500 | AF47: 46 | AG47: 41.5 | AH47: 38 | AI47: 36 | AJ47: 70 | AK47: 59 | AL47: 55 | AM47: 48
A48: 1000 | B48: 69 | C48: 58 | D48: 52 | E48: 48 | F48: 87 | G48: 74 | H48: 66 | I48: 58 | K48: 1000 | L48: 59 | M48: 52 | N48: 44 | O48: 40 | P48: 74 | Q48: 64 | R48: 55 | S48: 52 | U48: 1000 | V48: 60 | W48: 54 | X48: 53 | Y48: 49 | Z48: 90 | AA48: 78 | AB48: 74 | AC48: 66 | AE48: 1000 | AF48: 42 | AG48: 37 | AH48: 36 | AI48: 34.5 | AJ48: 64 | AK48: 55.5 | AL48: 51 | AM48: 46
A49: 1500 | B49: 63 | C49: 54 | D49: 46 | E49: 41 | F49: 79 | G49: 69 | H49: 62 | I49: 56 | K49: 1500 | L49: 46 | M49: 41 | N49: 36 | O49: 32 | P49: 60 | Q49: 50 | R49: 44 | S49: 40 | U49: 1500 | V49: 62 | W49: 56 | X49: 54.5 | Y49: 53 | Z49: 94 | AA49: 82 | AB49: 75.5 | AC49: 69 | AE49: 1500 | AF49: 44 | AG49: 40 | AH49: 37.5 | AI49: 36 | AJ49: 62 | AK49: 55 | AL49: 50 | AM49: 47
A50: 2000 | B50: 58 | C50: 50 | D50: 44 | E50: 39 | F50: 76 | G50: 64 | H50: 56 | I50: 52 | K50: 2000 | L50: 45 | M50: 38.75 | N50: 34 | O50: 30 | P50: 56 | Q50: 48 | R50: 43 | S50: 38 | U50: 2000 | V50: 66 | W50: 64 | X50: 59 | Y50: 56 | Z50: 98 | AA50: 85 | AB50: 80 | AC50: 74 | AE50: 2000 | AF50: 45 | AG50: 43 | AH50: 40 | AI50: 38 | AJ50: 64 | AK50: 56 | AL50: 53 | AM50: 49
A51: 2250 | B51: 56 | C51: 49 | D51: 43 | E51: 38 | F51: 74 | G51: 62 | H51: 54 | I51: 51 | K51: 2250 | L51: 45 | M51: 38.5 | N51: 33.75 | O51: 29.5 | P51: 57 | Q51: 48 | R51: 43 | S51: 38.5 | U51: 2250 | V51: 71 | W51: 66 | X51: 63 | Y51: 60 | Z51: 101 | AA51: 89 | AB51: 83 | AC51: 75 | AE51: 2250 | AF51: 46 | AG51: 44 | AH51: 41 | AI51: 38.5 | AJ51: 66 | AK51: 58 | AL51: 55 | AM51: 50
B52: y = 1229.6x-0.405 | C52: y = 1113.2x-0.412 | D52: y = 1126.8x-0.431 | E52: y = 1195.5x-0.454 | F52: y = 1435.5x-0.392 | G52: y = 1258x-0.396 | H52: y = 1375x-0.424 | I52: y = 1131x-0.41 | L52: y = 2163.3x-0.512 | M52: y = 1725.2x-0.501 | N52: y = 1735.2x-0.52 | O52: y = 1578.2x-0.524 | P52: y = 2315.8x-0.49 | Q52: y = 2194.6x-0.505 | R52: y = 2353.1x-0.53 | S52: y = 2162.4x-0.533 | V52: y = 7E-06x2 - 0.0146x + 67.574 | W52: y = 7E-06x2 - 0.0117x + 59.042 | X52: y = 5E-06x2 - 0.0065x + 54.377 | Y52: y = 3E-06x2 - 0.0018x + 48.04 | Z52: y = 4E-06x2 - 0.0039x + 90.761 | AA52: y = 2E-06x2 + 0.0008x + 75.02 | AB52: y = 2E-06x2 + 0.0002x + 70.655 | AC52: y = 2E-06x2 + 0.002x + 62.446 | AF52: y = 6E-06x2 - 0.0159x + 53.593 | AG52: y = 6E-06x2 - 0.0157x + 47.989 | AH52: y = 5E-06x2 - 0.0116x + 43.522 | AI52: y = 3E-06x2 - 0.0078x + 39.647 | AJ52: y = 8E-06x2 - 0.0241x + 80.261 | AK52: y = 5E-06x2 - 0.0155x + 65.884 | AL52: y = 6E-06x2 - 0.0165x + 61.35 | AM52: y = 4E-06x2 - 0.0099x + 52.44
A53: Est. $/kW | B53: =1229.6*('Cost Model S-PSH'!C14)^-0.405 -> 62.59626092 | C53: =1113.2*('Cost Model S-PSH'!C14)^-0.412 -> 53.82770494 | D53: =1126.8*('Cost Model S-PSH'!C14)^-0.431 -> 47.38164521 | E53: =1195.5*('Cost Model S-PSH'!C14)^-0.454 -> 42.4493469 | F53: =1435.5*('Cost Model S-PSH'!C14)^-0.392 -> 80.40783231 | G53: =1258*('Cost Model S-PSH'!C14)^-0.396 -> 68.42318722 | H53: =1375*('Cost Model S-PSH'!C14)^-0.424 -> 60.87204168 | I53: =1131*('Cost Model S-PSH'!C14)^-0.41 -> 55.49853506 | K53: Est. $/kW | L53: =2163.3*('Cost Model S-PSH'!C14)^-0.512 -> 50.14607616 | M53: =1725.2*('Cost Model S-PSH'!C14)^-0.501 -> 43.35947606 | N53: =1735.2*('Cost Model S-PSH'!C14)^-0.52 -> 37.92492651 | O53: =1578.2*('Cost Model S-PSH'!C14)^-0.524 -> 33.4938252 | P53: =2315.8*('Cost Model S-PSH'!C14)^-0.49 -> 63.10590458 | Q53: =2194.6*('Cost Model S-PSH'!C14)^-0.505 -> 53.55838252 | R53: =2353.1*('Cost Model S-PSH'!C14)^-0.53 -> 47.784203 | S53: =2162.4*('Cost Model S-PSH'!C14)^-0.533 -> 42.95370417 | U53: Est. $/kW | V53: =0.000007*('Cost Model S-PSH'!C14)^2 - 0.0146*('Cost Model S-PSH'!C14) + 67.574 -> 61.8332 | W53: =0.000007*('Cost Model S-PSH'!C14)^2 - 0.0117*('Cost Model S-PSH'!C14) + 59.042 -> 57.8252 | X53: =0.000005*('Cost Model S-PSH'!C14)^2 - 0.0065*('Cost Model S-PSH'!C14) + 54.377 -> 56.405 | Y53: =0.000003*('Cost Model S-PSH'!C14)^2 - 0.0018*('Cost Model S-PSH'!C14) + 48.04 -> 52.5328 | Z53: =0.000004*('Cost Model S-PSH'!C14)^2 - 0.0039*('Cost Model S-PSH'!C14) + 90.761 -> 94.4114 | AA53: =0.000002*('Cost Model S-PSH'!C14)^2 + 0.0008*('Cost Model S-PSH'!C14) + 75.02 -> 81.1352 | AB53: =0.000002*('Cost Model S-PSH'!C14)^2 + 0.0002*('Cost Model S-PSH'!C14) + 70.655 -> 75.8342 | AC53: =0.000002*('Cost Model S-PSH'!C14)^2 + 0.002*('Cost Model S-PSH'!C14)+ 62.446 -> 70.4332 | AE53: Est. $/kW | AF53: =0.000006*('Cost Model S-PSH'!C14)^2 - 0.0159*('Cost Model S-PSH'!C14) + 53.593 -> 43.3906 | AG53: =0.000006*('Cost Model S-PSH'!C14)^2 - 0.0157*('Cost Model S-PSH'!C14) + 47.989 -> 38.0986 | AH53: =0.000005*('Cost Model S-PSH'!C14)^2 - 0.0116*('Cost Model S-PSH'!C14)+ 43.522 -> 37.594 | AI53: =0.000003*('Cost Model S-PSH'!C14)^2 - 0.0078*('Cost Model S-PSH'!C14) + 39.647 -> 34.7798 | AJ53: =0.000008*('Cost Model S-PSH'!C14)^2 - 0.0241*('Cost Model S-PSH'!C14)+ 80.261 -> 62.1338 | AK53: =0.000005*('Cost Model S-PSH'!C14)^2 - 0.0155*('Cost Model S-PSH'!C14) + 65.884 -> 53.872 | AL53: =0.000006*('Cost Model S-PSH'!C14)^2 - 0.0165*('Cost Model S-PSH'!C14) + 61.35 -> 50.2116 | AM53: =0.000004*('Cost Model S-PSH'!C14)^2 - 0.0099*('Cost Model S-PSH'!C14) + 52.44 -> 46.7304
A85: Embankment Structure Cost $/CY | K85: Cost of Intakes/Outlets $M | V85: Cost of concrete lined water conductors | AE85: Cost of Vertical Shafts $/LF
A86: Average Dam Height, Ft | B86: Unit Volume CY/FT * 1000 | D86: Total Dam Volume (CY x 10^6) | E86: Unit Cost $/CY | F86: 1/x | G86: 1/y | H86: hyperbolic fit | K86: Water Conductor Diameter, Ft | L86: Horizontal Intake | M86: Vertical Intake | V86: $/LF Average Tunneling Conditions | Z86: $/LF Poor Tunneling Conditions | AE86: Shaft Diameter, Ft | AF86: $/LF
A87: 25 | B87: 0.2 | D87: 0.114 | E87: 13.5 | F87: =1/D87 -> 8.771929825 | G87: =1/E87 -> 0.07407407407 | H87: =($H$98*D87)/($H$96+D87) -> 13.72056559 | K87: 10 | L87: 1.3 | M87: 0.2 | P87: 0.0154x2 - 0.1968x + 1.85 | U87: Inside Diameter, Ft | V87: 1/2 Mile | W87: 1 Mile | X87: 2 Mile | Y87: 4 Mile | Z87: 1/2 Mile | AA87: 1 Mile | AB87: 2 Mile | AC87: 4 Mile | AE87: 10 | AF87: 1950
A88: 50 | B88: 0.5 | D88: 1 | E88: 9 | F88: =1/D88 -> 1 | G88: 0.1111111111 | H88: 8.156526608 | K88: 15 | L88: 2.5 | M88: 0.45 | O88: horizontal | P88: =0.0154*('Cost Model S-PSH'!C113)^2 - 0.1968*'Cost Model S-PSH'!C113 + 1.85 -> 1.621589108 | U88: 10 | V88: 1000 | W88: 1200 | X88: 1300 | Y88: 1400 | Z88: 1400 | AA88: 1500 | AB88: 1550 | AC88: 1600 | AE88: 15 | AF88: 2800
A89: 100 | B89: 1.4 | D89: 2 | E89: 8 | F89: 0.5 | G89: 0.125 | H89: 7.949140595 | K89: 20 | L89: 4.2 | M89: 0.9 | U89: 15 | V89: 1500 | W89: 1700 | X89: 1800 | Y89: 1900 | Z89: 2200 | AA89: 2400 | AB89: 2500 | AC89: 2600 | AE89: 20 | AF89: 3700 | AI89: 186.57x + 27.143
A90: 150 | B90: 2.7 | D90: 4 | E90: 7.8 | F90: 0.25 | G90: 0.1282051282 | H90: 7.849352657 | K90: 25 | L90: 6.4 | M90: 1.3 | P90: 0.0046x2 - 0.0819x + 0.5993 | U90: 20 | V90: 2200 | W90: 2400 | X90: 2500 | Y90: 2700 | Z90: 3200 | AA90: 3450 | AB90: 3600 | AC90: 3900 | AE90: 25 | AF90: 4700 | AH90: $/lf | AI90: =186.57*'Cost Model S-PSH'!C97 + 27.143 -> 4761.61309
A91: 200 | B91: 4.4 | D91: 6 | E91: 7.7 | F91: 0.1666666667 | G91: 0.1298701299 | H91: 7.816644432 | K91: 30 | L91: 9.6 | M91: 2.3 | O91: vertical | P91: =0.0046*('Cost Model S-PSH'!C113)^2 - 0.0819*'Cost Model S-PSH'!C113 + 0.5993 -> 0.2655177545 | U91: 25 | V91: 3200 | W91: 3400 | X91: 3550 | Y91: 3900 | Z91: 4600 | AA91: 4900 | AB91: 5200 | AC91: 5600 | AE91: 30 | AF91: 5600
A92: 250 | B92: 6.7 | D92: 8 | E92: 7.6 | F92: 0.125 | G92: 0.1315789474 | H92: 7.800392328 | K92: 35 | L92: 13.9 | M92: 3.4 | U92: 30 | V92: 4400 | W92: 4550 | X92: 4975 | Y92: 5450 | Z92: 6500 | AA92: 6700 | AB92: 7400 | AC92: 8100 | AE92: 35 | AF92: 6600
A93: 300 | B93: 9.4 | D93: 10 | E93: 7.5 | F93: 0.1 | G93: 0.1333333333 | H93: 7.790673465 | U93: 35 | V93: 5600 | W93: 5900 | X93: 6450 | Y93: 7500 | Z93: 8450 | AA93: 8750 | AB93: 9350 | AC93: 11250
A94: 350 | B94: 12.5 | H94: y = (7.75204x)/(x - 0.049591) | V94: 3.9286x2 + 10.071x + 481.43 | W94: 4.3214x2 - 5.6071x + 815 | X94: 5.5536x2 - 42.339x + 1165.4 | Y94: 7.6786x2 - 103.54x + 1690.7 | Z94: 6.6786x2 - 17.393x + 915 | AA94: 6.25x2 + 7.8929x + 819.29 | AB94: 6.7143x2 + 13.857x + 732.86 | AC94: 11.107x2 - 120.11x + 1777.9
C95: Upper Dam | E95: Lower Dam | G95: slope-> | H95: =SLOPE(G87:G93,F87:F93) -> -0.006397112993 | I95: $/CY Upper | J95: =(7.75204*C98)/(C98 - 0.049591) -> 7.916642136 | V95: =3.9286*('Cost Model S-PSH'!C97)^2 + 10.071*('Cost Model S-PSH'!C97) + 481.43 -> 3266.858114 | W95: =4.3214*('Cost Model S-PSH'!C97)^2 - 5.6071*('Cost Model S-PSH'!C97) + 815 -> 3455.522413 | X95: =5.5536*('Cost Model S-PSH'!C97)^2 - 42.339*'Cost Model S-PSH'!C97 + 1165.4 -> 3667.287933 | Y95: =7.6786*('Cost Model S-PSH'!C97)^2 - 103.54*'Cost Model S-PSH'!C97 + 1690.7 -> 4007.944225 | Z95: =6.6786*('Cost Model S-PSH'!C97)^2 - 17.393*'Cost Model S-PSH'!C97 + 915 -> 4774.382357 | AA95: =6.25*('Cost Model S-PSH'!C97)^2 + 7.8929*'Cost Model S-PSH'!C97 + 819.29 -> 5044.335403 | AB95: =6.7143*('Cost Model S-PSH'!C97)^2 + 13.857*'Cost Model S-PSH'!C97 + 732.86 -> 5408.243428 | AC95: =11.107*('Cost Model S-PSH'!C97)^2 - 120.11*'Cost Model S-PSH'!C97 + 1777.9 -> 5882.411391
B96: U.Unit Volume CY/Ft | C96: =(0.00009*('Cost Model S-PSH'!C16)^2 + 0.0039*'Cost Model S-PSH'!C16 + 0.0707)*1000 -> 1834.7 | D96: L.Unit Volume CY/Ft | E96: =(0.00009*('Cost Model S-PSH'!C18)^2 + 0.0039*'Cost Model S-PSH'!C18 + 0.0707)*1000 -> 628.7 | G96: hyper k-> | H96: =H95*H98 -> -0.04959066937 | I96: $/CY Lower | J96: =(7.75204*E98)/(E98 - 0.049591) -> 8.350862416
B97: U.Total Volume CY | C97: =C96*'Cost Model S-PSH'!C17 -> 2385110 | D97: L.Total Volume CY | E97: =E96*'Cost Model S-PSH'!C19 -> 691570 | G97: intercept-> | H97: =INTERCEPT(G87:G93,F87:F93) -> 0.1289983191
B98: U.Volume CY * 10^6 | C98: =C97/(10^6) -> 2.38511 | D98: L.Volume CY * 10^6 | E98: =E97/(10^6) -> 0.69157 | G98: hyper m-> | H98: =1/H97 -> 7.752038994
U121: Penstock Tunnel Max Velocity | Y121: Draft Tube Tunnel Max Velocity
A122: Cost of Pennstocks and Draft Tube Tunnels $/Ft | K122: Cost of Surface Pennstocks $/Ft | U122: Head (ft) | V122: Velocity (Fps) | Y122: Head (ft) | Z122: Velocity (Fps)
A123: Diameter, Ft | B123: 500 Ft | C123: 1000 Ft | D123: 1500 Ft | E123: 2000 Ft | K123: Diameter, Ft | L123: 300 Ft | M123: 500 Ft | N123: 700 Ft | O123: 1000 Ft | P123: 1500 Ft | U123: 300 | V123: 18 | Y123: 300 | Z123: 8
A124: 5 | K124: 10 | L124: 1.55 | M124: 2.2 | N124: 3.2 | O124: 4.5 | P124: 6.65 | U124: 500 | V124: 20 | Y124: 500 | Z124: 10
A125: 10 | B125: 2200 | C125: 2400 | D125: 3000 | E125: 3800 | K125: 15 | L125: 3.3 | M125: 5 | N125: 7 | O125: 10 | P125: 14.75 | U125: 1000 | V125: 25 | Y125: 1000 | Z125: 13
A126: 15 | B126: 4100 | C126: 4600 | D126: 6000 | E126: 7600 | K126: 20 | L126: 5.6 | M126: 8.7 | N126: 12.3 | U126: 1500 | V126: 28 | Y126: 1500 | Z126: 15
A127: 20 | B127: 6900 | C127: 7800 | D127: 10300 | E127: 13250 | K127: 25 | L127: 8.6 | M127: 13.7 | U127: 2200 | V127: 32 | Y127: 2200 | Z127: 17
A128: 25 | B128: 10000 | C128: 11700 | D128: 15800 | K128: 30 | L128: 12.2
A129: 30 | K129: 35 | L129: 16.5 | V129: 0.0074x + 16.512 | AA129: 0.0046x + 7.516
B130: 47.162x1.6615 | C130: 43.711x1.7314 | D130: 45.454x1.8126 | E130: 60.182x1.7959 | L130: 0.02x1.885 | M130: 0.0226x1.9901 | N130: 0.0365x1.9417 | O130: 0.0483x1.9694 | P130: 0.0721x1.9647 | V130: =0.0074*'Cost Model S-PSH'!C14 + 16.512 -> 28.056 | AA130: =0.0046*('Cost Model S-PSH'!C14-'Cost Model S-PSH'!C91)+ 7.516 -> 9.6688
B131: =47.162*('Cost Model S-PSH'!C113)^1.6615 -> 2723.946698 | C131: =43.711*('Cost Model S-PSH'!C113)^1.7314 -> 2994.391982 | D131: =45.454*('Cost Model S-PSH'!C113)^1.8126 -> 3796.490926 | E131: =60.182*('Cost Model S-PSH'!C113)^1.7959 -> 4825.815231 | L131: =0.02*('Cost Model S-PSH'!C113)^1.885*1000 -> 1993.436466 | M131: =0.0226*('Cost Model S-PSH'!C113)^1.9901*1000 -> 2911.475778 | N131: =0.0365*('Cost Model S-PSH'!C113)^1.9417*1000 -> 4178.125463 | O131: =0.0483*('Cost Model S-PSH'!C113)^1.9694*1000 -> 5915.680161 | P131: =0.0721*('Cost Model S-PSH'!C113)^1.9647*1000 -> 8729.907486
A161: Underground Powerstation Equipment Costs 80MW Units $/kW | K161: Underground Powerstation Equipment Costs 125MW Units $/kW | U161: Underground Powerstation Equipment Costs 225MW Units $/kW | AE161: Underground Powerstation Equipment Costs 350MW Units $/kW
A162: Average Head, Ft | B162: 160 MW | C162: 240 MW | D162: 320 MW | E162: 480 MW | K162: Average Head, Ft | L162: 250 MW | M162: 375 MW | N162: 500 MW | O162: 750 MW | U162: Average Head, Ft | V162: 450 MW | W162: 675 MW | X162: 900 MW | Y162: 1350 MW | AE162: Average Head, Ft | AF162: 700 MW | AG162: 1050 MW | AH162: 1400 MW | AI162: 2100 MW
A163: 350 | B163: 242 | C163: 229 | D163: 223 | E163: 216 | K163: 350 | L163: 203 | M163: 194 | N163: 188 | O163: 184 | U163: 350 | V163: 163 | W163: 155 | X163: 151 | Y163: 146 | AE163: 350 | AF163: 130 | AG163: 124 | AH163: 121 | AI163: 117
A164: 500 | B164: 235 | C164: 224 | D164: 217 | E164: 210 | K164: 500 | L164: 194 | M164: 185 | N164: 180 | O164: 176 | U164: 500 | V164: 153 | W164: 145 | X164: 142 | Y164: 137 | AE164: 500 | AF164: 124 | AG164: 116 | AH164: 114 | AI164: 111
A165: 1000 | B165: 224 | C165: 212 | D165: 205 | E165: 200 | K165: 1000 | L165: 183 | M165: 174 | N165: 169 | O165: 165 | U165: 1000 | V165: 139 | W165: 134 | X165: 130 | Y165: 126 | AE165: 1000 | AF165: 112 | AG165: 107 | AH165: 105 | AI165: 102
A166: 1500 | B166: 222 | C166: 210 | D166: 204 | E166: 200 | K166: 1500 | L166: 180 | M166: 173 | N166: 168 | O166: 164 | U166: 1500 | V166: 138.5 | W166: 133.5 | X166: 129 | Y166: 126 | AE166: 1500 | AF166: 114 | AG166: 107.5 | AH166: 105.5 | AI166: 103
A167: 2000 | B167: 237 | C167: 226 | D167: 220 | E167: 215 | K167: 2000 | L167: 185 | M167: 176 | N167: 173 | O167: 168 | U167: 2000 | V167: 143 | W167: 135.5 | X167: 134 | Y167: 130 | AE167: 2000 | AF167: 115 | AG167: 110 | AH167: 107 | AI167: 104.5
A168: 2250 | B168: 245 | C168: 234 | D168: 228 | E168: 223 | K168: 2250 | L168: 187 | M168: 179 | N168: 175 | O168: 171 | U168: 2250 | V168: 145 | W168: 137 | X168: 135 | Y168: 132 | AE168: 2250 | AF168: 115.5 | AG168: 110.5 | AH168: 107.5 | AI168: 105.5
B170: 2E-05x2 - 0.0609x + 259.97 | C170: 2E-05x2 - 0.0609x + 247.79 | D170: 2E-05x2 - 0.0617x + 241.53 | E170: 2E-05x2 - 0.0555x + 232.3 | L170: 2E-05x2 - 0.0485x + 216.18 | M170: 2E-05x2 - 0.0462x + 206.27 | N170: 2E-05x2 - 0.0453x + 200.29 | O170: 2E-05x2 - 0.0456x + 196.43 | V170: 2E-05x2 - 0.0544x + 177.56 | W170: 1E-05x2 - 0.0448x + 166.28 | X170: 2E-05x2 - 0.048x + 163.78 | Y170: 2E-05x2 - 0.0452x + 157.75 | AF170: 1E-05x2 - 0.0365x + 139.89 | AG170: 1E-05x2 - 0.0355x + 132.8 | AH170: 1E-05x2 - 0.033x + 129.39 | AI170: 1E-05x2 - 0.0316x + 125.28
B171: =0.00002*('Cost Model S-PSH'!C92)^2 - 0.0609*'Cost Model S-PSH'!C92 + 259.97 -> 214.38212 | C171: =0.00002*('Cost Model S-PSH'!C92)^2 - 0.0609*('Cost Model S-PSH'!C92) + 247.79 -> 202.20212 | D171: =0.00002*('Cost Model S-PSH'!C92)^2 - 0.0617*('Cost Model S-PSH'!C92) + 241.53 -> 194.88132 | E171: =0.00002*('Cost Model S-PSH'!C92)^2 - 0.0555*('Cost Model S-PSH'!C92) + 232.3 -> 193.87252 | L171: =0.00002*('Cost Model S-PSH'!C92)^2 - 0.0485*('Cost Model S-PSH'!C92) + 216.18 -> 187.03452 | M171: =0.00002*('Cost Model S-PSH'!C92)^2 - 0.0462*('Cost Model S-PSH'!C92) + 206.27 -> 180.17432 | N171: =0.00002*('Cost Model S-PSH'!C92)^2 - 0.0453*('Cost Model S-PSH'!C92) + 200.29 -> 175.38772 | O171: =0.00002*('Cost Model S-PSH'!C92)^2 - 0.0456*('Cost Model S-PSH'!C92) + 196.43 -> 171.12992 | V171: =0.00002*('Cost Model S-PSH'!C92)^2 - 0.0544*('Cost Model S-PSH'!C92) + 177.56 -> 140.59112 | W171: =0.00001*('Cost Model S-PSH'!C92)^2 - 0.0448*('Cost Model S-PSH'!C92) + 166.28 -> 124.45796 | X171: =0.00002*('Cost Model S-PSH'!C92)^2 - 0.048*('Cost Model S-PSH'!C92) + 163.78 -> 135.29752 | Y171: =0.00002*('Cost Model S-PSH'!C92)^2 - 0.0452*('Cost Model S-PSH'!C92) + 157.75 -> 132.98032 | AF171: =0.00001*('Cost Model S-PSH'!C92)^2 - 0.0365*('Cost Model S-PSH'!C92) + 139.89 -> 109.07376 | AG171: =0.00001*('Cost Model S-PSH'!C92)^2 - 0.0355*('Cost Model S-PSH'!C92) + 132.8 -> 103.30976 | AH171: =0.00001*('Cost Model S-PSH'!C92)^2 - 0.033*('Cost Model S-PSH'!C92) + 129.39 -> 103.21476 | AI171: =0.00001*('Cost Model S-PSH'!C92)^2 - 0.0316*('Cost Model S-PSH'!C92) + 125.28 -> 100.96116
A203: Surface Powerstation Equipment Costs 80MW Units $/kW | K203: Surface Powerstation Equipment Costs 125MW Units $/kW | U203: Surface Powerstation Equipment Costs 225MW Units $/kW | AE203: Surface Powerstation Equipment Costs 350MW Units $/kW | AO203: Pump Type Cost Multipliers
A204: Average Head, Ft | B204: 160 MW | C204: 240 MW | D204: 320 MW | E204: 480 MW | K204: Average Head, Ft | L204: 250 MW | M204: 375 MW | N204: 500 MW | O204: 750 MW | U204: Average Head, Ft | V204: 450 MW | W204: 675 MW | X204: 900 MW | Y204: 1350 MW | AE204: Average Head, Ft | AF204: 700 MW | AG204: 1050 MW | AH204: 1400 MW | AI204: 2100 MW | AP204: Pump-Turbine | AQ204: Powerhouse
A205: 350 | B205: 237 | C205: 225 | D205: 219 | E205: 214 | K205: 350 | L205: 200 | M205: 190 | N205: 185 | O205: 183 | U205: 350 | V205: 157 | W205: 151 | X205: 146 | Y205: 144 | AE205: 350 | AF205: 133 | AG205: 126 | AH205: 124 | AI205: 120 | AO205: Fixed | AP205: 1 | AQ205: 1
A206: 500 | B206: 236.5 | C206: 224 | D206: 217 | E206: 213 | K206: 500 | L206: 189 | M206: 179.5 | N206: 176 | O206: 171.5 | U206: 500 | V206: 151 | W206: 144.5 | X206: 142 | Y206: 136 | AE206: 500 | AF206: 124 | AG206: 117 | AH206: 115 | AI206: 114 | AO206: Variable | AP206: 1.2 | AQ206: 1.05
A207: 1000 | B207: 234 | C207: 222 | D207: 216 | E207: 210 | K207: 1000 | L207: 180 | M207: 170.5 | N207: 167 | O207: 162 | U207: 1000 | V207: 144 | W207: 137 | X207: 134 | Y207: 130.5 | AE207: 1000 | AF207: 111.5 | AG207: 105.5 | AH207: 104 | AI207: 101
A208: 1500 | B208: 234.5 | C208: 223 | D208: 216.5 | E208: 212 | K208: 1500 | L208: 181.5 | M208: 174 | N208: 168 | O208: 164 | U208: 1500 | V208: 144 | W208: 137.5 | X208: 134 | Y208: 131 | AE208: 1500 | AF208: 110 | AG208: 105 | AH208: 104 | AI208: 100
A209: 2000 | B209: 238.5 | C209: 228 | D209: 224 | E209: 217 | K209: 2000 | L209: 187.5 | M209: 180 | N209: 176 | O209: 173 | U209: 2000 | V209: 146 | W209: 143 | X209: 137 | Y209: 135 | AE209: 2000 | AF209: 110.5 | AG209: 105 | AH209: 104 | AI209: 100.5
A210: 2250 | B210: 245 | C210: 234 | D210: 228 | E210: 222 | K210: 2250 | L210: 194 | M210: 185 | N210: 180 | O210: 176 | U210: 2250 | V210: 150 | W210: 144.5 | X210: 140.5 | Y210: 137 | AE210: 2250 | AF210: 111 | AG210: 105.3 | AH210: 104 | AI210: 101
B212: 8E-06x2 - 0.0174x + 242.74 | C212: 8E-06x2 - 0.017x + 230.3 | D212: 8E-06x2 - 0.0168x + 223.7 | E212: 8E-06x2 - 0.0173x + 219.28 | L212: 2E-05x2 - 0.0499x + 212.36 | M212: 2E-05x2 - 0.0457x + 200.9 | N212: 2E-05x2 - 0.046x + 196.81 | O212: 2E-05x2 - 0.0501x + 195 | V212: 1E-05x2 - 0.0319x + 165.52 | W212: 1E-05x2 - 0.0338x + 159.73 | X212: 1E-05x2 - 0.0313x + 155.12 | Y212: 1E-05x2 - 0.0309x + 151.13 | AF212: 1E-05x2 - 0.0447x + 144.85 | AG212: 1E-05x2 - 0.041x + 136.46 | AH212: 1E-05x2 - 0.0391x + 133.75 | AI212: 1E-05x2 - 0.0406x + 131.67
B213: =0.000008*('Cost Model S-PSH'!C92)^2 - 0.0174*('Cost Model S-PSH'!C92) + 242.74 -> 233.733808 | C213: =0.000008*('Cost Model S-PSH'!C92)^2 - 0.017*('Cost Model S-PSH'!C92) + 230.3 -> 221.824208 | D213: =0.000008*('Cost Model S-PSH'!C92)^2 - 0.0168*('Cost Model S-PSH'!C92) + 223.7 -> 215.489408 | E213: =0.000008*('Cost Model S-PSH'!C92)^2 - 0.0173*('Cost Model S-PSH'!C92) + 219.28 -> 210.406408 | L213: =0.00002*('Cost Model S-PSH'!C92)^2 - 0.0499*('Cost Model S-PSH'!C92) + 212.36 -> 181.35812 | M213: =0.00002*('Cost Model S-PSH'!C92)^2 - 0.0457*('Cost Model S-PSH'!C92) + 200.9 -> 175.46732 | N213: =0.00002*('Cost Model S-PSH'!C92)^2 - 0.046*('Cost Model S-PSH'!C92) + 196.81 -> 170.97952 | O213: =0.00002*('Cost Model S-PSH'!C92)^2 - 0.0501*('Cost Model S-PSH'!C92)+ 195 -> 163.73292 | V213: =0.00001*('Cost Model S-PSH'!C92)^2 - 0.0319*('Cost Model S-PSH'!C92) + 165.52 -> 140.80336 | W213: =0.00001*('Cost Model S-PSH'!C92)^2 - 0.0338*('Cost Model S-PSH'!C92)+ 159.73 -> 132.49396 | X213: =0.00001*('Cost Model S-PSH'!C92)^2 - 0.0313*('Cost Model S-PSH'!C92) + 155.12 -> 131.19896 | Y213: =0.00001*('Cost Model S-PSH'!C92)^2 - 0.0309*('Cost Model S-PSH'!C92) + 151.13 -> 127.73936 | AF213: =0.00001*('Cost Model S-PSH'!C92)^2 - 0.0447*('Cost Model S-PSH'!C92) + 144.85 -> 103.16056 | AG213: =0.00001*('Cost Model S-PSH'!C92)^2 - 0.041*('Cost Model S-PSH'!C92)+ 136.46 -> 99.67676 | AH213: =0.00001*('Cost Model S-PSH'!C92)^2 - 0.0391*('Cost Model S-PSH'!C92) + 133.75 -> 99.48616 | AI213: =0.00001*('Cost Model S-PSH'!C92)^2 - 0.0406*('Cost Model S-PSH'!C92) + 131.67 -> 95.41716
A239: Access Tunnel Costs, $/LF | K239: Switchyard Costs, $M | V239: Access Road, $/mile | AE239: Liner Cost ($/sq.ft)
A240: Tunnel Length, Miles | B240: $/LF | K240: No. of generating units | L240: 115 to 161 kV | M240: 230 kV | N240: 345 kV | O240: 500 kV | V240: Terrain | W240: New | X240: Rebuild | AF240: $/Sq.yd | AG240: $/sq.ft
A241: 0.25 | B241: 2090 | D241: 2489.4x0.118 | K241: 2 | L241: 1.4 | M241: 1.7 | N241: 3.55 | O241: 7.35 | V241: Steep | W241: 439000 | X241: 293000 | AE241: Geomembrane Single Liner | AF241: 40 | AG241: =AF241/9 -> 4.444444444
A242: 0.5 | B242: 2330 | D242: =2489.4*('Cost Model S-PSH'!C39)^0.118 -> 2555.818837 | K242: 3 | L242: 2.2 | M242: 2.8 | N242: 6.15 | O242: 13.5 | V242: Mild | W242: 283000 | X242: 186000 | AE242: Geomembrane Double Liner with Leak Detection | AF242: 55 | AG242: =AF242/9 -> 6.111111111
A243: 1 | B243: 2500 | K243: 4 | L243: 2.75 | M243: 3.7 | N243: 7.9 | O243: 16.5 | V243: Flat | W243: 189000 | X243: 123000 | AE243: Other (clay, asphalt, concrete) | AF243: 60 | AG243: =AF243/9 -> 6.666666667
A244: 1.5 | B244: 2600 | K244: 5 | L244: 3.3 | M244: 4.4 | N244: 9.4 | O244: 19
A245: 2 | B245: 2690 | K245: 6 | L245: 3.65 | M245: 4.9 | N245: 11 | O245: 21
L247: -0.0643x2 + 1.0743x - 0.48 | M247: -0.1x2 + 1.6x - 1.1 | N247: -0.1607x2 + 3.1007x - 1.91 | O247: -0.6286x2 + 8.3086x - 6.45
L248: =-0.0643*('Cost Model S-PSH'!C109)^2 + 1.0743*'Cost Model S-PSH'!C109 - 0.48 -> 2.7884 | M248: =-0.1*('Cost Model S-PSH'!C109)^2 + 1.6*('Cost Model S-PSH'!C109) - 1.1 -> 3.7 | N248: =-0.1607*('Cost Model S-PSH'!C109)^2 + 3.1007*('Cost Model S-PSH'!C109) - 1.91 -> 7.9216 | O248: =-0.6286*('Cost Model S-PSH'!C109)^2 + 8.3086*('Cost Model S-PSH'!C109) - 6.45 -> 16.7268 | Q248: =IF('Cost Model S-PSH'!C66<=160,'Cost Curves S-PSH'!L248,IF(AND('Cost Model S-PSH'!C66>160,'Cost Model S-PSH'!C66<=230),'Cost Curves S-PSH'!M248,IF(AND('Cost Model S-PSH'!C66>230,'Cost Model S-PSH'!C66<=345),'Cost Curves S-PSH'!N248,IF('Cost Model S-PSH'!C66>345,'Cost Curves S-PSH'!O248)))) -> 16.7268
A274: Transmission Line Costs Per Mile, $1000s
A275: Transmitted Power, MW | B275: 138 kV | C275: 230 kV | D275: 345 kV | E275: 500 kV | H275: Transmission Terrain Multiplier
A276: 28.5 | B276: 110 | H276: Desert | I276: 1.05
A277: 30 | B277: 112 | H277: Flat | I277: 1 | Y277: Dam Height (ft) | Z277: Earthfill Volume (x1000 cu. yd.) | AA277: Rockfill Volume (x1000 cu. yd.) | AB277: RCC Gravity Volume (x1000 cu. yd.)
A278: 40 | B278: 115 | H278: Farmland | I278: 1 | Y278: 50 | Z278: 0.15 | AA278: 0.15 | AB278: 0.15
A279: 50 | B279: 120 | H279: Forested | I279: 2.25 | Y279: 100 | Z279: 1.8 | AA279: 1 | AB279: 0.2
A280: 60 | B280: 122 | H280: Rolling Hill | I280: 1.4 | Y280: 200 | Z280: 5 | AA280: 3 | AB280: 0.65
A281: 70 | B281: 128 | H281: Mountain | I281: 1.75 | Y281: 300 | Z281: 10 | AA281: 5.95 | AB281: 1.1
A282: 80 | B282: 132 | H282: Wetland | I282: 1.2 | Y282: 400 | Z282: 16 | AA282: 9.5 | AB282: 2.25
A283: 90 | B283: 140 | H283: Suburban | I283: 1.27
A284: 100 | B284: 150 | H284: Urban | I284: 1.59 | X284: Upper Dam Volume | Z284: =(0.00006*('Cost Model L-PSH'!C16)^2 + 0.017*'Cost Model L-PSH'!C16 - 0.7412)*'Cost Model L-PSH'!C17*1000 -> 2811640 | AA284: =(0.00004*('Cost Model L-PSH'!C16)^2 + 0.0099*'Cost Model L-PSH'!C16 - 0.4173)*'Cost Model L-PSH'!C17*1000 -> 1750710 | AB284: =(0.0000164*('Cost Model L-PSH'!C16)^2 - 0.00155*'Cost Model L-PSH'!C16 + 0.2021)*'Cost Model L-PSH'!C17*1000 -> 327938
A285: 125 | B285: 172 | X285: Lower Dam Volume | Z285: =(0.00006*('Cost Model L-PSH'!C18)^2 + 0.017*'Cost Model L-PSH'!C18 - 0.7412)*'Cost Model L-PSH'!C19*1000 -> 544280 | AA285: =(0.00004*('Cost Model L-PSH'!C18)^2 + 0.0099*'Cost Model L-PSH'!C18 - 0.4173)*'Cost Model L-PSH'!C19*1000 -> 352770 | AB285: =(0.0000164*('Cost Model L-PSH'!C18)^2 - 0.00155*'Cost Model L-PSH'!C18 + 0.2021)*'Cost Model L-PSH'!C19*1000 -> 184954
A286: 102 | C286: 175 | H286: Tranmission Circuit Multiplier
A287: 150 | C287: 180 | H287: Double | I287: =AVERAGE(K290:K292) -> 1.600469629
A288: 200 | C288: 190
A289: 300 | C289: 230 | H289: Transmission kV | I289: Single Circuit $/mile | J289: Double Circuit $/mile
A290: 340 | C290: 240 | H290: 230 | I290: 959700 | J290: 1536400 | K290: =J290/I290 -> 1.600916953
A291: 350 | D291: 275 | H291: 345 | I291: 1343800 | J291: 2150300 | K291: =J291/I291 -> 1.600163715 | Y291: Upper Dam | AA291: Lower Dam
A292: 400 | D292: 280 | H292: 500 | I292: 1919450 | J292: 3071750 | K292: =J292/I292 -> 1.600328219 | Y292: Unit Volume | Z292: =(0.0000905*('Cost Model S-PSH'!C16)^2 + 0.00386*('Cost Model S-PSH'!C16) + 0.0707)*1000 -> 1837.1 | AA292: Unit Volume | AB292: =(0.0000905*('Cost Model S-PSH'!C18)^2 + 0.00386*('Cost Model S-PSH'!C18) + 0.0707)*1000 -> 628.1
A293: 500 | D293: 285 | Y293: Total Volume | Z293: =Z292*'Cost Model S-PSH'!C17 -> 2388230 | AA293: Total Volume | AB293: =AB292*'Cost Model S-PSH'!C19 -> 690910
A294: 600 | D294: 290
A295: 700 | D295: 295
A296: 800 | D296: 305
A297: 900 | D297: 325 | E297: 400
A298: 1000 | D298: 370 | E298: 402
A299: 2000 | E299: 450
A300: 3000 | E300: 575
B302: 0.0043x2 - 0.028x + 108.72 | C302: 0.0007x2 - 0.0382x + 169.98 | D302: 0.0003x2 - 0.2536x + 335.57 | E302: 4E-05x2 - 0.0652x + 428.5
B303: =0.0043*('Cost Model S-PSH'!C108)^2 - 0.028*'Cost Model S-PSH'!C108 + 108.72 -> 7154.554065 | C303: =0.0007*('Cost Model S-PSH'!C108)^2 - 0.0382*('Cost Model S-PSH'!C108) + 169.98 -> 1273.802809 | D303: =0.0003*('Cost Model S-PSH'!C108)^2 - 0.2536*('Cost Model S-PSH'!C108) + 335.57 -> 504.1956041 | E303: =0.00004*('Cost Model S-PSH'!C108)^2 - 0.0652*('Cost Model S-PSH'!C108)+ 428.5 -> 410.7041255 | G303: =IF('Cost Model S-PSH'!C65<=138,'Cost Curves S-PSH'!B303,IF(AND('Cost Model S-PSH'!C65>138,'Cost Model S-PSH'!C65<=230),'Cost Curves S-PSH'!C303,IF(AND('Cost Model S-PSH'!C65>230,'Cost Model S-PSH'!C65<=345),'Cost Curves S-PSH'!D303,IF('Cost Model S-PSH'!C65<=138>=345,'Cost Curves S-PSH'!E303)))) -> 410.7041255
A332: Power Station | B332: ='Cost Model S-PSH'!C47 -> Underground
A333: UR Connection | B333: =IF('Cost Model S-PSH'!C44="Horizontal","Horizontal Intake to Upper low pressure tunnel to Shaft to Upper high pressure tunnel",IF('Cost Model S-PSH'!C44="Vertical","Vertical Intake to Shaft to Upper Tunnel")) -> Vertical Intake to Shaft to Upper Tunnel
A334: Water Conductor | B334: Penstock
A335: LR Connection | B335: Direct Discharge
A337: Configuration | B337: =IF(AND(B332="Underground",B333="Vertical Intake to Shaft to Upper Tunnel",B334="Tunnel",B335="Tailrace tunnel"),"A",IF(AND(B332="Underground",B333="Horizontal Intake to Upper low pressure tunnel to Shaft to Upper high pressure tunnel",B334="Tunnel",B335="Tailrace tunnel"),"B",IF(AND(B332="Surface",B333="Vertical Intake to Shaft to Upper Tunnel",B334="Tunnel",B335="Direct Discharge"),"C",IF(AND(B332="Surface",B333="Horizontal Intake to Upper low pressure tunnel to Shaft to Upper high pressure tunnel",B334="Tunnel",B335="Tailrace tunnel"),"D",IF(AND(B332="Surface",B333="Horizontal Intake to Upper low pressure tunnel to Shaft to Upper high pressure tunnel",B334="Penstock",B335="Tailrace tunnel"),"E",IF(AND(B332="Surface",B333="Horizontal Intake to Upper low pressure tunnel to Shaft to Upper high pressure tunnel",B334="Penstock",B335="Direct Discharge"),"F","Out of Bounds")))))) -> Out of Bounds
A338: Small System Powerstation Costs
A361: 2008-2011 $ | C361: 1 cfs = 448.83 gal/min or 7.48 gal/sec
A362: gal/min | B362: stand by power k$
A363: 400 | B363: 65 | D363: ='Cost Model S-PSH'!C116*448.83 -> 4011316.623 | E363: gal/min
A364: 700 | B364: 100 | D364: stand by power k$
A365: 1000 | B365: 150 | D365: =0.7799*(D363)^0.7442*1000 -> 64003697.44 | E365: $
A366: 5000 | B366: 400
A367: 10000 | B367: 750
A368: 15000 | B368: 1000
A369: 50000 | B369: 2500
A371: 2011-2015 $
A372: Low Head | B372: 200 ft or less
A373: Turbine generator and Control Cost in $/kW by capacity in MW
A374: y = 1051.9*x^-0.204 | D374: ='Cost Model S-PSH'!I10/1000 -> 1283.324821 | E374: =1051.9*(D374^-0.204)*'Market Adj Factors'!C47 -> 293.3383413
A376: High Head | B376: 200 ft or more
A377: Turbine generator and Control Cost in $/kW by capacity in MW
A378: y = 697.41*x^-0.329 | D378: =D374 -> 1283.324821 | E378: =697.41*D378^-0.329*'Market Adj Factors'!C47 -> 79.49512066

Sheet Market Adj Factors
B5: Category | C5: Suggested | D5: EPRI Fig | G5: Year | H5: Avg. CPI | I5: Inflation Adjustment to 1988$ | Q5: USBR Category | R5: MAF Category | S5: 1988 | T5: 2010 | U5: 2011 | V5: 2012 | W5: 2013 | X5: 2014 | Y5: 2015 | Z5: 2016 | AA5: 2017 | AB5: 2018 | AC5: 2019 | AD5: 2020 | AE5: 2021 | AF5: 2022 | AG5: 2023 | AH5: 2024 | AK5: Incorporate fatcors
B6: Power station | C6: 1.3 | D6: 6-8/6-9 | G6: 1970 | H6: 38.84166667 | I6: =H6/$H$24 -> 0.3284013246 | Q6: Power plant - structures and improvements | R6: Power station | S6: 158.5 | T6: 323.25 | U6: 335.5 | V6: 346.25 | W6: 351.75 | X6: 359.75 | Y6: 364 | Z6: 367 | AA6: 378 | AB6: 393 | AC6: 406 | AD6: 408 | AE6: 433 | AF6: 480 | AG6: 501 | AH6: 512 | AK6: Adjust liner sq.ft calculation
B7: Dams, spillways, diversions, emb | C7: 1.4 | D7: 6-10 | G7: 1971 | H7: 40.48333333 | I7: 0.3422814063 | Q7: Earth Dams | R7: Dams, spillways, diversions, emb | S7: 144.5 | T7: 301.25 | U7: 317.75 | V7: 329.75 | W7: 334.25 | X7: 339.5 | Y7: 333.5 | Z7: 333 | AA7: 346 | AB7: 360 | AC7: 372 | AD7: 374 | AE7: 400 | AF7: 453 | AG7: 475 | AH7: 484
B8: Upper intake/outlet (vertical) | C8: 2 | D8: 6-12 | G8: 1972 | H8: 41.80833333 | I8: 0.3534841119 | Q8: Earth Dams - outlet works | R8: Upper intake/outlet (vertical) | S8: 166.75 | T8: 341.5 | U8: 357 | V8: 367.75 | W8: 372.5 | X8: 379.75 | Y8: 378.5 | Z8: 379 | AA8: 389 | AB8: 405 | AC8: 415 | AD8: 416 | AE8: 447 | AF8: 501 | AG8: 517 | AH8: 522
B9: Lower intake/outlet (horizontal) | C9: 1.3 | D9: 6-12 | G9: 1973 | H9: 44.425 | I9: 0.3756076939 | Q9: Earth Dams - outlet works | R9: Lower intake/outlet (horizontal) | S9: 166.75 | T9: 341.5 | U9: 357 | V9: 367.75 | W9: 372.5 | X9: 379.75 | Y9: 378.5 | Z9: 379 | AA9: 389 | AB9: 405 | AC9: 415 | AD9: 416 | AE9: 447 | AF9: 501 | AG9: 517 | AH9: 522
B10: Surface penstocks | C10: 1.3 | D10: 6-16 | G10: 1974 | H10: 49.31666667 | I10: 0.4169661101 | Q10: Steel pipelines | R10: Surface penstocks | S10: 170.25 | T10: 355.75 | U10: 365.75 | V10: 374.75 | W10: 382.75 | X10: 390.75 | Y10: 397.5 | Z10: 403 | AA10: 411 | AB10: 419 | AC10: 428 | AD10: 429 | AE10: 454 | AF10: 506 | AG10: 521 | AH10: 524
B11: Vertical shaft | C11: 1.8 | D11: 6-14 | G11: 1975 | H11: 53.825 | I11: 0.4550834919 | Q11: Tunnels | R11: Vertical shaft | S11: 175.75 | T11: 350.5 | U11: 360.5 | V11: 374.25 | W11: 381.75 | X11: 389.5 | Y11: 396.25 | Z11: 402 | AA11: 410 | AB11: 421 | AC11: 434 | AD11: 439 | AE11: 459 | AF11: 506 | AG11: 532 | AH11: 546
B12: Concrete lined tunnels (e.g. tailrace & power tun) | C12: 1.6 | D12: 6-13 | G12: 1976 | H12: 56.93333333 | I12: 0.4813640527 | Q12: Tunnels | R12: Concrete lined tunnels (e.g. tailrace & power tun) | S12: 175.75 | T12: 350.5 | U12: 360.5 | V12: 374.25 | W12: 381.75 | X12: 389.5 | Y12: 396.25 | Z12: 402 | AA12: 410 | AB12: 421 | AC12: 434 | AD12: 439 | AE12: 459 | AF12: 506 | AG12: 532 | AH12: 546
B13: Steel-Lined tunnels (underground penstocks) | C13: 1.9 | D13: 6-15 | G13: 1977 | H13: 60.61666667 | I13: 0.512506165 | Q13: Tunnels | R13: Steel-Lined tunnels (underground penstocks) | S13: 175.75 | T13: 350.5 | U13: 360.5 | V13: 374.25 | W13: 381.75 | X13: 389.5 | Y13: 396.25 | Z13: 402 | AA13: 410 | AB13: 421 | AC13: 434 | AD13: 439 | AE13: 459 | AF13: 506 | AG13: 532 | AH13: 546
B14: Draft tubes | C14: 1.9 | D14: 6-15 | G14: 1978 | H14: 65.24166667 | I14: 0.5516099486 | Q14: Tunnels | R14: Draft tubes | S14: 175.75 | T14: 350.5 | U14: 360.5 | V14: 374.25 | W14: 381.75 | X14: 389.5 | Y14: 396.25 | Z14: 402 | AA14: 410 | AB14: 421 | AC14: 434 | AD14: 439 | AE14: 459 | AF14: 506 | AG14: 532 | AH14: 546
B15: Access and voltage tunnels | C15: 1 | D15: 6-19 | G15: 1979 | H15: 72.58333333 | I15: 0.6136828014 | Q15: Tunnels | R15: Access and voltage tunnels | S15: 175.75 | T15: 350.5 | U15: 360.5 | V15: 374.25 | W15: 381.75 | X15: 389.5 | Y15: 396.25 | Z15: 402 | AA15: 410 | AB15: 421 | AC15: 434 | AD15: 439 | AE15: 459 | AF15: 506 | AG15: 532 | AH15: 546
B16: Roads | C16: Allowance | D16: N/A | G16: 1980 | H16: 82.38333333 | I16: 0.6965405482 | Q16: Secondary Roads | R16: Roads | S16: 195.25 | T16: 410 | U16: 436 | V16: 451.75 | W16: 460.75 | X16: 466.5 | Y16: 453.5 | Z16: 446 | AA16: 462 | AB16: 481 | AC16: 491 | AD16: 492 | AE16: 537 | AF16: 616 | AG16: 633 | AH16: 643
B17: Electro-Mechanical* | C17: 1.7 | D17: 6-17/6-18 | G17: 1981 | H17: 90.93333333 | I17: 0.7688297048 | Q17: Power plant - turbines and generators | R17: Electro-Mechanical* | S17: 180.75 | T17: 337.75 | U17: 345.5 | V17: 353 | W17: 359.25 | X17: 367 | Y17: 372.75 | Z17: 377 | AA17: 380 | AB17: 387 | AC17: 396 | AD17: 400 | AE17: 412 | AF17: 433 | AG17: 456 | AH17: 472
B18: Transmission works | C18: 1.3 | D18: 6-21 | G18: 1982 | H18: 96.53333333 | I18: 0.8161769887 | Q18: Steel tower transmission lines | R18: Transmission works | S18: 181.25 | T18: 297 | U18: 308 | V18: 318 | W18: 320.75 | X18: 328 | Y18: 333.75 | Z18: 333 | AA18: 341 | AB18: 356 | AC18: 364 | AD18: 363 | AE18: 393 | AF18: 456 | AG18: 472 | AH18: 479
B19: Switchyard | C19: 1 | D19: 6-20 | G19: 1983 | H19: 99.58333333 | I19: 0.8419643486 | Q19: Switchyards and substations | R19: Switchyard | S19: 168 | T19: 317.75 | U19: 328.25 | V19: 336.5 | W19: 343.5 | X19: 349.75 | Y19: 353.75 | Z19: 357 | AA19: 361 | AB19: 371 | AC19: 378 | AD19: 382 | AE19: 414 | AF19: 473 | AG19: 494 | AH19: 503
B20: EPC Contractor's Indirects | C20: 0.25 | D20: N/A | G20: 1984 | H20: 103.9333333 | I20: 0.8787430423 | R20: O&M | S20: 165.5 | T20: 338 | U20: 354.25 | V20: 366.5 | W20: 373 | X20: 379.5 | Y20: 381 | Z20: 382 | AA20: 394 | AB20: 409 | AC20: 422 | AD20: 426 | AE20: 456 | AF20: 515 | AG20: 535 | AH20: 540
B21: Owner's Indirects | C21: 0.1 | D21: N/A | G21: 1985 | H21: 107.6 | I21: 0.9097442401
B22: Contingency | C22: 0.33 | D22: N/A | G22: 1986 | H22: 109.6916667 | I22: 0.9274290143
B23: O&M | C23: 1.3 | D23: N/A | G23: 1987 | H23: 113.6166667 | I23: 0.9606143874 | R23: USBR CCT Normalized to 1988 | S23: 1988 | T23: 2010 | U23: 2011 | V23: 2012 | W23: 2013 | X23: 2014 | Y23: 2015 | Z23: 2016 | AA23: 2017 | AB23: 2018 | AC23: 2019 | AD23: 2020 | AE23: 2021 | AF23: 2022 | AG23: 2023 | AH23: 2024
G24: 1988 | H24: 118.275 | I24: 1 | R24: Power station | S24: 1 | T24: 2.03943218 | U24: 2.11671924 | V24: 2.18454259 | W24: 2.2192429 | X24: 2.26971609 | Y24: 2.29652997 | Z24: 2.31 | AA24: 2.39 | AB24: 2.48 | AC24: 2.56 | AD24: 2.57 | AE24: 2.73 | AF24: 3.03 | AG24: 3.16 | AH24: 3.23
G25: 1989 | H25: 123.9416667 | I25: 1.047910942 | Q25: Composite trend | R25: Dams, spillways, diversions, emb | S25: 1 | T25: 2.08477509 | U25: 2.19896194 | V25: 2.28200692 | W25: 2.31314879 | X25: 2.34948097 | Y25: 2.30795848 | Z25: 2.31 | AA25: 2.39 | AB25: 2.49 | AC25: 2.57 | AD25: 2.59 | AE25: 2.77 | AF25: 3.14 | AG25: 3.29 | AH25: 3.35
G26: 1990 | H26: 130.6583333 | I26: 1.1046995 | R26: Upper intake/outlet (vertical) | S26: 1 | T26: 2.04797601 | U26: 2.14092954 | V26: 2.2053973 | W26: 2.23388306 | X26: 2.27736132 | Y26: 2.26986507 | Z26: 2.27 | AA26: 2.33 | AB26: 2.43 | AC26: 2.49 | AD26: 2.5 | AE26: 2.68 | AF26: 3 | AG26: 3.1 | AH26: 3.13
G27: 1991 | H27: 136.1666667 | I27: 1.151271754 | R27: Lower intake/outlet (horizontal) | S27: 1 | T27: 2.04797601 | U27: 2.14092954 | V27: 2.2053973 | W27: 2.23388306 | X27: 2.27736132 | Y27: 2.26986507 | Z27: 2.27 | AA27: 2.33 | AB27: 2.43 | AC27: 2.49 | AD27: 2.5 | AE27: 2.68 | AF27: 3 | AG27: 3.1 | AH27: 3.13
G28: 1992 | H28: 140.3083333 | I28: 1.186289016 | R28: Surface penstocks | S28: 1 | T28: 2.08957416 | U28: 2.14831131 | V28: 2.20117474 | W28: 2.24816446 | X28: 2.29515419 | Y28: 2.33480176 | Z28: 2.37 | AA28: 2.41 | AB28: 2.46 | AC28: 2.51 | AD28: 2.52 | AE28: 2.66 | AF28: 2.97 | AG28: 3.06 | AH28: 3.08
B29: Category | C29: Suggested | D29: Inflation Factor | G29: 1993 | H29: 144.475 | I29: 1.22151765 | R29: Vertical shaft | S29: 1 | T29: 1.9943101 | U29: 2.0512091 | V29: 2.12944523 | W29: 2.17211949 | X29: 2.21621622 | Y29: 2.25462304 | Z29: 2.29 | AA29: 2.33 | AB29: 2.4 | AC29: 2.47 | AD29: 2.5 | AE29: 2.61 | AF29: 2.88 | AG29: 3.03 | AH29: 3.11
B30: Power station | C30: 1.3 | D30: =$C$45 -> 2.406321426 | G30: 1994 | H30: 148.225 | I30: 1.25322342 | R30: Concrete lined tunnels (e.g. tailrace & power tun) | S30: 1 | T30: 1.9943101 | U30: 2.0512091 | V30: 2.12944523 | W30: 2.17211949 | X30: 2.21621622 | Y30: 2.25462304 | Z30: 2.29 | AA30: 2.33 | AB30: 2.4 | AC30: 2.47 | AD30: 2.5 | AE30: 2.61 | AF30: 2.88 | AG30: 3.03 | AH30: 3.11
B31: Dams, spillways, diversions, emb | C31: 1.4 | D31: 2.406321426 | G31: 1995 | H31: 152.3833333 | I31: 1.288381597 | R31: Steel-Lined tunnels (underground penstocks) | S31: 1 | T31: 1.9943101 | U31: 2.0512091 | V31: 2.12944523 | W31: 2.17211949 | X31: 2.21621622 | Y31: 2.25462304 | Z31: 2.29 | AA31: 2.33 | AB31: 2.4 | AC31: 2.47 | AD31: 2.5 | AE31: 2.61 | AF31: 2.88 | AG31: 3.03 | AH31: 3.11
B32: Upper intake/outlet (vertical) | C32: 2 | D32: 2.406321426 | G32: 1996 | H32: 156.8583333 | I32: 1.326217149 | R32: Draft tubes | S32: 1 | T32: 1.9943101 | U32: 2.0512091 | V32: 2.12944523 | W32: 2.17211949 | X32: 2.21621622 | Y32: 2.25462304 | Z32: 2.29 | AA32: 2.33 | AB32: 2.4 | AC32: 2.47 | AD32: 2.5 | AE32: 2.61 | AF32: 2.88 | AG32: 3.03 | AH32: 3.11
B33: Lower intake/outlet (horizontal) | C33: 1.3 | D33: 2.406321426 | G33: 1997 | H33: 160.525 | I33: 1.357218347 | R33: Access and voltage tunnels | S33: 1 | T33: 1.9943101 | U33: 2.0512091 | V33: 2.12944523 | W33: 2.17211949 | X33: 2.21621622 | Y33: 2.25462304 | Z33: 2.29 | AA33: 2.33 | AB33: 2.4 | AC33: 2.47 | AD33: 2.5 | AE33: 2.61 | AF33: 2.88 | AG33: 3.03 | AH33: 3.11
B34: Surface penstocks | C34: 1.3 | D34: =$C$45 -> 2.406321426 | G34: 1998 | H34: 163.0083333 | I34: 1.378214613 | R34: Roads | S34: 1 | T34: 2.09987196 | U34: 2.23303457 | V34: 2.31370038 | W34: 2.35979513 | X34: 2.38924456 | Y34: 2.32266325 | Z34: 2.28 | AA34: 2.36 | AB34: 2.46 | AC34: 2.52 | AD34: 2.52 | AE34: 2.75 | AF34: 3.15 | AG34: 3.24 | AH34: 3.29
B35: Vertical shaft | C35: 1.8 | D35: 2.406321426 | G35: 1999 | H35: 166.5833333 | I35: 1.408440781 | R35: Electro-Mechanical* | S35: 1 | T35: 1.86860304 | U35: 1.91147994 | V35: 1.95297372 | W35: 1.98755187 | X35: 2.03042877 | Y35: 2.06224066 | Z35: 2.09 | AA35: 2.1 | AB35: 2.14 | AC35: 2.19 | AD35: 2.21 | AE35: 2.28 | AF35: 2.4 | AG35: 2.52 | AH35: 2.61
B36: Concrete lined tunnels (e.g. tailrace & power tun) | C36: 1.6 | D36: 2.406321426 | G36: 2000 | H36: 172.1916667 | I36: 1.455858522 | R36: Transmission works | S36: 1 | T36: 1.63862069 | U36: 1.69931034 | V36: 1.75448276 | W36: 1.76965517 | X36: 1.80965517 | Y36: 1.84137931 | Z36: 1.84 | AA36: 1.88 | AB36: 1.96 | AC36: 2.01 | AD36: 2 | AE36: 2.17 | AF36: 2.52 | AG36: 2.61 | AH36: 2.64
B37: Steel-Lined tunnels (underground penstocks) | C37: 1.9 | D37: 2.406321426 | G37: 2001 | H37: 177.0416667 | I37: 1.496864652 | R37: Switchyard | S37: 1 | T37: 1.89136905 | U37: 1.95386905 | V37: 2.00297619 | W37: 2.04464286 | X37: 2.08184524 | Y37: 2.10565476 | Z37: 2.12 | AA37: 2.15 | AB37: 2.21 | AC37: 2.25 | AD37: 2.27 | AE37: 2.46 | AF37: 2.82 | AG37: 2.94 | AH37: 3
B38: Draft tubes | C38: 1.9 | D38: 2.406321426 | G38: 2002 | H38: 179.8666667 | I38: =H38/$H$24 -> 1.520749665 | R38: O&M | S38: 1 | T38: 2.04229607 | U38: 2.14048338 | V38: 2.21450151 | W38: 2.25377644 | X38: 2.29305136 | Y38: 2.3021148 | Z38: 2.31 | AA38: 2.38 | AB38: 2.47 | AC38: 2.55 | AD38: 2.57 | AE38: 2.75 | AF38: 3.11 | AG38: 3.23 | AH38: 3.26
B39: Access and voltage tunnels | C39: 1 | D39: 2.406321426 | G39: 2003 | H39: 184 | I39: 1.55569647
B40: Roads | C40: 1 | D40: 2.406321426 | G40: 2004 | H40: 188.9083333 | I40: 1.597195801
B41: Electro-Mechanical* | C41: 1.7 | D41: 2.406321426 | G41: 2005 | H41: 195.2666667 | I41: 1.650954696 | R41: USBR CCT Normalized to 2022 | S41: 1988 | T41: 2010 | U41: 2011 | V41: 2012 | W41: 2013 | X41: 2014 | Y41: 2015 | Z41: 2016 | AA41: 2017 | AB41: 2018 | AC41: 2019 | AD41: 2020 | AE41: 2021 | AF41: 2022 | AG41: 2023 | AH41: 2024
B42: Transmission works | C42: 1.3 | D42: 2.406321426 | G42: 2006 | H42: 201.5583333 | I42: 1.704149933 | R42: Power station | AF42: 1 | AG42: 1.04 | AH42: 1.07
B43: Switchyard | C43: 1 | D43: 2.406321426 | G43: 2007 | H43: 207.3441667 | I43: 1.753068414 | R43: Dams, spillways, diversions, emb | AF43: 1 | AG43: 1.05 | AH43: 1.07
G44: 2008 | H44: 215.25425 | I44: 1.819947157 | R44: Upper intake/outlet (vertical) | AF44: 1 | AG44: 1.03 | AH44: 1.04
B45: 1988-2022 adjustment | C45: =H58/$H$24 -> 2.406321426 | G45: 2009 | H45: 214.5646667 | I45: 1.814116818 | R45: Lower intake/outlet (horizontal) | AF45: 1 | AG45: 1.03 | AH45: 1.04
B46: 2011-2022 adjustment | C46: =H58/H47 -> 1.265355996 | G46: 2010 | H46: 218.0761667 | I46: 1.843806102 | R46: Surface penstocks | AF46: 1 | AG46: 1.03 | AH46: 1.04
B47: 2015-2022 adjustment | C47: =H58/H51 -> 1.200867363 | G47: 2011 | H47: 224.923 | I47: 1.901695202 | R47: Vertical shaft | AF47: 1 | AG47: 1.05 | AH47: 1.08
B48: 2021-2024 Adjustment | C48: =I60/I57 -> 1.15767172 | G48: 2012 | H48: 229.5860833 | I48: 1.941120975 | R48: Concrete lined tunnels (e.g. tailrace & power tun) | AF48: 1 | AG48: 1.05 | AH48: 1.08
B49: 1988-2024 adjustment | C49: =H60/H24 -> 2.65220038 | G49: 2013 | H49: 232.95175 | I49: 1.969577256 | R49: Steel-Lined tunnels (underground penstocks) | AF49: 1 | AG49: 1.05 | AH49: 1.08
G50: 2014 | H50: 236.715 | I50: 2.001395054 | R50: Draft tubes | AF50: 1 | AG50: 1.05 | AH50: 1.08
G51: 2015 | H51: 237.00175 | I51: 2.003819488 | R51: Access and voltage tunnels | AF51: 1 | AG51: 1.05 | AH51: 1.08
G52: 2016 | H52: 240.0054167 | I52: 2.029215106 | R52: Roads | AF52: 1 | AG52: 1.03 | AH52: 1.04
G53: 2017 | H53: 245.121 | I53: 2.072466709 | R53: Electro-Mechanical | AF53: 1 | AG53: 1.05 | AH53: 1.09
G54: 2018 | H54: 251.0989167 | I54: 2.12300923 | R54: Transmission works | AF54: 1 | AG54: 1.04 | AH54: 1.05
G55: 2019 | H55: 255.6465 | I55: 2.161458465 | R55: Switchyard | AF55: 1 | AG55: 1.04 | AH55: 1.06
G56: 2020 | H56: 258.83825 | I56: 2.188444304 | R56: O&M | AF56: 1 | AG56: 1.04 | AH56: 1.05
G57: 2021 | H57: 270.9654167 | I57: 2.290977947
G58: 2022 | H58: 284.6076667 | I58: =H58/$H$24 -> 2.406321426
G59: 2023 | H59: 304.702 | I59: =H59/$H$24 -> 2.576216445 | V59: Post-2022 Adjustments
G60: 2024 | H60: 313.689 | I60: =H60/$H$24 -> 2.65220038 | R60: Category | S60: 2022 MAF | T60: 2022 Inflation Factor | U60: 2022 Composite | V60: 2023 Adjustment | W60: 2023 Composite | X60: 2024 Adjustment | Y60: 2024 Composite
P61: Powerplant Structure | R61: Power station | S61: 1.3 | T61: 2.41 | U61: =S61*T61 -> 3.133 | V61: =AG6/AF6 -> 1.04375 | W61: =U61*V61 -> 3.27006875 | X61: =AH6/AF6 -> 1.066666667 | Y61: =X61*U61 -> 3.341866667
R62: Dams, spillways, diversions, emb | S62: 1.4 | T62: 2.41 | U62: 3.374 | V62: 1.048565121 | W62: 3.53785872 | X62: 1.068432671 | Y62: 3.604891832
R63: Upper intake/outlet (vertical) | S63: 2 | T63: 2.41 | U63: 4.82 | V63: 1.031936128 | W63: 4.973932136 | X63: 1.041916168 | Y63: 5.022035928
R64: Lower intake/outlet (horizontal) | S64: 1.3 | T64: 2.41 | U64: 3.133 | V64: 1.031936128 | W64: 3.233055888 | X64: 1.041916168 | Y64: 3.264323353
R65: Surface penstocks | S65: 1.3 | T65: 2.41 | U65: 3.133 | V65: 1.029644269 | W65: 3.225875494 | X65: 1.035573123 | Y65: 3.244450593
R66: Vertical shaft | S66: 1.8 | T66: 2.41 | U66: 4.338 | V66: 1.051383399 | W66: 4.560901186 | X66: 1.079051383 | Y66: 4.680924901
R67: Concrete lined tunnels (e.g. tailrace & power tun) | S67: 1.6 | T67: 2.41 | U67: 3.856 | V67: 1.051383399 | W67: 4.054134387 | X67: 1.079051383 | Y67: 4.160822134
R68: Steel-Lined tunnels (underground penstocks) | S68: 1.9 | T68: 2.41 | U68: 4.579 | V68: 1.051383399 | W68: 4.814284585 | X68: 1.079051383 | Y68: 4.940976285
R69: Draft tubes | S69: 1.9 | T69: 2.41 | U69: 4.579 | V69: 1.051383399 | W69: 4.814284585 | X69: 1.079051383 | Y69: 4.940976285
R70: Access and voltage tunnels | S70: 1 | T70: 2.41 | U70: 2.41 | V70: 1.051383399 | W70: 2.533833992 | X70: 1.079051383 | Y70: 2.600513834
R71: Roads | S71: 1 | T71: 2.41 | U71: 2.41 | V71: 1.027597403 | W71: 2.47650974 | X71: 1.043831169 | Y71: 2.515633117
R72: Electro-Mechanical* | S72: 1.7 | T72: 2.41 | U72: 4.097 | V72: 1.053117783 | W72: 4.314623557 | X72: 1.090069284 | Y72: 4.466013857
R73: Transmission works | S73: 1.3 | T73: 2.41 | U73: 3.133 | V73: 1.035087719 | W73: 3.242929825 | X73: 1.050438596 | Y73: 3.291024123
R74: Switchyard | S74: 1 | T74: 2.41 | U74: 2.41 | V74: 1.044397463 | W74: 2.516997886 | X74: 1.063424947 | Y74: 2.562854123

Sheet Locational Adj Factors
B1: Location Factor
A2: State | B2: Material Cost | C2: Equipment Rental
A3: Alabama | B3: 96.8 | C3: 59.3
A4: Alaska | B4: 125.3 | C4: 114.2
A5: Arizona | B5: 97.5 | C5: 68.8
A6: Arkansas | B6: 95.3 | C6: 57.3
A7: California | B7: 98.2 | C7: 118.8
A8: Colorado | B8: 101.2 | C8: 80.5
A9: Connecticut | B9: 101.3 | C9: 120.1
A10: Delaware | B10: 99.3 | C10: 107.9
A11: DC | B11: 102.4 | C11: 92.8
A12: Florida | B12: 99.8 | C12: 72.5
A13: Georgia | B13: 97.2 | C13: 63
A14: Hawaii | B14: 111.8 | C14: 121.2
A15: Idaho | B15: 102.5 | C15: 68.6
A16: Illinois | B16: 96.9 | C16: 114.6
A17: Indiana | B17: 96 | C17: 84.3
A18: Iowa | B18: 99.1 | C18: 72.8
A19: Kansas | B19: 98.8 | C19: 69.2
A20: Kentucky | B20: 94.4 | C20: 85.2
A21: Louisiana | B21: 99.1 | C21: 60.2
A22: Maine | B22: 96.6 | C22: 79.3
A23: Maryland | B23: 97.8 | C23: 80
A24: Massachusetts | B24: 98.8 | C24: 121.9
A25: Michigan | B25: 95.5 | C25: 92.2
A26: Minnesota | B26: 98.8 | C26: 107.5
A27: Mississippi | B27: 97.7 | C27: 59.5
A28: Missouri | B28: 98 | C28: 89.5
A29: Montana | B29: 102.3 | C29: 71.6
A30: Nebraska | B30: 98.5 | C30: 74.1
A31: Nevada | B31: 98.4 | C31: 96.3
A32: New Hampshire | B32: 97.8 | C32: 68.4
A33: New Jersey | B33: 99.7 | C33: 123.8
A34: New Mexico | B34: 98.1 | C34: 73
A35: New York | B35: 99.7 | C35: 125.2
A36: North Carolina | B36: 98.2 | C36: 44.8
A37: North Dakota | B37: 102 | C37: 59.3
A38: Ohio | B38: 96.9 | C38: 89.4
A39: Oklahoma | B39: 95.6 | C39: 55.7
A40: Oregon | B40: 97.6 | C40: 97.6
A41: Pennsylvania | B41: 95.7 | C41: 100.3
A42: Rhode Island | B42: 99.7 | C42: 111.1
A43: South Carolina | B43: 97.1 | C43: 52.1
A44: South Dakota | B44: 100.2 | C44: 53.1
A45: Tennessee | B45: 97.5 | C45: 64.3
A46: Texas | B46: 97.5 | C46: 54.7
A47: Utah | B47: 99.5 | C47: 68.5
A48: Vermont | B48: 97.8 | C48: 63.8
A49: Virginia | B49: 99.8 | C49: 64.7
A50: Washington | B50: 101.9 | C50: 91.8
A51: West Virginia | B51: 99 | C51: 86.8
A52: Wisconsin | B52: 98.9 | C52: 95
A53: Wyoming | B53: 98.4 | C53: 58.5
A54: Puerto Rico | B54: 121.3 | C54: 24.1
A55: United States | B55: 100 | C55: 100

Sheet Land Value Data
A2: State | B2: Farm Real Estate $/Acre 2021 | C2: Cropland $/Acre 2021 | D2: Irrigated Cropland $/Acre 2021 | E2: Non-Irrigated Cropland $/Acre 2021 | F2: Pasture $/Acre 2021 | G2: Average $/Acre 2021
A3: Connecticut | B3: 12500 | C3: 8770 | F3: 6870 | G3: =AVERAGE(B3:F3) -> 9380
A4: Delaware | B4: 9300 | C4: 8600 | F4: 6870 | G4: =AVERAGE(B4:F4) -> 8256.666667
A5: Maine | B5: 2600 | C5: 8770 | F5: 6870 | G5: 6080
A6: Maryland | B6: 8670 | C6: 7960 | G6: 8315
A7: Massachusetts | B7: 13700 | C7: 8770 | F7: 6870 | G7: 9780
A8: New Hampshire | B8: 5050 | C8: 8770 | F8: 6870 | G8: 6896.666667
A9: New Jersey | B9: 14400 | C9: 14800 | F9: 13400 | G9: 14200
A10: New York | B10: 3270 | C10: 2910 | F10: 1580 | G10: 2586.666667
A11: Pennsylvania | B11: 6800 | C11: 7600 | F11: 3440 | G11: 5946.666667
A12: Rhode Island | B12: 16400 | C12: 8770 | F12: 6870 | G12: 10680
A13: Vermont | B13: 3900 | C13: 8770 | F13: 6870 | G13: 6513.333333
A14: Michigan | B14: 5300 | C14: 4700 | F14: 2740 | G14: 4246.666667
A15: Minnesota | B15: 5240 | C15: 5270 | F15: 1830 | G15: 4113.333333
A16: Wisconsin | B16: 5190 | C16: 5280 | F16: 2520 | G16: 4330
A17: Illinois | B17: 7900 | C17: 7900 | F17: 3400 | G17: 6400
A18: Indiana | B18: 7100 | C18: 6800 | F18: 2490 | G18: 5463.333333
A19: Iowa | B19: 7740 | C19: 7810 | F19: 3020 | G19: 6190
A20: Missouri | B20: 3700 | C20: 3810 | D20: 4800 | E20: 3700 | F20: 2160 | G20: 3634
A21: Ohio | B21: 6600 | C21: 6800 | F21: 3440 | G21: 5613.333333
A22: Kansas | B22: 2100 | C22: 2370 | D22: 3700 | E22: 2250 | F22: 1500 | G22: 2384
A23: Nebraska | B23: 3100 | C23: 4960 | D23: 6530 | E23: 3990 | F23: 1080 | G23: 3932
A24: North Dakota | B24: 1820 | C24: 2060 | F24: 840 | G24: 1573.333333
A25: South Dakota | B25: 2190 | C25: 3390 | E25: 3180 | F25: 1060 | G25: 2455
A26: Kentucky | B26: 4000 | C26: 4510 | F26: 3080 | G26: 3863.333333
A27: North Carolina | B27: 4750 | C27: 4290 | F27: 4850 | G27: 4630
A28: Tennessee | B28: 4260 | C28: 4130 | F28: 4000 | G28: 4130
A29: Virginia | B29: 4700 | C29: 4790 | F29: 4060 | G29: 4516.666667
A30: West Virginia | B30: 2770 | C30: 3330 | F30: 2200 | G30: 2766.666667
A31: Alabama | B31: 3200 | C31: 3550 | F31: 2650 | G31: 3133.333333
A32: Florida | B32: 6020 | C32: 7300 | D32: 8350 | E32: 6320 | F32: 5530 | G32: 6704
A33: Georgia | B33: 3670 | C33: 3480 | D33: 4350 | E33: 3130 | F33: 4060 | G33: 3738
A34: South Carolina | B34: 3600 | C34: 2900 | F34: 3350 | G34: 3283.333333
A35: Arkansas | B35: 3390 | C35: 2930 | D35: 3420 | E35: 2130 | F35: 2700 | G35: 2914
A36: Louisiana | B36: 3220 | C36: 2980 | D36: 2880 | E36: 3020 | F36: 2950 | G36: 3010
A37: Mississippi | B37: 2860 | C37: 3150 | D37: 3700 | E37: 2830 | F37: 2480 | G37: 3004
A38: Oklahoma | B38: 2020 | C38: 1810 | E38: 1790 | F38: 1600 | G38: 1805
A39: Texas | B39: 2380 | C39: 2150 | D39: 2540 | E39: 2090 | F39: 1800 | G39: 2192
A40: Arizona | B40: 3900 | C40: 7700 | D40: 7700 | G40: 6433.333333
A41: Colorado | B41: 1610 | C41: 2240 | D41: 5400 | E41: 1400 | F41: 875 | G41: 2305
A42: Idaho | B42: 3350 | C42: 4450 | D42: 6800 | E42: 1890 | F42: 1700 | G42: 3638
A43: Montana | B43: 930 | C43: 1050 | D43: 3050 | E43: 835 | F43: 700 | G43: 1313
A44: Nevada | B44: 1010 | G44: 1010
A45: New Mexico | B45: 600 | C45: 1660 | D45: 4550 | E45: 485 | F45: 440 | G45: 1547
A46: Utah | B46: 2620 | C46: 4190 | D46: 6650 | E46: 1550 | F46: 1370 | G46: 3276
A47: Wyoming | B47: 790 | C47: 1600 | D47: 2550 | E47: 890 | F47: 610 | G47: 1288
A48: California | B48: 10900 | C48: 13860 | D48: 16300 | E48: 5900 | F48: 3100 | G48: 10012
A49: Oregon | B49: 2790 | C49: 3310 | D49: 5800 | E49: 2340 | F49: 830 | G49: 3014
A50: Washington | B50: 2900 | C50: 2700 | D50: 7800 | E50: 1310 | F50: 750 | G50: 3092
A51: United States | B51: 3380 | C51: 4420 | F51: 1480 | G51: 3093.333333

Sheet Sensitivity Analysis
A1: # | B1: Duration (Hrs) | C1: Nominal Head (Ft) | D1: Conveyance Length (Ft) | E1: Average U. Dam Height (ft) | F1: Average L. Dam Height (ft) | G1: Power Station Type | H1: Transmission Miles | I1: Average U. Crest Length (Ft) | J1: Average L. Crest Length (Ft) | K1: Power Station Structure Geology Type | L1: Access Tunnel Length (Miles) | M1: U. Reservoir Intake/Outlet Type | N1: Tranmission Type | O1: Penstock Type | P1: L. Reservoir Intake/Outlet Type | Q1: $/kWh | R1: $/kW
A2: 1 | B2: 18.5 | C2: 1560 | D2: 14394 | E2: 120 | F2: 60 | G2: Underground | H2: 13.5 | I2: 1300 | J2: 1100 | K2: Adverse | L2: 1.25 | M2: Vertical | N2: Double | O2: Underground | P2: Horizontal | Q2: 16281.238 | R2: 2.089416632e+10
A3: 2 | B3: 24 | C3: 1560 | D3: 14394 | E3: 120 | F3: 60 | G3: Underground | H3: 13.5 | I3: 1300 | J3: 1100 | K3: Adverse | L3: 1.25 | M3: Vertical | N3: Double | O3: Underground | P3: Horizontal | Q3: 17636.6922 | R3: 1.729297147e+10
A4: 3 | B4: 10 | C4: 1560 | D4: 14394 | E4: 120 | F4: 60 | G4: Underground | H4: 13.5 | I4: 1300 | J4: 1100 | K4: Adverse | L4: 1.25 | M4: Vertical | N4: Double | O4: Underground | P4: Horizontal | Q4: 14001.9875 | R4: 3.378146499e+10
A5: 4 | B5: 18.5 | C5: 2500 | D5: 14394 | E5: 120 | F5: 60 | G5: Underground | H5: 13.5 | I5: 1300 | J5: 1100 | K5: Adverse | L5: 1.25 | M5: Vertical | N5: Double | O5: Underground | P5: Horizontal | Q5: 11907.9368 | R5: 2.498361781e+10
A6: 5 | B6: 18.5 | C6: 800 | D6: 14394 | E6: 120 | F6: 60 | G6: Underground | H6: 13.5 | I6: 1300 | J6: 1100 | K6: Adverse | L6: 1.25 | M6: Vertical | N6: Double | O6: Underground | P6: Horizontal | Q6: 26109.4558 | R6: 1.630808959e+10
A7: 6 | B7: 18.5 | C7: 1560 | D7: 5000 | E7: 120 | F7: 60 | G7: Underground | H7: 13.5 | I7: 1300 | J7: 1100 | K7: Adverse | L7: 1.25 | M7: Vertical | N7: Double | O7: Underground | P7: Horizontal | Q7: 13251.6643 | R7: 1.760114151e+10
A8: 7 | B8: 18.5 | C8: 1560 | D8: 25000 | E8: 120 | F8: 60 | G8: Underground | H8: 13.5 | I8: 1300 | J8: 1100 | K8: Adverse | L8: 1.25 | M8: Vertical | N8: Double | O8: Underground | P8: Horizontal | Q8: 19726.2004 | R8: 2.431535185e+10
A9: 8 | B9: 18.5 | C9: 1560 | D9: 14394 | E9: 60 | F9: 60 | G9: Underground | H9: 13.5 | I9: 1300 | J9: 1100 | K9: Adverse | L9: 1.25 | M9: Vertical | N9: Double | O9: Underground | P9: Horizontal | Q9: 15794.1166 | R9: 2.026902983e+10 | T9: *Any changes to current input cell reference need to be manually updated in the macro.
A10: 9 | B10: 18.5 | C10: 1560 | D10: 14394 | E10: 240 | F10: 240 | G10: Underground | H10: 13.5 | I10: 1300 | J10: 1100 | K10: Adverse | L10: 1.25 | M10: Vertical | N10: Double | O10: Underground | P10: Horizontal | Q10: 19949.6083 | R10: 2.56018881e+10 | T10: Yellow highlighted cell inputs affect the sensitivity graphs
A11: 10 | B11: 18.5 | C11: 1560 | D11: 14394 | E11: 120 | F11: 60 | G11: Surface | H11: 13.5 | I11: 1300 | J11: 1100 | K11: Adverse | L11: 1.25 | M11: Vertical | N11: Double | O11: Underground | P11: Horizontal | Q11: 14811.1103 | R11: 1.900751047e+10
A12: 11 | B12: 18.5 | C12: 1560 | D12: 14394 | E12: 120 | F12: 60 | G12: Underground | H12: 13.5 | I12: 1300 | J12: 1100 | K12: Adverse | L12: 1.25 | M12: Vertical | N12: Double | O12: Underground | P12: Horizontal | Q12: 16281.238 | R12: 2.089416632e+10
A13: 12 | B13: 18.5 | C13: 1560 | D13: 14394 | E13: 120 | F13: 60 | G13: Underground | H13: 5 | I13: 1300 | J13: 1100 | K13: Adverse | L13: 1.25 | M13: Vertical | N13: Double | O13: Underground | P13: Horizontal | Q13: 7206.4496 | R13: 9248237551
A14: 13 | B14: 18.5 | C14: 1560 | D14: 14394 | E14: 120 | F14: 60 | G14: Underground | H14: 25 | I14: 1300 | J14: 1100 | K14: Adverse | L14: 1.25 | M14: Vertical | N14: Double | O14: Underground | P14: Horizontal | Q14: 28558.8929 | R14: 3.665042289e+10
A15: 14 | B15: 18.5 | C15: 1560 | D15: 14394 | E15: 120 | F15: 60 | G15: Underground | H15: 13.5 | I15: 800 | J15: 800 | K15: Adverse | L15: 1.25 | M15: Vertical | N15: Double | O15: Underground | P15: Horizontal | Q15: 15938.4098 | R15: 2.045420533e+10
A16: 15 | B16: 18.5 | C16: 1560 | D16: 14394 | E16: 120 | F16: 60 | G16: Underground | H16: 13.5 | I16: 1800 | J16: 1800 | K16: Adverse | L16: 1.25 | M16: Vertical | N16: Double | O16: Underground | P16: Horizontal | Q16: 16702.1651 | R16: 2.143435373e+10
A17: 16 | B17: 18.5 | C17: 1560 | D17: 14394 | E17: 120 | F17: 60 | G17: Underground | H17: 13.5 | I17: 1300 | J17: 1100 | K17: Average | L17: 1.25 | M17: Vertical | N17: Double | O17: Underground | P17: Horizontal | Q17: 15853.2702 | R17: 2.034494337e+10
A18: 17 | B18: 18.5 | C18: 1560 | D18: 14394 | E18: 120 | F18: 60 | G18: Underground | H18: 13.5 | I18: 1300 | J18: 1100 | K18: Adverse | L18: 1.25 | M18: Vertical | N18: Double | O18: Underground | P18: Horizontal | Q18: 16281.238 | R18: 2.089416632e+10
A19: 18 | B19: 18.5 | C19: 1560 | D19: 14394 | E19: 120 | F19: 60 | G19: Underground | H19: 13.5 | I19: 1300 | J19: 1100 | K19: Adverse | L19: 0.75 | M19: Vertical | N19: Double | O19: Underground | P19: Horizontal | Q19: 16071.3696 | R19: 2.062483641e+10
A20: 19 | B20: 18.5 | C20: 1560 | D20: 14394 | E20: 120 | F20: 60 | G20: Underground | H20: 13.5 | I20: 1300 | J20: 1100 | K20: Adverse | L20: 1.75 | M20: Vertical | N20: Double | O20: Underground | P20: Horizontal | Q20: 16501.5277 | R20: 2.117687019e+10
A21: 20 | B21: 18.5 | C21: 1560 | D21: 14394 | E21: 120 | F21: 60 | G21: Underground | H21: 13.5 | I21: 1300 | J21: 1100 | K21: Adverse | L21: 1.25 | M21: Horizontal | N21: Double | O21: Underground | P21: Horizontal | Q21: 16583.7552 | R21: 2.12823951e+10
A22: 21 | B22: 18.5 | C22: 1560 | D22: 14394 | E22: 120 | F22: 60 | G22: Underground | H22: 13.5 | I22: 1300 | J22: 1100 | K22: Adverse | L22: 1.25 | M22: Vertical | N22: Double | O22: Underground | P22: Horizontal | Q22: 16281.238 | R22: 2.089416632e+10
A23: 22 | B23: 18.5 | C23: 1560 | D23: 14394 | E23: 120 | F23: 60 | G23: Underground | H23: 13.5 | I23: 1300 | J23: 1100 | K23: Adverse | L23: 1.25 | M23: Vertical | N23: Single | O23: Underground | P23: Horizontal | Q23: 16281.238 | R23: 2.089416632e+10
A24: 23 | B24: 18.5 | C24: 1560 | D24: 14394 | E24: 120 | F24: 60 | G24: Underground | H24: 13.5 | I24: 1300 | J24: 1100 | K24: Adverse | L24: 1.25 | M24: Vertical | N24: Double | O24: Underground | P24: Horizontal | Q24: 16281.238 | R24: 2.089416632e+10
A25: 24 | B25: 18.5 | C25: 1560 | D25: 14394 | E25: 120 | F25: 60 | G25: Underground | H25: 13.5 | I25: 1300 | J25: 1100 | K25: Adverse | L25: 1.25 | M25: Vertical | N25: Double | O25: Surface | P25: Horizontal | Q25: 16474.8196 | R25: 2.114259497e+10
A26: 24 | B26: 18.5 | C26: 1560 | D26: 14394 | E26: 120 | F26: 60 | G26: Underground | H26: 13.5 | I26: 1300 | J26: 1100 | K26: Adverse | L26: 1.25 | M26: Vertical | N26: Double | O26: Underground | P26: Horizontal | Q26: 16281.238 | R26: 2.089416632e+10
A27: 24 | B27: 18.5 | C27: 1560 | D27: 14394 | E27: 120 | F27: 60 | G27: Underground | H27: 13.5 | I27: 1300 | J27: 1100 | K27: Adverse | L27: 1.25 | M27: Vertical | N27: Double | O27: Underground | P27: Vertical | Q27: 16084.6018 | R27: 2.064181761e+10
A28: 24 | B28: 18.5 | C28: 1560 | D28: 14394 | E28: 120 | F28: 60 | G28: Underground | H28: 13.5 | I28: 1300 | J28: 1100 | K28: Adverse | L28: 1.25 | M28: Vertical | N28: Double | O28: Underground | P28: Horizontal | Q28: 16281.238 | R28: 2.089416632e+10
A29: 25 | B29: 18.5 | C29: 1560 | D29: 14394 | E29: 120 | F29: 60 | G29: Underground | H29: 13.5 | I29: 1300 | J29: 1100 | K29: Adverse | L29: 1.25 | M29: Vertical | N29: Double | O29: Underground | P29: Horizontal | Q29: 16281.238 | R29: 2.089416632e+10
A35: # | B35: Duration (Hrs) | C35: Nominal Head (Ft) | D35: Conveyance Length (Ft) | E35: Average U. Dam Height (ft) | F35: Average L. Dam Height (ft) | G35: Power Station Type | H35: Transmission Miles | I35: Average U. Crest Length (Ft) | J35: Average L. Crest Length (Ft) | K35: Power Station Structure Geology Type | L35: Access Tunnel Length (Miles) | M35: U. Reservoir Intake/Outlet Type | N35: Tranmission Type | O35: Penstock Type | P35: Tunneling Condirion | Q35: $/kWh | R35: $/kW
A36: 1 | B36: 10 | C36: 1004 | D36: 11080 | E36: 200 | F36: 170 | G36: Surface | H36: 30 | I36: 30 | J36: 30 | K36: Average | L36: 0.75 | M36: Vertical | N36: Double | O36: Surface | P36: Average | Q36: 426.8472 | R36: 4268.4718
A37: 2 | B37: 6 | C37: 1004 | D37: 11080 | E37: 200 | F37: 170 | G37: Surface | H37: 30 | I37: 30 | J37: 30 | K37: Average | L37: 0.75 | M37: Vertical | N37: Double | O37: Surface | P37: Average | Q37: 584.1585 | R37: 3504.951
A38: 3 | B38: 14 | C38: 1004 | D38: 11080 | E38: 200 | F38: 170 | G38: Surface | H38: 30 | I38: 30 | J38: 30 | K38: Average | L38: 0.75 | M38: Vertical | N38: Double | O38: Surface | P38: Average | Q38: 392.1838 | R38: 5490.5726
A39: 4 | B39: 10 | C39: 500 | D39: 11080 | E39: 200 | F39: 170 | G39: Surface | H39: 30 | I39: 30 | J39: 30 | K39: Average | L39: 0.75 | M39: Vertical | N39: Double | O39: Surface | P39: Average | Q39: 858.9518 | R39: 8589.5185
A40: 5 | B40: 10 | C40: 1500 | D40: 11080 | E40: 200 | F40: 170 | G40: Surface | H40: 30 | I40: 30 | J40: 30 | K40: Average | L40: 0.75 | M40: Vertical | N40: Double | O40: Surface | P40: Average | Q40: 358.6265 | R40: 3586.2653
A41: 6 | B41: 10 | C41: 1004 | D41: 5000 | E41: 200 | F41: 170 | G41: Surface | H41: 30 | I41: 30 | J41: 30 | K41: Average | L41: 0.75 | M41: Vertical | N41: Double | O41: Surface | P41: Average | Q41: 349.1407 | R41: 3491.4066
A42: 7 | B42: 10 | C42: 1004 | D42: 15000 | E42: 200 | F42: 170 | G42: Surface | H42: 30 | I42: 30 | J42: 30 | K42: Average | L42: 0.75 | M42: Vertical | N42: Double | O42: Surface | P42: Average | Q42: 472.5876 | R42: 4725.8763 | T42: *Any changes to current input cell reference need to be manually updated in the macro.
A43: 8 | B43: 10 | C43: 1004 | D43: 11080 | E43: 200 | F43: 170 | G43: Surface | H43: 30 | I43: 30 | J43: 30 | K43: Average | L43: 0.75 | M43: Vertical | N43: Double | O43: Surface | P43: Average | Q43: 426.8472 | R43: 4268.4718 | T43: Yellow highlighted cell inputs affect the sensitivity graphs
A44: 9 | B44: 10 | C44: 1004 | D44: 11080 | E44: 200 | F44: 170 | G44: Surface | H44: 30 | I44: 30 | J44: 30 | K44: Average | L44: 0.75 | M44: Vertical | N44: Double | O44: Surface | P44: Average | Q44: 426.8472 | R44: 4268.4718
A45: 10 | B45: 10 | C45: 1004 | D45: 11080 | E45: 200 | F45: 170 | G45: Surface | H45: 30 | I45: 30 | J45: 30 | K45: Average | L45: 0.75 | M45: Vertical | N45: Double | O45: Surface | P45: Average | Q45: 426.8472 | R45: 4268.4718
A46: 11 | B46: 10 | C46: 1004 | D46: 11080 | E46: 200 | F46: 170 | G46: Surface | H46: 30 | I46: 30 | J46: 30 | K46: Average | L46: 0.75 | M46: Vertical | N46: Double | O46: Surface | P46: Average | Q46: 426.8472 | R46: 4268.4718
A47: 12 | B47: 10 | C47: 1004 | D47: 11080 | E47: 200 | F47: 170 | G47: Surface | H47: 20 | I47: 30 | J47: 30 | K47: Average | L47: 0.75 | M47: Vertical | N47: Double | O47: Surface | P47: Average | Q47: 369.9714 | R47: 3699.7136
A48: 13 | B48: 10 | C48: 1004 | D48: 11080 | E48: 200 | F48: 170 | G48: Surface | H48: 40 | I48: 30 | J48: 30 | K48: Average | L48: 0.75 | M48: Vertical | N48: Double | O48: Surface | P48: Average | Q48: 483.723 | R48: 4837.23
A49: 14 | B49: 10 | C49: 1004 | D49: 11080 | E49: 200 | F49: 170 | G49: Surface | H49: 30 | I49: 30 | J49: 30 | K49: Average | L49: 0.75 | M49: Vertical | N49: Double | O49: Surface | P49: Average | Q49: 426.8472 | R49: 4268.4718
A50: 15 | B50: 10 | C50: 1004 | D50: 11080 | E50: 200 | F50: 170 | G50: Surface | H50: 30 | I50: 30 | J50: 30 | K50: Average | L50: 0.75 | M50: Vertical | N50: Double | O50: Surface | P50: Average | Q50: 426.8472 | R50: 4268.4718
A51: 16 | B51: 10 | C51: 1004 | D51: 11080 | E51: 200 | F51: 170 | G51: Surface | H51: 30 | I51: 30 | J51: 30 | K51: Adverse | L51: 0.75 | M51: Vertical | N51: Double | O51: Surface | P51: Average | Q51: 444.1529 | R51: 4441.5289
A52: 17 | B52: 10 | C52: 1004 | D52: 11080 | E52: 200 | F52: 170 | G52: Surface | H52: 30 | I52: 30 | J52: 30 | K52: Average | L52: 0.75 | M52: Vertical | N52: Double | O52: Surface | P52: Average | Q52: 426.8472 | R52: 4268.4718
A53: 18 | B53: 10 | C53: 1004 | D53: 11080 | E53: 200 | F53: 170 | G53: Surface | H53: 30 | I53: 30 | J53: 30 | K53: Average | L53: 0.75 | M53: Vertical | N53: Double | O53: Surface | P53: Average | Q53: 426.8472 | R53: 4268.4718
A54: 19 | B54: 10 | C54: 1004 | D54: 11080 | E54: 200 | F54: 170 | G54: Surface | H54: 30 | I54: 30 | J54: 30 | K54: Average | L54: 0.75 | M54: Vertical | N54: Double | O54: Surface | P54: Average | Q54: 426.8472 | R54: 4268.4718
A55: 20 | B55: 10 | C55: 1004 | D55: 11080 | E55: 200 | F55: 170 | G55: Surface | H55: 30 | I55: 30 | J55: 30 | K55: Average | L55: 0.75 | M55: Horizontal | N55: Double | O55: Surface | P55: Average | Q55: 435.4192 | R55: 4354.192
A56: 21 | B56: 10 | C56: 1004 | D56: 11080 | E56: 200 | F56: 170 | G56: Surface | H56: 30 | I56: 30 | J56: 30 | K56: Average | L56: 0.75 | M56: Vertical | N56: Double | O56: Surface | P56: Average | Q56: 426.8472 | R56: 4268.4718
A57: 22 | B57: 10 | C57: 1004 | D57: 11080 | E57: 200 | F57: 170 | G57: Surface | H57: 30 | I57: 30 | J57: 30 | K57: Average | L57: 0.75 | M57: Vertical | N57: Single | O57: Surface | P57: Average | Q57: 362.8306 | R57: 3628.3059
A58: 23 | B58: 10 | C58: 1004 | D58: 11080 | E58: 200 | F58: 170 | G58: Surface | H58: 30 | I58: 30 | J58: 30 | K58: Average | L58: 0.75 | M58: Vertical | N58: Double | O58: Surface | P58: Average | Q58: 426.8472 | R58: 4268.4718
A59: 24 | B59: 10 | C59: 1004 | D59: 11080 | E59: 200 | F59: 170 | G59: Surface | H59: 30 | I59: 30 | J59: 30 | K59: Average | L59: 0.75 | M59: Vertical | N59: Double | O59: Surface | P59: Average | Q59: 426.8472 | R59: 4268.4718
A60: 24 | B60: 10 | C60: 1004 | D60: 11080 | E60: 200 | F60: 170 | G60: Surface | H60: 30 | I60: 30 | J60: 30 | K60: Average | L60: 0.75 | M60: Vertical | N60: Double | O60: Surface | P60: Average | Q60: 426.8472 | R60: 4268.4718
A61: 24 | B61: 10 | C61: 1004 | D61: 11080 | E61: 200 | F61: 170 | G61: Surface | H61: 30 | I61: 30 | J61: 30 | K61: Average | L61: 0.75 | M61: Vertical | N61: Double | O61: Surface | P61: Poor | Q61: 442.4413 | R61: 4424.4132
A62: 24 | B62: 10 | C62: 1004 | D62: 11080 | E62: 200 | F62: 170 | G62: Surface | H62: 30 | I62: 30 | J62: 30 | K62: Average | L62: 0.75 | M62: Vertical | N62: Double | O62: Surface | P62: Average | Q62: 426.8472 | R62: 4268.4718
A63: 25 | B63: 10 | C63: 1004 | D63: 11080 | E63: 200 | F63: 170 | G63: Surface | H63: 30 | I63: 30 | J63: 30 | K63: Average | L63: 0.75 | M63: Vertical | N63: Double | O63: Surface | P63: Average | Q63: 426.8472 | R63: 4268.4718
B71: L-PSH
C72: Low $/kWh | D72: High $/kWh | E72: Basecase $/kWh | H72: Change $/kWh
B73: Nominal Head (Ft) | C73: =Q5 -> 11907.9368 | D73: =Q6 -> 26109.4558 | E73: =$Q$2 -> 16281.238 | F73: 2500 ft | G73: 800 ft | H73: =(D73-E73)+(E73-C73) -> 14201.519
B74: Duration (Hrs) | C74: =Q3 -> 17636.6922 | D74: =Q4 -> 14001.9875 | E74: 16281.238 | F74: 24 hours | G74: 10 hours | H74: -3634.7047
B75: Conveyance Length (Ft) | C75: =Q7 -> 13251.6643 | D75: =Q8 -> 19726.2004 | E75: 16281.238 | F75: 5000 ft | G75: 25000 ft | H75: 6474.5361
B76: Average Dam Height (ft) | C76: =Q9 -> 15794.1166 | D76: =Q10 -> 19949.6083 | E76: 16281.238 | F76: 60 ft | G76: 240 ft | H76: 4155.4917
B77: Power Station Type | C77: =Q11 -> 14811.1103 | D77: =Q12 -> 16281.238 | E77: 16281.238 | F77: Surface | G77: Underground | H77: 1470.1277
B78: Transmission Miles | C78: =Q13 -> 7206.4496 | D78: =Q14 -> 28558.8929 | E78: 16281.238 | F78: 5 miles | G78: 25 miles | H78: 21352.4433
B79: Power Station Structure Geology Type | C79: =Q17 -> 15853.2702 | D79: =Q18 -> 16281.238 | E79: 16281.238 | F79: Average | G79: Adverse | H79: 427.9678
B80: Access Tunnel Length (Miles) | C80: =Q19 -> 16071.3696 | D80: =Q20 -> 16501.5277 | E80: 16281.238 | F80: 0.75 miles | G80: 1.75 miles | H80: 430.1581
B81: Average Crest Length (Ft) | C81: =Q15 -> 15938.4098 | D81: =Q18 -> 16281.238 | E81: 16281.238 | F81: 800 ft | G81: 1800 ft | H81: 342.8282
B82: U. Reservoir Intake/Outlet Type | C82: =Q22 -> 16281.238 | D82: =Q21 -> 16583.7552 | E82: 16281.238 | F82: Vertical | G82: Horizontal | H82: 302.5172
B83: Tranmission Type | C83: =Q23 -> 16281.238 | D83: =Q24 -> 16281.238 | E83: 16281.238 | F83: Single | G83: Double | H83: 0
B84: L. Reservoir Intake/Outlet Type | C84: =Q27 -> 16084.6018 | D84: =Q28 -> 16281.238 | E84: 16281.238 | F84: Vertical | G84: Horizontal | H84: 196.6362
B85: Penstock Type | C85: =Q26 -> 16281.238 | D85: =Q25 -> 16474.8196 | E85: 16281.238 | F85: Underground | G85: Surface | H85: 193.5816
B90: S-PSH
C91: Low $/kWh | D91: High $/kWh | E91: Basecase $/kWh | H91: Change $/kWh
B92: Nominal Head (Ft) | C92: =Q40 -> 358.6265 | D92: =Q39 -> 858.9518 | E92: =$Q$36 -> 426.8472 | F92: 1500 ft | G92: 500 ft | H92: =(D92-E92)+(E92-C92) -> 500.3253
B93: Duration (Hrs) | C93: =Q38 -> 392.1838 | D93: =Q37 -> 584.1585 | E93: =$Q$36 -> 426.8472 | F93: 14 hours | G93: 6 hours | H93: =(D93-E93)+(E93-C93) -> 191.9747
B94: Conveyance Length (Ft) | C94: =Q41 -> 349.1407 | D94: =Q42 -> 472.5876 | E94: 426.8472 | F94: 5000 ft | G94: 15000 ft | H94: 123.4469
B95: Transmission Miles | C95: =Q47 -> 369.9714 | D95: =Q48 -> 483.723 | E95: 426.8472 | F95: 20 miles | G95: 40 miles | H95: 113.7516
B96: Tranmission Type | C96: =Q57 -> 362.8306 | D96: =Q58 -> 426.8472 | E96: 426.8472 | F96: Single | G96: Double | H96: 64.0166
B97: Tunneling Condition | C97: =Q62 -> 426.8472 | D97: =Q61 -> 442.4413 | E97: 426.8472 | F97: Average | G97: Poor | H97: 15.5941
B98: Power Station Structure Geology Type | C98: =Q52 -> 426.8472 | D98: =Q51 -> 444.1529 | E98: 426.8472 | F98: Average | G98: Adverse | H98: 17.3057
B99: U. Reservoir Intake/Outlet Type | C99: =Q56 -> 426.8472 | D99: =Q55 -> 435.4192 | E99: 426.8472 | F99: Vertical | G99: Horizontal | H99: 8.572
